{"text_format":"1","workbook":"xlsx","n_sheets":4,"sheets":["Formulario Gral","INSUMO MAESTRO","T","Hoja de respuestas"],"not_rendered":{"charts":0,"images":6,"macros":1,"external_links":0,"defined_names":2,"comments":2,"pivot_tables":0},"unopened":[],"bounds":{"document_bytes":16777216,"sheet_cells":100000,"rows_first":2000,"rows_last":500,"rows_between":2000,"halvings":0,"cell_chars":16384,"cell_head_chars":4096},"cells_cut":0,"cells_raw":0,"read":"whole","date_system":"1900"}

{"sheet":"Formulario Gral","index":0,"n_rows":200,"n_cols":18,"rows_kept":200,"cut":false,"hidden":false,"merged":[[35,3,35,5],[37,3,37,5],[39,3,39,5],[41,3,41,5],[43,3,43,5],[35,7,35,10],[37,7,37,10],[39,7,39,10],[41,7,41,10],[43,7,43,10],[162,3,162,7],[162,10,162,12],[117,3,117,7],[193,3,193,17],[195,3,195,17],[197,3,197,17],[96,10,96,12],[115,14,115,17],[131,14,131,17],[174,3,174,7],[166,3,166,7],[166,10,166,12],[164,3,164,7],[164,10,164,12],[168,3,168,7],[168,10,168,12],[170,3,170,7],[170,10,170,12],[172,3,172,7],[176,3,176,7],[184,3,184,7],[189,3,189,17],[191,3,191,17],[110,3,110,17],[180,10,180,12],[184,10,184,12],[186,10,186,12],[79,3,80,3],[79,5,79,7],[79,10,79,12],[172,10,172,12],[182,3,182,7],[160,3,160,7],[160,10,160,12],[154,3,154,7],[148,10,148,12],[150,10,150,12],[152,10,152,12],[154,10,154,12],[158,3,158,7],[156,3,156,7],[158,10,158,12],[186,3,186,7],[176,10,176,12],[178,10,178,12],[96,5,96,7],[121,3,121,10],[107,3,107,17],[158,14,158,17],[6,5,6,7],[58,3,58,5],[114,14,114,17],[27,3,27,5],[29,3,29,5],[31,3,31,5],[33,3,33,5],[12,5,12,7],[14,5,14,7],[16,5,16,7],[56,7,56,10],[7,5,7,7],[8,5,8,7],[31,7,31,10],[33,7,33,10],[95,3,95,17],[54,3,54,5],[56,3,56,5],[114,3,114,7],[62,10,62,12],[63,3,64,3],[58,7,58,10],[96,14,96,17],[156,10,156,12],[130,10,130,12],[115,3,115,10],[52,3,52,5],[52,7,52,10],[78,3,78,12],[54,7,54,10],[121,14,121,17],[120,14,120,17],[124,3,124,10],[126,3,126,7],[129,3,129,17],[145,3,145,17],[131,3,132,3],[131,5,131,7],[131,10,131,12],[148,3,148,7],[150,3,150,7],[152,3,152,7],[61,3,61,17],[63,5,63,7],[63,10,63,12],[77,3,77,17],[199,3,199,17],[108,3,108,17],[109,3,109,17],[111,3,111,17],[127,3,127,10],[127,14,127,17],[182,10,182,12],[18,5,18,7],[20,5,20,7],[19,5,19,7],[106,3,106,17],[22,5,22,7],[48,3,48,5],[48,7,48,10],[50,3,50,5],[50,7,50,10],[27,7,27,10],[29,7,29,10],[178,3,178,7],[180,3,180,7],[126,14,126,17],[117,14,117,17],[118,3,118,10],[118,14,118,17]]}
[]
[]
[]
[]
[null,null,null,"INSTRUCCIONES "]
[]
[null,null,null,"FECHA DE DILIGENCIAMIENTO:"]
[]
[null,null,null,"FECHA DE CARACTERIZACIÓN:"]
[]
[null,null,null,"ENTIDAD TERRITORIAL:"]
[]
[null,null,null," Tipo de entidad"]
[]
[null,null,null,"Departamento"]
[]
[null,null,null,"Nombre de la entidad"]
[]
[null,null,null,"Categoría de la entidad"]
[]
[null,null,null,"¿Es PDET?"]
[]
[null,null,null,"¿Es ZOMAC?"]
[]
[]
[null,null,null,"INFORMACIÓN GENERAL"]
[null,null,null,"Llene los campos requeridos"]
[null,null,null,"Nombre de Funcionario que diligencia el formulario"]
[]
[null,null,null,"Cargo del funcionario que diligencia el formulario"]
[]
[null,null,null,"Correo de contacto del funcionario que diligencia"]
[]
[null,null,null,"Teléfono de contacto \n(por favor escriba indicativo regional, extensión o número de celular, según corresponda)"]
[]
[null,null,null,"¿La entidad actualmente ejerce la defensa jurídica por medio de la contratación de persona(s) jurídica(s)? (Firmas de abogados)."]
[]
[null,null,null,"En caso de que la respuesta anterior sea afirmativa, escriba la razón social de la(s) persona(s) jurídica(s)."]
[]
[null,null,null,"Indique la duración del contrato actual (en meses)"]
[]
[null,null,null,"Indique la cantidad de personal del contratista dedicado a la defensa jurídica de su entidad."]
[]
[null,null,null,"Indique la antigüedad (en meses) de la vinculación de la Firma con su entidad"]
[]
[]
[null,null,null,"INFORMACIÓN LITIGIOSA"]
[null,null,null,"Seleccione en las opciones de respuesta"]
[null,null,null,"¿Cómo se hace seguimiento a la litigiosidad de la entidad?"]
[]
[null,null,null,"Nombre de la herramienta tecnológica de control que utiliza la entidad "]
[]
[null,null,null,"¿Dispone de bases de datos históricas?"]
[]
[null,null,null,"¿Tiene acceso a las piezas asociadas?"]
[]
[null,null,null,"¿Tiene demanda y acto admisorio en medio físico o digital?"]
[]
[null,null,null,"¿Ajusta los valores con la inflación?"]
[]
[]
[null,null,null,"PROCESOS ACTIVOS - POR CALIDAD Y  ACCIÓN O MEDIO DE CONTROL"]
[null,null,null,"Favor ingresar la información monetaria sin decimales [no incluir puntos ni comas] - Se debe diligenciar la matriz con el detalle de la totalidad de los procesos activos.",null,null,null,null,null,"Demandante"]
[null,null,null,"Acción Judicial o medio de control ",null,"Demandado",null,null,null,null,"Demandante"]
[null,null,null,null,null,"Número de procesos activos ",null,"Pretensiones  \n($ pesos) (si aplica)",null,null,"Número de procesos activos ",null,"Pretensiones \n ($ pesos) (si aplica)"]
[null,null,null,"Nulidad y restablecimiento del derecho"]
[null,null,null,"Reparación directa"]
[null,null,null,"Ordinario Laboral"]
[null,null,null,"Nulidad simple"]
[null,null,null,"Controversias contractuales"]
[null,null,null,"Acción popular"]
[null,null,null,"Acción de grupo"]
[null,null,null,"Ejecutivos"]
[null,null,null,"Tutelas"]
[null,null,null,"Otras"]
[null,null,null,"Total",null,null,null,{"$f":"SUM(H66:H75)","v":0},null,null,{"$f":"SUM(K66:K75)","v":0},null,{"$f":"SUM(M66:M75)","v":0}]
[null,null,null,null,null,null,null,"No se tiene especificacion de la accion judicial o medio de control "]
[null,null,null,"PROCESOS ACTIVOS - SEGÚN AÑO DE ADMISIÓN Y CALIDAD"]
[null,null,null,"Favor ingresar la información monetaria sin decimales [no incluir puntos ni comas] - Se debe diligenciar la matriz con el detalle de la totalidad de los procesos y/o acciones activas."]
[null,null,null,"Año de admisión",null,"Demandado",null,null,null,"Demandante","Demandante"]
[null,null,null,null,null,"Número procesos",null,"Pretensiones  \n($ pesos) (si aplica)",null,null,"Número procesos",null,"Pretensiones  \n($ pesos) (si aplica)"]
[null,null,null,"Anterior a  1990"]
[null,null,null,"1991 - 2010"]
[null,null,null,"2011 - 2015"]
[null,null,null,2016]
[null,null,null,2017]
[null,null,null,2018]
[null,null,null,2019]
[null,null,null,2020]
[null,null,null,2021]
[null,null,null,2022]
[null,null,null,2023]
[null,null,null,2024]
[null,null,null,"Total",null,{"$f":"SUM(F82:F92)","v":0},null,{"$f":"SUM(H82:H92)","v":0},null,null,{"$f":"SUM(K82:K92)","v":0},null,{"$f":"SUM(M82:M92)","v":0}]
[]
[null,null,null,"PROCESOS / ACCIONES TERMINADOS  - Se debe diligenciar la matriz con el detalle de la totalidad de los procesos terminados, esto es con sentencia ejecutoriada."]
[null,null,null,"Favor ingresar la información monetaria sin decimales \n[no incluir puntos ni comas]",null,"Favorables",null,null,null,"Demandante","Desfavorables",null,null,null,"Conciliaciones"]
[null,null,null,"Con la información que disponga diligencie a continuación:",null,"Número procesos",null,"Pretensiones  \n($ pesos) (si aplica)",null,null,"Número procesos",null,"Pretensiones  \n($ pesos) (si aplica)",null,"Número procesos",null,null,"Valor conciliado\n($ pesos) (si aplica)"]
[null,null,null,"Procesos terminados con información de fallo anterior 2015"]
[null,null,null,"Procesos terminados con información de fallo 2015 - 2019"]
[null,null,null,"Procesos terminados con información de fallo 2019 - 2021"]
[null,null,null,"Procesos terminados con información de fallo 2022"]
[null,null,null,"Procesos terminados con información de fallo 2023"]
[null,null,null,"Procesos terminados con información de fallo 2024 "]
[null,null,null,"Total",null,{"$f":"SUM(F99:F104)","v":0},null,{"$f":"SUM(H99:H104)","v":0},null,null,{"$f":"SUM(K99:K104)","v":0},null,{"$f":"SUM(M99:M104)","v":0},null,{"$f":"SUM(O99:O104)","v":0},null,null,{"$f":"SUM(R99:R104)","v":0}]
[]
[null,null,null,"CAUSAS DE MAYOR LITIGIOSIDAD"]
[null,null,null,"Favor enliste las causas de mayor litigiosidad en su entidad, le sugerimos tener como referencia el archivo de causas parametrizadas"]
[null,null,null,"Causa"]
[null,null,1]
[null,null,2]
[null,null,3]
[]
[]
[null,null,null,"VALOR PAGADO POR CONCEPTO DE CONDENAS (SENTENCIAS, CONCILIACIONES Y LAUDOS)",null,null,null,null,null,null,null,null,"Número de condenas",null,"Valor pagado por condenas\n ($ pesos)"]
[null,null,null,"¿Cuánto se ha pagado de condenas en el período caracterizado?"]
[]
[null,null,null,"RECUPERACIÓN DE RECURSOS PÚBLICOS",null,null,null,null,null,null,null,null,"Porcentaje"]
[null,null,null,"¿Para los pagos totales por concepto de condenas, cuál fué el porcentaje en los que se estudió la procedencia de la acción de repetición?"]
[]
[null,null,null,null,null,null,null,null,null,null,null,null,"Número",null,"Valor total de las pretensiones de las acciones de repetición\n ($ pesos)"]
[null,null,null,"¿Cuál es el número de acciones de repetición iniciadas durante el año 2024?",null,null,null,null,null,null,null,null,0,null,0]
[]
[null,null,null,null,null,null,null,null,null,null,null,null,"Número"]
[null,null,null,"¿En cuántos procesos la entidad realizó el llamamiento en garantía con fines de repetición, durante el año 2024?",null,null,null,null,null,null,null,null,0]
[]
[null,null,null,"VALOR ACTUAL DE LA DEUDA POR CONCEPTO DE CONDENAS (SENTENCIAS, CONCILIACIONES Y LAUDOS)",null,null,null,null,null,null,null,null,"Número de condenas",null,"Valor de la deuda\n ($ pesos)"]
[null,null,null,"¿Cuánto adeuda la entidad en la fecha de caracterización?"]
[]
[null,null,null,"CONDENAS POR TIPO DE MEDIO DE CONTROL EJECUTORIADAS DURANTE EL PERÍODO CARACTERIZADO"]
[null,null,null,"Favor ingresar la información monetaria sin decimales [no incluir puntos ni comas]",null,null,null,null,null,"Demandante"]
[null,null,null,"Acción Judicial o medio de control ",null,"Providencias judiciales ",null,null,null,null,"Laudos arbitrales ",null,null,null,"Conciliaciones"]
[null,null,null,null,null,"Número ",null,"Pretensiones  \n($ pesos)",null,null,"Número ",null,"Valor Condena\n ($ pesos)",null,"Número ",null,null,"Valor Conciliado  \n($ pesos)"]
[null,null,null,"Nulidad y restablecimiento del derecho"]
[null,null,null,"Reparación directa"]
[null,null,null,"Ordinario Laboral"]
[null,null,null,"Nulidad simple"]
[null,null,null,"Controversias contractuales"]
[null,null,null,"Acción popular"]
[null,null,null,"Acción de grupo"]
[null,null,null,"Tutelas"]
[null,null,null,"Ejecutivos"]
[null,null,null,"Otras"]
[null,null,null,"Total",null,{"$f":"SUM(F134:F143)","v":0},null,{"$f":"SUM(H134:H143)","v":0},null,null,{"$f":"SUM(K134:K143)","v":0},null,{"$f":"SUM(M134:M143)","v":0},null,{"$f":"SUM(O134:O143)","v":0},null,null,{"$f":"SUM(R134:R143)","v":0}]
[]
[null,null,null,"INFORMACIÓN CON RESPECTO A PORTAFOLIO DE SERVICIOS DE LA AGENCIA NACIONAL DE DEFENSA JURÍDICA DEL ESTADO: \nSISTEMA eKOGUI - COMITÉ DE CONCILIACIÓN - POLÍTICA DE PREVENCIÓN DEL DAÑO ANTIJURÍDICO - CAPACITACIÓN JURÍDICA - CAJA DE HERRAMIENTAS"]
[null,null,null,"Seleccione en las opciones de respuesta o describa a continuación:"]
[]
[null,null,1,"¿Ha escuchado acerca del Sistema Único de Gestión e Información de la Actividad Litigiosa del Estado - eKOGUI?"]
[]
[null,null,2,"¿Ha escuchado del plan piloto de implementación de eKOGUI en entidades territoriales?"]
[]
[null,null,3,"¿Su entidad ya trabaja, o ha considerado implementar el sistema eKOGUI?"]
[]
[null,null,4,"¿Qué aspectos con respecto a la implementación de eKOGUI en entidades territoriales considera determinantes para adoptar el sistema?"]
[]
[null,null,5,"¿Le gustaria recibir información para implementar el sistema eKOGUI en su entidad?"]
[]
[null,null,6,"¿Qué información considera que puede ser útil a la hora de implementar un sistema como eKOGUI?"]
[]
[null,null,7,"¿Conoce el servicio de asesoría legal que presta la Agencia Nacional de Defensa Jurídica del Estado?"]
[]
[null,null,8,"¿El área jurídica o quien haga sus veces articula la estrategia de defensa con otras áreas de la entidad?"]
[]
[null,null,9,"¿La entidad conoce la Caja de Herramientas de la Agencia Nacional de Defensa Jurídica del Estado?"]
[]
[null,null,10,"¿La entidad cuenta con planes y programas de capacitación para los apoderados que defienden los intereses litigiosos?"]
[]
[null,null,11,"¿La entidad requiere asesoría sobre el procedimiento de pago de condenas judiciales?"]
[]
[null,null,12,"¿La entidad conoce o ha hecho uso de los servicios de mediación y solicitud de concepto al Consejo de Estado, que ofrece la Agencia Nacional de Defensa Jurídica del Estado?"]
[]
[null,null,13,"De tener adoptada la Política de Prevención del Daño Antijurídico, ¿la entidad dentro de ésta, tiene algún componente encaminado a prevenir la vulneración del derecho de petición?"]
[]
[null,null,14,"Indique los temas en los que su municipio requiere asesoría para la prevención del daño antijurídico",null,null,null,null,null,null,"1.",null,"2.",null,"3.",null,null,"4."]
[]
[null,null,15,"¿La entidad conoce a la Comunidad Jurídica del Conocimiento de la Agencia Nacional de Defensa Jurídica del Estado?"]
[]
[null,null,16,"¿La entidad ha visto algún video del canal de youtube de la Comunidad Jurídica del Conocimiento de la Agencia Nacional de Defensa Jurídica del Estado?"]
[]
[null,null,17,"¿La entidad estaría interesada en hacer parte de la Comunidad Jurídica del Conocimiento de la Agencia Nacional de Defensa Jurídica del Estado?"]
[]
[null,null,18,"¿La entidad realiza mediciones del desempeño y de los resultados de su gestión de defensa jurídica?"]
[]
[null,null,19,"¿La entidad conoce el Modelo de Gestión por Resultados-MGR de la Agencia Nacional de Defensa Jurídica del Estado?"]
[]
[null,null,20,"¿La entidad conoce las circulares de lineamientos de la Agencia Nacional de Defensa Jurídica del Estado"]
[]
[]
[null,null,null,"OBSERVACIONES"]
[]
[null,null,"1."]
[]
[null,null,"2."]
[]
[null,null,"3."]
[]
[null,null,"4."]
[]
[null,null,"5."]

{"sheet":"INSUMO MAESTRO","index":1,"n_rows":53,"n_cols":4,"rows_kept":53,"cut":false,"hidden":false,"merged":[[42,1,47,1],[48,1,52,1],[0,0,0,2],[1,0,1,2],[3,1,12,1],[13,1,21,1],[22,1,33,1],[34,1,41,1]]}
["Preguntas formulario MGR Territorial "]
["Tomado de: versión 2 producto 2 (en revisión) contrato BID 037-2024",null,null,"Respuestas "]
["No. ","Etapa CDJE","Preguntas"]
[1,"Políticas de Prevención del Daño Antijurídico","¿La entidad cuenta con Políticas de Prevención Daño Antijurídico (PPDA) formuladas, aprobadas e implementadas?"]
[2,null,"¿La entidad documenta el seguimiento a la Política de Prevención del Daño Antijurídico?"]
[3,null,"¿Cuántas causas de mayor litigiosidad (por frecuencia, valor de las pretensiones o probabilidad de pérdida) fueron incluidas en la PPDA? - (la respuesta es un número)"]
[4,null,"¿Cuál es el total de causas litigiosas identificadas por la entidad?"]
[5,null,"¿Cuántas acciones de tutela por vulneración del derecho de petición se interpusieron contra la entidad en el año en curso?"]
[6,null,"¿Cuántas acciones de tutela por vulneración del derecho de petición se interpusieron contra la entidad en el año anterior?"]
[7,null,"¿Cuántas demandas interpuestas contra la entidad por las causas incluidas en la PPDA se registraron en el año en curso?"]
[8,null,"¿Cuántas demandas interpuestas contra la entidad por las causas incluidas en la PPDA se registraron en el año anterior?"]
[9,null,"¿Cuántas áreas de la entidad han demostrado conocimiento de las Políticas de Prevención Daño Antijurídico (PPDA)?"]
[10,null,"¿Cuál es el total de áreas evaluadas en la entidad?"]
[11,"Gestión Extrajudicial","¿La entidad cuenta con un Comité de Conciliación (CdC) conformado?"]
[12,null,"¿El Comité de Conciliación (CdC) o el representante legal ha formulado políticas o directrices de conciliación y otros Mecanismos Alternativos de Solución de Conflictos (MASC)?"]
[13,null,"¿Cuántas veces se reune al mes el comité de conciliación?"]
[14,null,"¿Cuántas solicitudes de conciliación extrajudicial con fórmula conciliatoria ha emitido el Comité de Conciliación (CdC) o el representante legal durante el año?"]
[15,null,"¿Cuál es el número total de solicitudes de conciliación extrajudicial presentadas a la entidad durante el año?"]
[16,null,"¿Cuántas conciliaciones extrajudiciales con fórmula conciliatoria emitida por el Comité de Conciliación (CdC) o el representante legal fueron aprobadas por el juez durante el año?"]
[17,null,"¿Cuántas solicitudes de conciliación extrajudicial con fórmula conciliatoria emitida por el Comité de Conciliación (CdC) se presentaron en el año?"]
[18,null,"¿Cuál fue el valor definitivo de las conciliaciones extrajudiciales aprobadas por el juez en el año?"]
[19,null,"¿Cuál es el número total de solicitudes de conciliación extrajudicial con fórmula conciliatoria emitida por el Comité de Conciliación (CdC) o el representante legal durante el año?"]
[20,"Defensa Judicial","¿La entidad cuenta con una Oficina o Secretaría Jurídica para el ejercicio del ciclo de defensa jurídica?"]
[21,null,"¿El Comité de Conciliación (CdC) o el representante legal ha formulado políticas o directrices en materia de defensa técnica?"]
[22,null,"¿Cuántos procesos judiciales terminados con sentencias ejecutoriadas en calidad de demandado tuvieron un fallo favorable para la entidad durante el año?"]
[23,null,"¿Cuál es el total de procesos judiciales terminados con sentencias ejecutoriadas en calidad de demandado, tanto con fallo favorable como desfavorable, durante el año?"]
[24,null,"¿Cuál es el valor total de los fallos condenatorios ejecutoriados terminados en calidad de demandado durante el año?"]
[25,null,"¿Cuál es el valor total de las pretensiones de los procesos terminados en calidad de demandado durante el año?"]
[26,null,"¿Cuántos procesos judiciales en contra de la entidad terminaron de manera anticipada (previo a la emisión de una sentencia, fallo o laudo arbitral) durante el año?"]
[27,null,"¿Cuál es el número total de procesos judiciales en contra de la entidad que terminaron durante el año?"]
[28,null,"¿Cuántos procesos judiciales en calidad de demandado tuvieron una contestación oportuna de la demanda durante el año?"]
[29,null,"¿Cuál es el número total de procesos judiciales en calidad de demandado con actuación de contestación de la demanda durante el año?"]
[30,null,"¿Cuántos recursos de apelación contra sentencias interpuestos por la entidad fueron resueltos favorablemente durante el año?"]
[31,null,"¿Cuál es el número total de recursos de apelación contra sentencias interpuestos por la entidad durante el año?"]
[32,"Cumplimiento de Créditos Judiciales","Para cada pago realizado durante el año, indique la fecha de ejecutoria de la sentencia desfavorable."]
[33,null,"Para cada pago realizado durante el año, indique la fecha de pago total."]
[34,null,"¿Cuántos procesos ejecutivos se generaron debido al incumplimiento de obligaciones durante el año?"]
[35,null,"¿Cuál es el número total de obligaciones pendientes de pago durante el año?"]
[36,null,"¿Cuántos procesos con sentencias ejecutoriadas o fallos desfavorables con obligaciones monetarias impagas tiene la entidad en el año actual?"]
[37,null,"¿Cuántos procesos con sentencias ejecutoriadas o fallos desfavorables con obligaciones monetarias impagas tenía la entidad en el año anterior?"]
[38,null,"¿Cuántos procesos, conciliaciones o arbitramentos fallados en contra de la entidad durante el año tuvieron una diferencia entre la provisión contable y la condena superior al 10%?"]
[39,null,"¿Cuántos procesos con condenas contra la entidad se registraron durante el año?"]
[40,"Mecanismos para la protección y recuperación del patrimonio público","¿Cuántos llamamientos en garantía con fines de repetición efectuó la entidad durante el año?"]
[41,null,"¿Cuál es el número total de demandas presentadas en contra de la entidad durante el año?"]
[42,null,"¿Cuántos procesos con acción de repetición fueron iniciados por la entidad durante el año?"]
[43,null,"¿Cuántas condenas ejecutoriadas con carácter indemnizatorio o acuerdos conciliatorios pagados por la entidad se registraron durante el año anterior?"]
[44,null,"¿Cuántas acciones de repetición con fallo favorable para la entidad se obtuvieron durante el año?"]
[45,null,"¿Cuál es el total de acciones de repetición culminadas por la entidad con condenas ejecutoriadas durante el año?"]
[46,"Gestión del conocimiento","¿Cuántos cursos de la Comunidad Jurídica del Conocimiento han sido realizados por los apoderados activos de la entidad durante el año?"]
[47,null,"¿Cuál es el número total de apoderados activos de la entidad?"]
[48,null,"¿La entidad cuenta con un repositorio de conocimiento jurídico que se actualiza como máximo semestralmente?"]
[49,null,"¿Cuántos apoderados de la entidad han completado exitosamente el Diplomado en Gerencia Jurídica Pública?"]
[50,null,"¿Cuál es el número total de apoderados de la entidad?"]

{"sheet":"T","index":2,"n_rows":1125,"n_cols":26,"rows_kept":1125,"cut":false,"hidden":true,"merged":[[1,15,1,16],[1,17,1,18],[0,15,0,18]]}
[null,"Elija una opción de esta lista desplegable",null,"¿Cómo se hace seguimiento a la litigiosidad de la entidad?",null,"2024-10-31",null,null,"COD DEPTO","DEPARTAMENTO","COD MUN","MUNICIPIOS",null,null,null,"Codificación de la División Político Administrativa de Colombia - DIVIPOLA Enero 2023",null,null,null,null,"DEPARTAMENTOS",null,"MUNICIPIOS",null,null,"CAUSAS"]
[null,"Si",null,"Herramienta tecnológica propia",null,null,null,null,"27","CHOCÓ","27001","QUIBDÓ",null,null,null,"Departamento",null,"Municipio",null,null,"AMAZONAS",33,"ABEJORRAL",1036,null,"Elija una opción de esta lista desplegable"]
[null,"No",null,"Herramienta tecnológica contratada",null,null,null,null,"27","CHOCÓ","27006","ACANDÍ",null,null,null,"Código ","Nombre","Código ","Nombre",null,"ANTIOQUIA",null,"ÁBREGO",null,null,"ILEGALIDAD DEL ACTO ADMINISTRATIVO QUE REVOCA EL NOMBRAMIENTO DE FUNCIONARIO PUBLICO"]
[null,"Parcialmente",null,"Excel",null,null,null,null,"27","CHOCÓ","27025","ALTO BAUDÓ",null,null,null,"05","ANTIOQUIA","05001","MEDELLÍN",1121,"ARAUCA",null,"ABRIAQUÍ",null,null,"ILEGALIDAD DEL ACTO ADMINISTRATIVO QUE IMPONE SANCION DISCIPLINARIA"]
[null,null,null,"Manual",null,null,null,null,"27","CHOCÓ","27050","ATRATO",null,null,null,"05","ANTIOQUIA","05002","ABEJORRAL",null,"ARCHIPIÉLAGO DE SAN ANDRÉS, PROVIDENCIA Y SANTA CATALINA",null,"ACACÍAS",null,null,"ILEGALIDAD DEL ACTO ADMINISTRATIVO QUE DECLARA LA INSUBSISTENCIA DE FUNCIONARIO DE CARRERA"]
[null,null,null,"No hace seguimiento",null,null,null,null,"27","CHOCÓ","27073","BAGADÓ",null,null,null,"05","ANTIOQUIA","05004","ABRIAQUÍ",null,"ATLÁNTICO",null,"ACANDÍ",null,null,"ILEGALIDAD DEL ACTO ADMINISTRATIVO QUE DECLARA LA INSUBSISTENCIA DE FUNCIONARIO DE LIBRE NOMBRAMIENTO Y REMOCION"]
[null,"Vinculación área Jurídica",null,"eKOGUI",null,null,null,null,"27","CHOCÓ","27075","BAHÍA SOLANO",null,null,null,"05","ANTIOQUIA","05021","ALEJANDRÍA",null,"BOGOTÁ, D.C.",null,"ACEVEDO",null,null,"INCUMPLIMIENTO EN EL RECONOCIMIENTO DE MEDICAMENTOS Y SERVICIOS INCLUIDOS O NO EN EL POS"]
[null,"Funcionario",null,"Elija una opción de esta lista desplegable",null,null,null,null,"27","CHOCÓ","27077","BAJO BAUDÓ",null,null,null,"05","ANTIOQUIA","05030","AMAGÁ",null,"BOLÍVAR",null,"ACHÍ",null,null,"NO RECONOCIMIENTO DE PENSION DE VEJEZ"]
[null,"Contratista Independiente",null,"TIPO DE ENTIDAD",null,null,null,null,"27","CHOCÓ","27099","BOJAYÁ",null,null,null,"05","ANTIOQUIA","05031","AMALFI",null,"BOYACÁ",null,"AGRADO",null,null,"NO RECONOCIMIENTO DE LA INDEXACION Y REAJUSTE DE LA ASIGNACION DE RETIRO"]
[null,"Contratista Firma externa",null,"GOBERNACIÓN",null,null,null,null,"27","CHOCÓ","27135","EL CANTÓN DEL SAN PABLO",null,null,null,"05","ANTIOQUIA","05034","ANDES",null,"CALDAS",null,"AGUA DE DIOS",null,null,"NO RECONOCIMIENTO DE PRIMA DE ACTUALIZACION"]
[null,"(mixta) Funcionarios y Contratistas",null,"CAPITAL DEPARTAMENTAL",null,null,null,null,"27","CHOCÓ","27150","CARMEN DEL DARIÉN",null,null,null,"05","ANTIOQUIA","05036","ANGELÓPOLIS",null,"CAQUETÁ",null,"AGUACHICA",null,null,"NO RECONOCIMIENTO DE PRIMA DE ACTIVIDAD"]
[null,"Otro, ¿Cuál? (indiquelo en la siguiente fila)",null,"MUNICIPIO",null,null,null,null,"27","CHOCÓ","27160","CÉRTEGUI",null,null,null,"05","ANTIOQUIA","05038","ANGOSTURA",null,"CASANARE",null,"AGUADA",null,null,"NO RECONOCIMIENTO DE PRIMA TECNICA"]
[null,"Elija una opción de esta lista desplegable",null,"Elija una opción de esta lista desplegable",null,null,null,null,"27","CHOCÓ","27205","CONDOTO",null,null,null,"05","ANTIOQUIA","05040","ANORÍ",null,"CAUCA",null,"AGUADAS",null,null,"DESPIDO INDIRECTO DE TRABAJADOR OFICIAL"]
[null,null,null,null,null,null,null,null,"27","CHOCÓ","27245","EL CARMEN DE ATRATO",null,null,null,"05","ANTIOQUIA","05042","SANTA FÉ DE ANTIOQUIA",null,"CESAR",null,"AGUAZUL",null,null,"NO RECONOCIMIENTO DE PENSION SUSTITUTIVA"]
[null,"Elija una opción de esta lista desplegable",null,null,null,null,null,null,"27","CHOCÓ","27250","EL LITORAL DEL SAN JUAN",null,null,null,"05","ANTIOQUIA","05044","ANZÁ",null,"CHOCÓ",null,"AGUSTÍN CODAZZI",null,null,"INDEBIDA LIQUIDACION DE BONO PENSIONAL"]
[null,"Si",null,null,null,null,null,null,"27","CHOCÓ","27361","ISTMINA",null,null,null,"05","ANTIOQUIA","05045","APARTADÓ",null,"CÓRDOBA",null,"AIPE",null,null,"INDEBIDA LIQUIDACION DE REGALIAS"]
[null,"No",null,"¿Cuáles son los criterios que usted utiliza para estructurar el pago en los contratos de prestación de servicios legales?","rta*",null,null,null,"27","CHOCÓ","27372","JURADÓ",null,null,null,"05","ANTIOQUIA","05051","ARBOLETES",null,"CUNDINAMARCA",null,"ALBÁN",null,null,"ILEGALIDAD DEL ACTO ADMINISTRATIVO QUE ADJUDICA UN BIEN INMUEBLE"]
[null,"NO APLICA",null,"Valor fijo mensual",false,null,null,null,"27","CHOCÓ","27413","LLORÓ",null,null,null,"05","ANTIOQUIA","05055","ARGELIA",null,"GUAINÍA",null,"ALBANIA",null,null,"ILEGALIDAD DEL ACTO ADMINISTRATIVO QUE NO ADJUDICA UN BIEN INMUEBLE"]
[null,null,null,"Por cantidad de procesos asignados",false,null,null,null,"27","CHOCÓ","27425","MEDIO ATRATO",null,null,null,"05","ANTIOQUIA","05059","ARMENIA",null,"GUAVIARE",null,"ALCALÁ",null,null,"VIOLACION AL DEBIDO PROCESO ADMINISTRATIVO"]
[null,null,null,"Por tiempo de dedicación a gestión (ej. por dias)",false,null,null,null,"27","CHOCÓ","27430","MEDIO BAUDÓ",null,null,null,"05","ANTIOQUIA","05079","BARBOSA",null,"HUILA",null,"ALDANA",null,null,"LESION A CIVIL EN PROCEDIMIENTO DE POLICIA"]
[null,"Aspectos determinantes",null,"Por Resultados (ej. Porcentajes y/o bonificaciones por resultados favorables)",false,null,null,null,"27","CHOCÓ","27450","MEDIO SAN JUAN",null,null,null,"05","ANTIOQUIA","05086","BELMIRA",null,"LA GUAJIRA",null,"ALEJANDRÍA",null,null,"LESION A CIVIL POR EXPLOSION DE MINA ANTIPERSONAL"]
[null,"Información acerca del sistema y sus módulos",null,"Por Gestión (ej. por actuación en el proceso)",false,null,null,null,"27","CHOCÓ","27491","NÓVITA",null,null,null,"05","ANTIOQUIA","05088","BELLO",null,"MAGDALENA",null,"ALGARROBO",null,null,"MUERTE DE CIVIL CON ARMA DE DOTACION OFICIAL"]
[null,"Acompañamiento permanente",null,"Otro_ ¿Cuál?_por favor describalo a continuación en la siguiente fila",false,null,null,null,"27","CHOCÓ","27495","NUQUÍ",null,null,null,"05","ANTIOQUIA","05091","BETANIA",null,"META",null,"ALGECIRAS",null,null,"MUERTE DE CIVIL EN PROCEDIMIENTO DE POLICIA"]
[null,"Mesas de trabajo",null,null,null,null,null,null,"27","CHOCÓ","27580","RÍO IRÓ",null,null,null,"05","ANTIOQUIA","05093","BETULIA",null,"NARIÑO",null,"ALMAGUER",null,null,"MUERTE DE CIVIL POR EXPLOSION DE MINA ANTIPERSONAL"]
[null,"Otro, ¿Cuál? (indiquelo en observaciones)",null,"Categorías de municipios",null,"Nivel de estudios",null,null,"27","CHOCÓ","27600","RÍO QUITO",null,null,null,"05","ANTIOQUIA","05101","CIUDAD BOLÍVAR",null,"NORTE DE SANTANDER",null,"ALMEIDA",null,null,"DAÑO O AMENAZA AMBIENTAL POR VERTIMIENTO DE CONTAMINANTES"]
[null,"Elija una opción de esta lista desplegable",null,"Categoría 1",null,"Bachillerato",null,null,"27","CHOCÓ","27615","RIOSUCIO",null,null,null,"05","ANTIOQUIA","05107","BRICEÑO",null,"PUTUMAYO",null,"ALPUJARRA",null,null,"DAÑO O AMENAZA AMBIENTAL POR TALA MASIVA DE ARBOLES"]
[null,null,null,"Categoría 2",null,"Técnico",null,null,"27","CHOCÓ","27660","SAN JOSÉ DEL PALMAR",null,null,null,"05","ANTIOQUIA","05113","BURITICÁ",null,"QUINDÍO",null,"ALTAMIRA",null,null,"DAÑO O AMENAZA AMBIENTAL POR DISPOSICION FINAL DE RESIDUOS SOLIDOS"]
[null,null,null,"Categoría 3",null,"Tecnológico",null,null,"27","CHOCÓ","27745","SIPÍ",null,null,null,"05","ANTIOQUIA","05120","CÁCERES",null,"RISARALDA",null,"ALTO BAUDÓ",null,null,"DAÑO O AMENAZA AMBIENTAL POR ACTIVIDAD MINERA"]
[null,"MODULOS",null,"Categoría 4",null,"Universitario",null,null,"27","CHOCÓ","27787","SAN JOSÉ DE TADÓ (TADÓ)",null,null,null,"05","ANTIOQUIA","05125","CAICEDO",null,"SANTANDER",null,"ALTOS DEL ROSARIO",null,null,"DAÑO O AMENAZA AMBIENTAL POR ACTIVIDAD INDUSTRIAL"]
[null,"Usuarios",null,"Categoría 5",null,"Especialización",null,null,"27","CHOCÓ","27800","UNGUÍA",null,null,null,"05","ANTIOQUIA","05129","CALDAS",null,"SUCRE",null,"ALVARADO",null,null,"DAÑO O AMENAZA AMBIENTAL POR ACTIVIDAD AGROPECUARIA"]
[null,"Procesos judiciales",null,"Categoría 6",null,"Maestría",null,null,"27","CHOCÓ","27810","UNIÓN PANAMERICANA",null,null,null,"05","ANTIOQUIA","05134","CAMPAMENTO",null,"TOLIMA",null,"AMAGÁ",null,null,"DAÑO O AMENAZA AMBIENTAL POR EJECUCION DE OBRA PUBLICA"]
[null,"Comité de conciliación",null,"Categoría especial",null,"Doctorado",null,null,"27","CHOCÓ",null,"GOBERNACIÓN DE CHOCÓ",null,null,null,"05","ANTIOQUIA","05138","CAÑASGORDAS",null,"VALLE DEL CAUCA",null,"AMALFI",null,null,"DAÑO O AMENAZA AMBIENTAL POR INCENDIO FORESTAL"]
[null,"Relación de pagos",null,"Elija una opción de esta lista desplegable",null,"Posdoctorado",null,null,"27","CHOCÓ",null,"OTRO",null,null,null,"05","ANTIOQUIA","05142","CARACOLÍ",null,"VAUPÉS",null,"AMBALEMA",null,null,"DAÑO O AMENAZA AMBIENTAL POR DESVIACION DEL CAUCE DE UN RIO"]
[null,"Procesos arbitrales",null,"Tipo de documento",null,"Ninguno",null,null,null,null,null,null,null,null,null,"05","ANTIOQUIA","05145","CARAMANTA",null,"VICHADA",null,"ANAPOIMA",null,null,"DAÑO O AMENAZA AMBIENTAL POR ACTIVIDAD DEL SECTOR DE HIDROCARBUROS"]
[null,"Solicitud de intervención",null,"Cédula de Ciudadanía",null,null,null,null,null,null,null,null,null,null,null,"05","ANTIOQUIA","05147","CAREPA",null,"Elija una opción de esta lista desplegable",null,"ANCUYA",null,null,"DAÑO O AMENAZA AMBIENTAL POR CONTAMINACION AUDITIVA"]
[null,"Trazabilidad",null,"Cédula de Extranjería",null,"Alto",null,null,null,null,null,null,null,null,null,"05","ANTIOQUIA","05148","EL CARMEN DE VIBORAL",null,null,null,"ANDALUCÍA",null,null,"DAÑO O AMENAZA AMBIENTAL POR ERRADICACION DE CULTIVOS ILICITOS"]
[null,"Elija una opción de esta lista desplegable",null,"Pasaporte",null,"Medio",null,null,null,null,null,null,null,null,null,"05","ANTIOQUIA","05150","CAROLINA",null,null,null,"ANDES",null,null,"DAÑO O AMENAZA AMBIENTAL POR ACTO TERRORISTA"]
[null,null,null,"Tarjeta de Identidad",null,"Bajo",null,null,null,null,null,null,null,null,null,"05","ANTIOQUIA","05154","CAUCASIA",null,null,null,"ANGELÓPOLIS",null,null,"DAÑO O AMENAZA AMBIENTAL POR DISPOSICION FINAL DE RESIDUOS NUCLEARES"]
[null,null,null,"Otro",null,"Ninguno",null,null,null,null,null,null,null,null,null,"05","ANTIOQUIA","05172","CHIGORODÓ",null,null,null,"ANGOSTURA",null,null,"DAÑOS A BIENES POR EJECUCION DE OBRA PUBLICA"]
[null,null,null,"Elija una opción de esta lista desplegable",null,null,null,null,null,null,null,null,null,null,null,"05","ANTIOQUIA","05190","CISNEROS",null,null,null,"ANOLAIMA",null,null,"DAÑOS CAUSADOS A BIENES EN PROCEDIMIENTO DE POLICIA"]
[null,"Reportes Utiles para jj",null,"Pertenencia étnica",null,"Empleado Público de Carrera Administrativa",null,null,null,null,null,null,null,null,null,"05","ANTIOQUIA","05197","COCORNÁ",null,null,null,"ANORÍ",null,null,"VIOLACION O AMENAZA A LA LIBRE COMPETENCIA ECONOMICA"]
[null,"Reporte de los procesos activos y/o terminados",null,"AFROCOLOMBIANO,(A)",null,"Empleado Público en Provisionalidad",null,null,null,null,null,null,null,null,null,"05","ANTIOQUIA","05206","CONCEPCIÓN",null,null,null,"ANSERMA",null,null,"VIOLACION O AMENAZA A LA MORALIDAD ADMINISTRATIVA"]
[null,"Control de tareas asignadas a los apoderados",null,"GITANO(A) - RROM",null,"Empleado Público a término fijo",null,null,null,null,null,null,null,null,null,"05","ANTIOQUIA","05209","CONCORDIA",null,null,null,"ANSERMANUEVO",null,null,"VIOLACION O AMENAZA AL PATRIMONIO PUBLICO"]
[null,"Calificación de riesgo y Provisión Contable",null,"INDÍGENA",null,"Empleado Público de Libre Nombramiento y Remoción",null,null,null,null,null,null,null,null,null,"05","ANTIOQUIA","05212","COPACABANA",null,null,null,"ANZÁ",null,null,"ILEGALIDAD DEL ACTO ADMINISTRATIVO QUE DECLARA DESIERTA LA LICITACION"]
[null,"Alertas de los casos sin actualizar en los últimos meses",null,"NEGRO(A)",null,"Trabajador oficial",null,null,null,null,null,null,null,null,null,"05","ANTIOQUIA","05234","DABEIBA",null,null,null,"ANZOÁTEGUI",null,null,"INCUMPLIMIENTO DEL DEBER DE LIQUIDAR EL CONTRATO"]
[null,"Otros, ¿Cuáles? (indiquelo en las observaciones)",null,"RAIZAL",null,"Contratista término fijo",null,null,null,null,null,null,null,null,null,"05","ANTIOQUIA","05237","DONMATÍAS",null,null,null,"APARTADÓ",null,null,"ACCESO CARNAL O ACTO SEXUAL VIOLENTO"]
[null,"Elija una opción de esta lista desplegable",null,"N/A",null,"Contratista por obra o labor específica",null,null,null,null,null,null,null,null,null,"05","ANTIOQUIA","05240","EBÉJICO",null,null,null,"APÍA",null,null,"DESPLAZAMIENTO FORZADO"]
[null,null,null,null,null,"Judicante",null,null,null,null,null,null,null,null,null,"05","ANTIOQUIA","05250","EL BAGRE",null,null,null,"APULO",null,null,"VIOLACION O AMENAZA A LA SEGURIDAD Y SALUBRIDAD PUBLICAS"]
[null,null,null,"Discapacidad",null,"Aprendiz",null,null,null,null,null,null,null,null,null,"05","ANTIOQUIA","05264","ENTRERRÍOS",null,null,null,"AQUITANIA",null,null,"OMISION DE ASISTENCIA HUMANITARIA"]
[null,"Elija una opción de esta lista desplegable",null,"FÍSICA",null,"Otro ¿Cuál?",null,null,null,null,null,null,null,null,null,"05","ANTIOQUIA","05266","ENVIGADO",null,null,null,"ARACATACA",null,null,"PRIVACION INJUSTA DE LA LIBERTAD"]
[null,"Si",null,"INTELECTUAL",null,null,null,null,null,null,null,null,null,null,null,"05","ANTIOQUIA","05282","FREDONIA",null,null,null,"ARANZAZU",null,null,"DEFECTUOSO FUNCIONAMIENTO DE LA ADMINISTRACION DE JUSTICIA"]
[null,"No",null,"MÚLTIPLE",null,"Pública",null,null,null,null,null,null,null,null,null,"05","ANTIOQUIA","05284","FRONTINO",null,null,null,"ARATOCA",null,null,"NO RESTITUCION DE BIEN INMUEBLE ARRENDADO"]
[null,null,null,"PSÍQUICA",null,"Privada",null,null,null,null,null,null,null,null,null,"05","ANTIOQUIA","05306","GIRALDO",null,null,null,"ARAUCA",null,null,"NO RECONOCIMIENTO DE INDEMNIZACION SUSTITUTIVA DE PENSION DE VEJEZ"]
[null,null,null,"SENSORIAL",null,null,null,null,null,null,null,null,null,null,null,"05","ANTIOQUIA","05308","GIRARDOTA",null,null,null,"ARAUQUITA",null,null,"ILEGALIDAD DEL ACTO ADMINISTRATIVO QUE CALIFICA LA PERDIDA DE CAPACIDAD LABORAL"]
[null,null,null,"VISCERAL",null,null,null,null,null,null,null,null,null,null,null,"05","ANTIOQUIA","05310","GÓMEZ PLATA",null,null,null,"ARBELÁEZ",null,null,"NO ACEPTACION DE LA RENUNCIA"]
[null,null,null,"N/A",null,null,null,null,null,null,null,null,null,null,null,"05","ANTIOQUIA","05313","GRANADA",null,null,null,"ARBOLEDA",null,null,"DESPIDO SIN JUSTA CAUSA DE TRABAJADOR OFICIAL"]
[null,null,null,null,null,"reunion cc",null,null,null,null,null,null,null,null,null,"05","ANTIOQUIA","05315","GUADALUPE",null,null,null,"ARBOLEDAS",null,null,"NO RECONOCIMIENTO DEL AUXILIO FUNERARIO"]
[null,null,null,"Género",null,1,null,null,null,null,null,null,null,null,null,"05","ANTIOQUIA","05318","GUARNE",null,null,null,"ARBOLETES",null,null,"CAPITALIZACION DE INTERESES"]
[null,null,null,"FEMENINO",null,2,null,null,null,null,null,null,null,null,null,"05","ANTIOQUIA","05321","GUATAPÉ",null,null,null,"ARCABUCO",null,null,"PERJUICIOS OCASIONADOS POR REESTRUCTURACION Y LIQUIDACION DE ENTIDADES DE DERECHO PRIVADO"]
[null,null,null,"MASCULINO",null,3,null,null,null,null,null,null,null,null,null,"05","ANTIOQUIA","05347","HELICONIA",null,null,null,"ARENAL",null,null,"SIMULACION"]
[null,null,null,"NO BINARIO",null,4,null,null,null,null,null,null,null,null,null,"05","ANTIOQUIA","05353","HISPANIA",null,null,null,"ARGELIA",null,null,"PERTURBACION A LA POSESION"]
[null,null,null,"Elija una opción de esta lista desplegable",null,"no aplica"]
[null,null,null,"PREFIERO NO DECIRLO",null,"Elija una opción de esta lista desplegable",null,null,null,null,null,null,null,null,null,"05","ANTIOQUIA","05360","ITAGÜÍ",null,null,null,"ARIGUANÍ",null,null,"INCUMPLIMIENTO EN EL PAGO DE UNA OBLIGACION CON GARANTIA REAL"]
[null,null,null,null,null,null,null,null,null,null,null,null,null,null,null,"05","ANTIOQUIA","05361","ITUANGO",null,null,null,"ARJONA",null,null,"VIOLACION AL REGIMEN JURIDICO DE DERECHOS DE AUTOR"]
[null,null,null,null,null,null,null,null,null,null,null,null,null,null,null,"05","ANTIOQUIA","05364","JARDÍN",null,null,null,"ARMENIA",null,null,"VIOLACION AL REGIMEN JURIDICO DE PROPIEDAD INDUSTRIAL"]
[null,null,null,null,null,null,null,null,null,null,null,null,null,null,null,"05","ANTIOQUIA","05368","JERICÓ",null,null,null,"ARMERO",null,null,"INCUMPLIMIENTO EN PAGO DE OBLIGACION CONTENIDA EN TITULO VALOR"]
[null,null,null,null,null,null,null,null,null,null,null,null,null,null,null,"05","ANTIOQUIA","05376","LA CEJA",null,null,null,"ARROYOHONDO",null,null,"CONTROVERSIAS SOBRE LAUDO ARBITRAL"]
[null,null,null,null,null,null,null,null,null,null,null,null,null,null,null,"05","ANTIOQUIA","05380","LA ESTRELLA",null,null,null,"ASTREA",null,null,"PERJUICIOS OCASIONADOS POR ACTAS DE JUNTA DE SOCIOS"]
[null,null,null,null,null,null,null,null,null,null,null,null,null,null,null,"05","ANTIOQUIA","05390","LA PINTADA",null,null,null,"ATACO",null,null,"INCUMPLIMIENTO EN LA CONSTITUCION DE CONSORCIOS Y/O UNIONES TEMPORALES"]
[null,null,null,null,null,null,null,null,null,null,null,null,null,null,null,"05","ANTIOQUIA","05400","LA UNIÓN",null,null,null,"ATRATO",null,null,"VIOLACION O AMENAZA A LOS DERECHOS DE LOS CONSUMIDORES Y USUARIOS"]
[null,null,null,null,null,null,null,null,null,null,null,null,null,null,null,"05","ANTIOQUIA","05411","LIBORINA",null,null,null,"AYAPEL",null,null,"CONFIGURACION DEL CONTRATO REALIDAD"]
[null,null,null,null,null,null,null,null,null,null,null,null,null,null,null,"05","ANTIOQUIA","05425","MACEO",null,null,null,"BAGADÓ",null,null,"FACTURA EXPEDIDA SIN EL CUMPLIMIENTO DE LOS REQUISITOS LEGALES"]
[null,null,null,null,null,null,null,null,null,null,null,null,null,null,null,"05","ANTIOQUIA","05440","MARINILLA",null,null,null,"BAHÍA SOLANO",null,null,"INCUMPLIMIENTO EN EL PAGO DE SINIESTRO POR ASEGURADORA"]
[null,null,null,null,null,null,null,null,null,null,null,null,null,null,null,"05","ANTIOQUIA","05467","MONTEBELLO",null,null,null,"BAJO BAUDÓ",null,null,"DAÑO O AMENAZA AMBIENTAL POR CONTAMINACION POR OLORES"]
[null,null,null,null,null,null,null,null,null,null,null,null,null,null,null,"05","ANTIOQUIA","05475","MURINDÓ",null,null,null,"BALBOA",null,null,"EXTRACCION ILEGAL DE ORGANOS, TEJIDOS Y HUESOS"]
[null,null,null,null,null,null,null,null,null,null,null,null,null,null,null,"05","ANTIOQUIA","05480","MUTATÁ",null,null,null,"BARANOA",null,null,"LESION ENORME"]
[null,null,null,null,null,null,null,null,null,null,null,null,null,null,null,"05","ANTIOQUIA","05483","NARIÑO",null,null,null,"BARAYA",null,null,"DAÑO O AMENAZA AMBIENTAL POR INDEBIDA DISPOSICION DE DESECHOS HOSPITALARIOS"]
[null,null,null,null,null,null,null,null,null,null,null,null,null,null,null,"05","ANTIOQUIA","05490","NECOCLÍ",null,null,null,"BARBACOAS",null,null,"PERDIDA O DESTRUCCION DE TITULO VALOR"]
[null,null,null,null,null,null,null,null,null,null,null,null,null,null,null,"05","ANTIOQUIA","05495","NECHÍ",null,null,null,"BARBOSA",null,null,"ILEGALIDAD DEL ACTO ADMINISTRATIVO QUE DECLARA LA INSUBSISTENCIA DE FUNCIONARIO EN PROVISIONALIDAD"]
[null,null,null,null,null,null,null,null,null,null,null,null,null,null,null,"05","ANTIOQUIA","05501","OLAYA",null,null,null,"BARICHARA",null,null,"INDEBIDA ADECUACION FISICA DE CONSTRUCCIONES PARA PERSONAS CON ALGUNA DISCAPACIDAD"]
[null,null,null,null,null,null,null,null,null,null,null,null,null,null,null,"05","ANTIOQUIA","05541","PEÑOL",null,null,null,"BARRANCA DE UPÍA",null,null,"INCUMPLIMIENTO EN LA ENTREGA MATERIAL DE BIEN DEL TRADENTE AL ADQUIRENTE"]
[null,null,null,null,null,null,null,null,null,null,null,null,null,null,null,"05","ANTIOQUIA","05543","PEQUE",null,null,null,"BARRANCABERMEJA",null,null,"ILEGALIDAD DEL ACTO ADMINISTRATIVO QUE DECLARA LA OCURRENCIA DEL SINIESTRO Y ORDENA HACER EFECTIVA LA POLIZA"]
[null,null,null,null,null,null,null,null,null,null,null,null,null,null,null,"05","ANTIOQUIA","05576","PUEBLORRICO",null,null,null,"BARRANCAS",null,null,"INCUMPLIMIENTO EN EL PAGO DE LOS CANONES DE ARRENDAMIENTO"]
[null,null,null,null,null,null,null,null,null,null,null,null,null,null,null,"05","ANTIOQUIA","05579","PUERTO BERRÍO",null,null,null,"BARRANCO DE LOBA",null,null,"VIOLACION AL DERECHO DE POSTULACION A UN CARGO DE ELECCION POPULAR"]
[null,null,null,null,null,null,null,null,null,null,null,null,null,null,null,"05","ANTIOQUIA","05585","PUERTO NARE",null,null,null,"BARRANCOMINAS",null,null,"PRESTACION INADECUADA DEL SERVICIO NOTARIAL Y REGISTRAL"]
[null,null,null,null,null,null,null,null,null,null,null,null,null,null,null,"05","ANTIOQUIA","05591","PUERTO TRIUNFO",null,null,null,"BARRANQUILLA",null,null,"VIOLACION A LA PROTECCION DE DATOS PERSONALES"]
[null,null,null,null,null,null,null,null,null,null,null,null,null,null,null,"05","ANTIOQUIA","05604","REMEDIOS",null,null,null,"BECERRIL",null,null,"PRIVACION DE LA LIBERTAD SIN QUE MEDIE MEDIDA DE ASEGURAMIENTO"]
[null,null,null,null,null,null,null,null,null,null,null,null,null,null,null,"05","ANTIOQUIA","05607","RETIRO",null,null,null,"BELALCÁZAR",null,null,"ERROR JUDICIAL"]
[null,null,null,null,null,null,null,null,null,null,null,null,null,null,null,"05","ANTIOQUIA","05615","RIONEGRO",null,null,null,"BELÉN",null,null,"INDEBIDA INCORPORACION DE CONSCRIPTOS"]
[null,null,null,null,null,null,null,null,null,null,null,null,null,null,null,"05","ANTIOQUIA","05628","SABANALARGA",null,null,null,"BELÉN DE LOS ANDAQUÍES",null,null,"LESION A CONSCRIPTO CON ARMA DE DOTACION OFICIAL"]
[null,null,null,null,null,null,null,null,null,null,null,null,null,null,null,"05","ANTIOQUIA","05631","SABANETA",null,null,null,"BELÉN DE UMBRÍA",null,null,"MUERTE DE CONSCRIPTO CON ARMA DE DOTACION OFICIAL"]
[null,null,null,null,null,null,null,null,null,null,null,null,null,null,null,"05","ANTIOQUIA","05642","SALGAR",null,null,null,"BELLO",null,null,"LESION ACCIDENTAL O FORTUITA A CONSCRIPTO"]
[null,null,null,null,null,null,null,null,null,null,null,null,null,null,null,"05","ANTIOQUIA","05647","SAN ANDRÉS DE CUERQUÍA",null,null,null,"BELMIRA",null,null,"MUERTE ACCIDENTAL O FORTUITA A CONSCRIPTO"]
[null,null,null,null,null,null,null,null,null,null,null,null,null,null,null,"05","ANTIOQUIA","05649","SAN CARLOS",null,null,null,"BELTRÁN",null,null,"LESION A MIEMBRO VOLUNTARIO DE LA FUERZA PUBLICA CON ARMA DE DOTACION OFICIAL"]
[null,null,null,null,null,null,null,null,null,null,null,null,null,null,null,"05","ANTIOQUIA","05652","SAN FRANCISCO",null,null,null,"BERBEO",null,null,"MUERTE DE MIEMBRO VOLUNTARIO DE LA FUERZA PUBLICA CON ARMA DE DOTACION OFICIAL"]
[null,null,null,null,null,null,null,null,null,null,null,null,null,null,null,"05","ANTIOQUIA","05656","SAN JERÓNIMO",null,null,null,"BETANIA",null,null,"MUERTE DE CIVIL POR GRUPO ARMADO ILEGAL"]
[null,null,null,null,null,null,null,null,null,null,null,null,null,null,null,"05","ANTIOQUIA","05658","SAN JOSÉ DE LA MONTAÑA",null,null,null,"BETÉITIVA",null,null,"LESION A CIVIL CON ARMA DE DOTACION OFICIAL"]
[null,null,null,null,null,null,null,null,null,null,null,null,null,null,null,"05","ANTIOQUIA","05659","SAN JUAN DE URABÁ",null,null,null,"BETULIA",null,null,"DESAPARICION FORZADA"]
[null,null,null,null,null,null,null,null,null,null,null,null,null,null,null,"05","ANTIOQUIA","05660","SAN LUIS",null,null,null,"BITUIMA",null,null,"ALLANAMIENTO ILEGAL"]
[null,null,null,null,null,null,null,null,null,null,null,null,null,null,null,"05","ANTIOQUIA","05664","SAN PEDRO DE LOS MILAGROS",null,null,null,"BOAVITA",null,null,"PERDIDA O DAÑOS A BIENES INCAUTADOS U OCUPADOS EN PROCESOS PENALES"]
[null,null,null,null,null,null,null,null,null,null,null,null,null,null,null,"05","ANTIOQUIA","05665","SAN PEDRO DE URABÁ",null,null,null,"BOCHALEMA",null,null,"INDEBIDO MANEJO DE CADAVER"]
[null,null,null,null,null,null,null,null,null,null,null,null,null,null,null,"05","ANTIOQUIA","05667","SAN RAFAEL",null,null,null,"BOGOTÁ, D.C.",null,null,"NO PAGO DE RECOMPENSA POR DELACION"]
[null,null,null,null,null,null,null,null,null,null,null,null,null,null,null,"05","ANTIOQUIA","05670","SAN ROQUE",null,null,null,"BOJACÁ",null,null,"RETIRO ILEGAL DE ALUMNO DE ESCUELA DE FORMACION MILITAR"]
[null,null,null,null,null,null,null,null,null,null,null,null,null,null,null,"05","ANTIOQUIA","05674","SAN VICENTE FERRER",null,null,null,"BOJAYÁ",null,null,"MUERTE DE MIEMBRO VOLUNTARIO DE LA FUERZA PUBLICA POR DESCONOCIDOS"]
[null,null,null,null,null,null,null,null,null,null,null,null,null,null,null,"05","ANTIOQUIA","05679","SANTA BÁRBARA",null,null,null,"BOLÍVAR",null,null,"VIOLACION O AMENAZA AL GOCE DEL ESPACIO PUBLICO Y A LA UTILIZACION Y DEFENSA DE BIENES DE USO PUBLICO"]
[null,null,null,null,null,null,null,null,null,null,null,null,null,null,null,"05","ANTIOQUIA","05686","SANTA ROSA DE OSOS",null,null,null,"BOSCONIA",null,null,"INCUMPLIMIENTO DE NORMA JURIDICA"]
[null,null,null,null,null,null,null,null,null,null,null,null,null,null,null,"05","ANTIOQUIA","05690","SANTO DOMINGO",null,null,null,"BOYACÁ",null,null,"VIOLACION O AMENAZA AL PATRIMONIO CULTURAL DE LA NACION"]
[null,null,null,null,null,null,null,null,null,null,null,null,null,null,null,"05","ANTIOQUIA","05697","EL SANTUARIO",null,null,null,"BRICEÑO",null,null,"INDEBIDA PRESTACION DE SERVICIOS PUBLICOS DOMICILIARIOS"]
[null,null,null,null,null,null,null,null,null,null,null,null,null,null,null,"05","ANTIOQUIA","05736","SEGOVIA",null,null,null,"BUCARAMANGA",null,null,"INCUMPLIMIENTO EN EL DEBER DE SEGURIDAD Y PREVENCION DE DESASTRES"]
[null,null,null,null,null,null,null,null,null,null,null,null,null,null,null,"05","ANTIOQUIA","05756","SONSÓN",null,null,null,"BUCARASICA",null,null,"ILEGALIDAD DEL ACTO ADMINISTRATIVO QUE DECRETA LA EXPROPIACION"]
[null,null,null,null,null,null,null,null,null,null,null,null,null,null,null,"05","ANTIOQUIA","05761","SOPETRÁN",null,null,null,"BUENAVENTURA",null,null,"NO RECONOCIMIENTO DE SUBSIDIO FAMILIAR"]
[null,null,null,null,null,null,null,null,null,null,null,null,null,null,null,"05","ANTIOQUIA","05789","TÁMESIS",null,null,null,"BUENAVISTA",null,null,"ILEGALIDAD DEL ACTO ADMINISTRATIVO QUE AUTORIZA O NIEGA UN ASCENSO"]
[null,null,null,null,null,null,null,null,null,null,null,null,null,null,null,"05","ANTIOQUIA","05790","TARAZÁ",null,null,null,"BUENOS AIRES",null,null,"NO RECONOCIMIENTO DE PENSION DE INVALIDEZ"]
[null,null,null,null,null,null,null,null,null,null,null,null,null,null,null,"05","ANTIOQUIA","05792","TARSO",null,null,null,"BUESACO",null,null,"NO RECONOCIMIENTO DE BONO PENSIONAL"]
[null,null,null,null,null,null,null,null,null,null,null,null,null,null,null,"05","ANTIOQUIA","05809","TITIRIBÍ",null,null,null,"BUGALAGRANDE",null,null,"ILEGALIDAD DEL ACTO ADMINISTRATIVO QUE HACE EFECTIVA LA CLAUSULA PENAL PECUNIARIA"]
[null,null,null,null,null,null,null,null,null,null,null,null,null,null,null,"05","ANTIOQUIA","05819","TOLEDO",null,null,null,"BURITICÁ",null,null,"ILEGALIDAD DEL ACTO ADMINISTRATIVO QUE IMPONE MULTA POR INCUMPLIMIENTO DEL CONTRATO"]
[null,null,null,null,null,null,null,null,null,null,null,null,null,null,null,"05","ANTIOQUIA","05837","TURBO",null,null,null,"BUSBANZÁ",null,null,"ILEGALIDAD DEL ACTO ADMINISTRATIVO QUE ADJUDICA UN CONTRATO"]
[null,null,null,null,null,null,null,null,null,null,null,null,null,null,null,"05","ANTIOQUIA","05842","URAMITA",null,null,null,"CABRERA",null,null,"ILEGALIDAD DEL ACTO ADMINISTRATIVO QUE LIQUIDA UN CONTRATO"]
[null,null,null,null,null,null,null,null,null,null,null,null,null,null,null,"05","ANTIOQUIA","05847","URRAO",null,null,null,"CABUYARO",null,null,"ILEGALIDAD DEL ACTO ADMINISTRATIVO QUE DECLARA LA CADUCIDAD CONTRACTUAL"]
[null,null,null,null,null,null,null,null,null,null,null,null,null,null,null,"05","ANTIOQUIA","05854","VALDIVIA",null,null,null,"CACAHUAL",null,null,"EJECUCION DE PRESTACIONES SIN CONTRATO"]
[null,null,null,null,null,null,null,null,null,null,null,null,null,null,null,"05","ANTIOQUIA","05856","VALPARAÍSO",null,null,null,"CÁCERES",null,null,"INCUMPLIMIENTO EN EL PAGO DE PRESTACIONES SOCIALES"]
[null,null,null,null,null,null,null,null,null,null,null,null,null,null,null,"05","ANTIOQUIA","05858","VEGACHÍ",null,null,null,"CACHIPAY",null,null,"COMPETENCIA DESLEAL"]
[null,null,null,null,null,null,null,null,null,null,null,null,null,null,null,"05","ANTIOQUIA","05861","VENECIA",null,null,null,"CÁCHIRA",null,null,"LESION A OPERADOR POR EJECUCION DE OBRA PUBLICA"]
[null,null,null,null,null,null,null,null,null,null,null,null,null,null,null,"05","ANTIOQUIA","05873","VIGÍA DEL FUERTE",null,null,null,"CÁCOTA",null,null,"DESLINDE Y AMOJONAMIENTO"]
[null,null,null,null,null,null,null,null,null,null,null,null,null,null,null,"05","ANTIOQUIA","05885","YALÍ",null,null,null,"CAICEDO",null,null,"SOLICITUD DE LA DIVISION MATERIAL DE BIEN INMUEBLE"]
[null,null,null,null,null,null,null,null,null,null,null,null,null,null,null,"05","ANTIOQUIA","05887","YARUMAL",null,null,null,"CAICEDONIA",null,null,"CONSTITUCION DE SERVIDUMBRE"]
[null,null,null,null,null,null,null,null,null,null,null,null,null,null,null,"05","ANTIOQUIA","05890","YOLOMBÓ",null,null,null,"CAIMITO",null,null,"PRESCRIPCION ADQUISITIVA DE DOMINIO"]
[null,null,null,null,null,null,null,null,null,null,null,null,null,null,null,"05","ANTIOQUIA","05893","YONDÓ",null,null,null,"CAJAMARCA",null,null,"ILEGALIDAD DEL ACTO ADMINISTRATIVO QUE RECONOCE PENSION - ACCION DE LESIVIDAD"]
[null,null,null,null,null,null,null,null,null,null,null,null,null,null,null,"05","ANTIOQUIA","05895","ZARAGOZA",null,null,null,"CAJIBÍO",null,null,"NO RECONOCIMIENTO DE ASIGNACION DE RETIRO"]
[null,null,null,null,null,null,null,null,null,null,null,null,null,null,null,"08","ATLÁNTICO","08001","BARRANQUILLA",null,null,null,"CAJICÁ",null,null,"ILEGALIDAD DEL ACTO ADMINISTRATIVO GENERAL QUE DISPONE LA REESTRUCTURACION O LIQUIDACION LAS ENTIDADES PUBLICAS"]
[null,null,null,null,null,null,null,null,null,null,null,null,null,null,null,"08","ATLÁNTICO","08078","BARANOA",null,null,null,"CALAMAR",null,null,"ILEGALIDAD DEL ACTO ADMINISTRATIVO QUE CONVOCA A CONCURSO PUBLICO DE MERITOS PARA PROVEER CARGOS PUBLICOS"]
[null,null,null,null,null,null,null,null,null,null,null,null,null,null,null,"08","ATLÁNTICO","08137","CAMPO DE LA CRUZ",null,null,null,"CALARCÁ",null,null,"MUERTE DE MIEMBRO VOLUNTARIO DE LA FUERZA PUBLICA EN INSTRUCCION"]
[null,null,null,null,null,null,null,null,null,null,null,null,null,null,null,"08","ATLÁNTICO","08141","CANDELARIA",null,null,null,"CALDAS",null,null,"INCUMPLIMIENTO EN EL PAGO DE MESADA ADICIONAL"]
[null,null,null,null,null,null,null,null,null,null,null,null,null,null,null,"08","ATLÁNTICO","08296","GALAPA",null,null,null,"CALDONO",null,null,"DESMEJORA EN LAS CONDICIONES LABORALES"]
[null,null,null,null,null,null,null,null,null,null,null,null,null,null,null,"08","ATLÁNTICO","08372","JUAN DE ACOSTA",null,null,null,"CALI",null,null,"ILEGALIDAD DEL ACTO ADMINISTRATIVO QUE IMPONE SANCION EN EJERCICIO DEL CONTROL FISCAL"]
[null,null,null,null,null,null,null,null,null,null,null,null,null,null,null,"08","ATLÁNTICO","08421","LURUACO",null,null,null,"CALIFORNIA",null,null,"RETENCION ILEGAL DE BIENES"]
[null,null,null,null,null,null,null,null,null,null,null,null,null,null,null,"08","ATLÁNTICO","08433","MALAMBO",null,null,null,"CALIMA",null,null,"INCONSTITUCIONALIDAD DEL ACTO ADMINISTRATIVO"]
[null,null,null,null,null,null,null,null,null,null,null,null,null,null,null,"08","ATLÁNTICO","08436","MANATÍ",null,null,null,"CALOTO",null,null,"FALTA DE REPARACION INTEGRAL A VICTIMAS DEL CONFLICTO ARMADO INTERNO"]
[null,null,null,null,null,null,null,null,null,null,null,null,null,null,null,"08","ATLÁNTICO","08520","PALMAR DE VARELA",null,null,null,"CAMPAMENTO",null,null,"ACOSO LABORAL"]
[null,null,null,null,null,null,null,null,null,null,null,null,null,null,null,"08","ATLÁNTICO","08549","PIOJÓ",null,null,null,"CAMPO DE LA CRUZ",null,null,"LESION ACCIDENTAL O FORTUITA A MIEMBRO VOLUNTARIO DE LA FUERZA PUBLICA"]
[null,null,null,null,null,null,null,null,null,null,null,null,null,null,null,"08","ATLÁNTICO","08558","POLONUEVO",null,null,null,"CAMPOALEGRE",null,null,"NO RECONOCIMIENTO DE REAJUSTE O NIVELACION SALARIAL"]
[null,null,null,null,null,null,null,null,null,null,null,null,null,null,null,"08","ATLÁNTICO","08560","PONEDERA",null,null,null,"CAMPOHERMOSO",null,null,"NO RECONOCIMIENTO DE DESCANSOS COMPENSATORIOS"]
[null,null,null,null,null,null,null,null,null,null,null,null,null,null,null,"08","ATLÁNTICO","08573","PUERTO COLOMBIA",null,null,null,"CANALETE",null,null,"NO RECONOCIMIENTO DE INDEMNIZACION POR DISMINUCION DE CAPACIDAD LABORAL"]
[null,null,null,null,null,null,null,null,null,null,null,null,null,null,null,"08","ATLÁNTICO","08606","REPELÓN",null,null,null,"CANDELARIA",null,null,"NO RECONOCIMIENTO DE VIATICOS"]
[null,null,null,null,null,null,null,null,null,null,null,null,null,null,null,"08","ATLÁNTICO","08634","SABANAGRANDE",null,null,null,"CANTAGALLO",null,null,"NO RECONOCIMIENTO DE INDEMNIZACION POR MUERTE EN ACCIDENTE DE TRABAJO"]
[null,null,null,null,null,null,null,null,null,null,null,null,null,null,null,"08","ATLÁNTICO","08638","SABANALARGA",null,null,null,"CAÑASGORDAS",null,null,"INCUMPLIMIENTO EN EL PAGO DE APORTES AL SISTEMA DE SEGURIDAD SOCIAL INTEGRAL"]
[null,null,null,null,null,null,null,null,null,null,null,null,null,null,null,"08","ATLÁNTICO","08675","SANTA LUCÍA",null,null,null,"CAPARRAPÍ",null,null,"NO RECONOCIMIENTO DE PENSION DE SOBREVIVIENTE"]
[null,null,null,null,null,null,null,null,null,null,null,null,null,null,null,"08","ATLÁNTICO","08685","SANTO TOMÁS",null,null,null,"CAPITANEJO",null,null,"NO RECONOCIMIENTO DE PRIMA DE ANTIGUEDAD"]
[null,null,null,null,null,null,null,null,null,null,null,null,null,null,null,"08","ATLÁNTICO","08758","SOLEDAD",null,null,null,"CÁQUEZA",null,null,"NO RECONOCIMIENTO DEL TIEMPO DE SERVICIO MILITAR OBLIGATORIO"]
[null,null,null,null,null,null,null,null,null,null,null,null,null,null,null,"08","ATLÁNTICO","08770","SUAN",null,null,null,"CARACOLÍ",null,null,"NO RECONOCIMIENTO DEL SUBSIDIO NOTARIAL"]
[null,null,null,null,null,null,null,null,null,null,null,null,null,null,null,"08","ATLÁNTICO","08832","TUBARÁ",null,null,null,"CARAMANTA",null,null,"SUSTITUCION PATRONAL"]
[null,null,null,null,null,null,null,null,null,null,null,null,null,null,null,"08","ATLÁNTICO","08849","USIACURÍ",null,null,null,"CARCASÍ",null,null,"INCUMPLIMIENTO EN LA ENTREGA DE VIVIENDA DE INTERES SOCIAL"]
[null,null,null,null,null,null,null,null,null,null,null,null,null,null,null,"11","BOGOTÁ, D.C.","11001","BOGOTÁ, D.C.",null,null,null,"CAREPA",null,null,"ENAJENACION DE ACCIONES SIN EL CUMPLIMIENTO DE LOS REQUISITOS LEGALES"]
[null,null,null,null,null,null,null,null,null,null,null,null,null,null,null,"13","BOLÍVAR","13001","CARTAGENA DE INDIAS",null,null,null,"CARMEN DE APICALÁ",null,null,"OMISION DE LAS NORMAS DE SALUD OCUPACIONAL"]
[null,null,null,null,null,null,null,null,null,null,null,null,null,null,null,"13","BOLÍVAR","13006","ACHÍ",null,null,null,"CARMEN DE CARUPA",null,null,"NO RECONOCIMIENTO EN DERECHO DE SUBSIDIOS A LOS USUARIOS DE SERVICIOS PUBLICOS DOMICILIARIOS"]
[null,null,null,null,null,null,null,null,null,null,null,null,null,null,null,"13","BOLÍVAR","13030","ALTOS DEL ROSARIO",null,null,null,"CARMEN DEL DARIÉN",null,null,"ACCIDENTE DE TRABAJO O ENFERMEDAD PROFESIONAL POR CULPA PATRONAL"]
[null,null,null,null,null,null,null,null,null,null,null,null,null,null,null,"13","BOLÍVAR","13042","ARENAL",null,null,null,"CAROLINA",null,null,"INDEBIDA PRESTACION DEL SERVICIO DE CORREO POSTAL"]
[null,null,null,null,null,null,null,null,null,null,null,null,null,null,null,"13","BOLÍVAR","13052","ARJONA",null,null,null,"CARTAGENA DE INDIAS",null,null,"ILEGALIDAD DEL ACTO ADMINISTRATIVO QUE REVOCA, SUSPENDE O NIEGA UN PROGRAMA DE EDUCACION SUPERIOR"]
[null,null,null,null,null,null,null,null,null,null,null,null,null,null,null,"13","BOLÍVAR","13062","ARROYOHONDO",null,null,null,"CARTAGENA DEL CHAIRÁ",null,null,"ILEGALIDAD DEL ACTO ADMINISTRATIVO QUE LIQUIDA LA PENSION - ACCION DE LESIVIDAD"]
[null,null,null,null,null,null,null,null,null,null,null,null,null,null,null,"13","BOLÍVAR","13074","BARRANCO DE LOBA",null,null,null,"CARTAGO",null,null,"ILEGALIDAD DEL ACTO ADMINISTRATIVO QUE SUSPENDE EL PAGO DE LA ASIGNACION DE RETIRO"]
[null,null,null,null,null,null,null,null,null,null,null,null,null,null,null,"13","BOLÍVAR","13140","CALAMAR",null,null,null,"CARURÚ",null,null,"ILEGALIDAD DEL ACTO ADMINISTRATIVO QUE SUSPENDE EL PAGO DE PENSION"]
[null,null,null,null,null,null,null,null,null,null,null,null,null,null,null,"13","BOLÍVAR","13160","CANTAGALLO",null,null,null,"CASABIANCA",null,null,"INCUMPLIMIENTO EN EL PAGO DE APORTES PARAFISCALES"]
[null,null,null,null,null,null,null,null,null,null,null,null,null,null,null,"13","BOLÍVAR","13188","CICUCO",null,null,null,"CASTILLA LA NUEVA",null,null,"INCUMPLIMIENTO EN EL PAGO DE INTERESES SOBRE EL AUXILIO DE CESANTIA"]
[null,null,null,null,null,null,null,null,null,null,null,null,null,null,null,"13","BOLÍVAR","13212","CÓRDOBA",null,null,null,"CAUCASIA",null,null,"LESION A CONSCRIPTO POR EXPLOSION DE MINA ANTIPERSONAL"]
[null,null,null,null,null,null,null,null,null,null,null,null,null,null,null,"13","BOLÍVAR","13222","CLEMENCIA",null,null,null,"CEPITÁ",null,null,"MUERTE DE CONSCRIPTO POR EXPLOSION DE MINA ANTIPERSONAL"]
[null,null,null,null,null,null,null,null,null,null,null,null,null,null,null,"13","BOLÍVAR","13244","EL CARMEN DE BOLÍVAR",null,null,null,"CERETÉ",null,null,"LESION A MIEMBRO VOLUNTARIO DE LA FUERZA PUBLICA POR EXPLOSION DE MINA ANTIPERSONAL"]
[null,null,null,null,null,null,null,null,null,null,null,null,null,null,null,"13","BOLÍVAR","13248","EL GUAMO",null,null,null,"CERINZA",null,null,"MUERTE DE MIEMBRO VOLUNTARIO DE LA FUERZA PUBLICA POR EXPLOSION DE MINA ANTIPERSONAL"]
[null,null,null,null,null,null,null,null,null,null,null,null,null,null,null,"13","BOLÍVAR","13268","EL PEÑÓN",null,null,null,"CERRITO",null,null,"LESION A CIVIL POR GRUPO ARMADO ILEGAL"]
[null,null,null,null,null,null,null,null,null,null,null,null,null,null,null,"13","BOLÍVAR","13300","HATILLO DE LOBA",null,null,null,"CERRO DE SAN ANTONIO",null,null,"DAÑOS CAUSADOS A BIENES POR GRUPO ARMADO ILEGAL"]
[null,null,null,null,null,null,null,null,null,null,null,null,null,null,null,"13","BOLÍVAR","13430","MAGANGUÉ",null,null,null,"CÉRTEGUI",null,null,"LESION A CONSCRIPTO DURANTE INSTRUCCION"]
[null,null,null,null,null,null,null,null,null,null,null,null,null,null,null,"13","BOLÍVAR","13433","MAHATES",null,null,null,"CHACHAGÜÍ",null,null,"LESION A MIEMBRO VOLUNTARIO DE LA FUERZA PUBLICA DURANTE INSTRUCCION"]
[null,null,null,null,null,null,null,null,null,null,null,null,null,null,null,"13","BOLÍVAR","13440","MARGARITA",null,null,null,"CHAGUANÍ",null,null,"INDEBIDA LIQUIDACION DE PRIMA DE ACTIVIDAD"]
[null,null,null,null,null,null,null,null,null,null,null,null,null,null,null,"13","BOLÍVAR","13442","MARÍA LA BAJA",null,null,null,"CHALÁN",null,null,"INCUMPLIMIENTO EN EL PAGO DE AUXILIO DE CESANTIAS"]
[null,null,null,null,null,null,null,null,null,null,null,null,null,null,null,"13","BOLÍVAR","13458","MONTECRISTO",null,null,null,"CHÁMEZA",null,null,"NO RECONOCIMIENTO DE LA BONIFICACION POR COMPENSACION"]
[null,null,null,null,null,null,null,null,null,null,null,null,null,null,null,"13","BOLÍVAR","13468","SANTA CRUZ DE MOMPOX",null,null,null,"CHAPARRAL",null,null,"ACTOS SEXUALES CON MENOR DE CATORCE AÑOS"]
[null,null,null,null,null,null,null,null,null,null,null,null,null,null,null,"13","BOLÍVAR","13473","MORALES",null,null,null,"CHARALÁ",null,null,"DAÑOS A BIENES CON ARMA DE DOTACION OFICIAL"]
[null,null,null,null,null,null,null,null,null,null,null,null,null,null,null,"13","BOLÍVAR","13490","NOROSÍ",null,null,null,"CHARTA",null,null,"DAÑOS CAUSADOS POR MEDIDA DE EXTINCION DE DOMINIO"]
[null,null,null,null,null,null,null,null,null,null,null,null,null,null,null,"13","BOLÍVAR","13549","PINILLOS",null,null,null,"CHÍA",null,null,"CAPTACION ILEGAL DE DINERO"]
[null,null,null,null,null,null,null,null,null,null,null,null,null,null,null,"13","BOLÍVAR","13580","REGIDOR",null,null,null,"CHIGORODÓ",null,null,"NO RECONOCIMIENTO DE REGALIAS"]
[null,null,null,null,null,null,null,null,null,null,null,null,null,null,null,"13","BOLÍVAR","13600","RÍO VIEJO",null,null,null,"CHIMA",null,null,"MUERTE ACCIDENTAL O FORTUITA A MIEMBRO VOLUNTARIO DE LA FUERZA PUBLICA"]
[null,null,null,null,null,null,null,null,null,null,null,null,null,null,null,"13","BOLÍVAR","13620","SAN CRISTÓBAL",null,null,null,"CHIMÁ",null,null,"LESION A TERCERO POR EJECUCION DE OBRA PUBLICA"]
[null,null,null,null,null,null,null,null,null,null,null,null,null,null,null,"13","BOLÍVAR","13647","SAN ESTANISLAO",null,null,null,"CHIMICHAGUA",null,null,"MUERTE DE CONSCRIPTO EN INSTRUCCION"]
[null,null,null,null,null,null,null,null,null,null,null,null,null,null,null,"13","BOLÍVAR","13650","SAN FERNANDO",null,null,null,"CHINÁCOTA",null,null,"MUERTE DE MIEMBRO VOLUNTARIO DE LA FUERZA PUBLICA POR ACTO TERRORISTA"]
[null,null,null,null,null,null,null,null,null,null,null,null,null,null,null,"13","BOLÍVAR","13654","SAN JACINTO",null,null,null,"CHINAVITA",null,null,"LESION A MIEMBRO VOLUNTARIO DE LA FUERZA PUBLICA POR ACTO TERRORISTA"]
[null,null,null,null,null,null,null,null,null,null,null,null,null,null,null,"13","BOLÍVAR","13655","SAN JACINTO DEL CAUCA",null,null,null,"CHINCHINÁ",null,null,"LESION A CONSCRIPTO POR ACTO TERRORISTA"]
[null,null,null,null,null,null,null,null,null,null,null,null,null,null,null,"13","BOLÍVAR","13657","SAN JUAN NEPOMUCENO",null,null,null,"CHINÚ",null,null,"MUERTE DE CONSCRIPTO POR ACTO TERRORISTA"]
[null,null,null,null,null,null,null,null,null,null,null,null,null,null,null,"13","BOLÍVAR","13667","SAN MARTÍN DE LOBA",null,null,null,"CHIPAQUE",null,null,"MUERTE DE TERCERO POR EJECUCION DE OBRA PUBLICA"]
[null,null,null,null,null,null,null,null,null,null,null,null,null,null,null,"13","BOLÍVAR","13670","SAN PABLO",null,null,null,"CHIPATÁ",null,null,"MUERTE DE OPERADOR POR EJECUCION DE OBRA PUBLICA"]
[null,null,null,null,null,null,null,null,null,null,null,null,null,null,null,"13","BOLÍVAR","13673","SANTA CATALINA",null,null,null,"CHIQUINQUIRÁ",null,null,"PAGO DE CONDENA O CONCILIACION POR ACTUACION DOLOSA O GRAVEMENTE CULPOSA DE SERVIDOR O EX SERVIDOR PUBLICO O PARTICULAR EN EJERCICIO DE FUNCIONES PUBLICAS"]
[null,null,null,null,null,null,null,null,null,null,null,null,null,null,null,"13","BOLÍVAR","13683","SANTA ROSA",null,null,null,"CHÍQUIZA",null,null,"ILEGALIDAD DEL ACTO ADMINISTRATIVO QUE IMPONE SANCION A LOS USUARIOS DE SERVICIOS PUBLICOS DOMICILIARIOS"]
[null,null,null,null,null,null,null,null,null,null,null,null,null,null,null,"13","BOLÍVAR","13688","SANTA ROSA DEL SUR",null,null,null,"CHIRIGUANÁ",null,null,"ILEGALIDAD DEL ACTO ADMINISTRATIVO QUE ESTABLECE CUPOS DE COMBUSTIBLE LIBRE DE IMPUESTOS"]
[null,null,null,null,null,null,null,null,null,null,null,null,null,null,null,"13","BOLÍVAR","13744","SIMITÍ",null,null,null,"CHISCAS",null,null,"INDEBIDA CONSTITUCION DE SINDICATO"]
[null,null,null,null,null,null,null,null,null,null,null,null,null,null,null,"13","BOLÍVAR","13760","SOPLAVIENTO",null,null,null,"CHITA",null,null,"DESCUENTO ILEGAL A LA MESADA PENSIONAL"]
[null,null,null,null,null,null,null,null,null,null,null,null,null,null,null,"13","BOLÍVAR","13780","TALAIGUA NUEVO",null,null,null,"CHITAGÁ",null,null,"DESCONOCIMIENTO DE TRASLADO DE REGIMEN PENSIONAL"]
[null,null,null,null,null,null,null,null,null,null,null,null,null,null,null,"13","BOLÍVAR","13810","TIQUISIO",null,null,null,"CHITARAQUE",null,null,"NO RECONOCIMIENTO DE CUOTA PARTE PENSIONAL"]
[null,null,null,null,null,null,null,null,null,null,null,null,null,null,null,"13","BOLÍVAR","13836","TURBACO",null,null,null,"CHIVATÁ",null,null,"INDEBIDA LIQUIDACION DE CUOTA PARTE PENSIONAL"]
[null,null,null,null,null,null,null,null,null,null,null,null,null,null,null,"13","BOLÍVAR","13838","TURBANÁ",null,null,null,"CHIVOLO",null,null,"INDEBIDA LIQUIDACION DE ASIGNACION DE RETIRO"]
[null,null,null,null,null,null,null,null,null,null,null,null,null,null,null,"13","BOLÍVAR","13873","VILLANUEVA",null,null,null,"CHIVOR",null,null,"NO RECONOCIMIENTO DE SUSTITUCION DE LA ASIGNACION DE RETIRO"]
[null,null,null,null,null,null,null,null,null,null,null,null,null,null,null,"13","BOLÍVAR","13894","ZAMBRANO",null,null,null,"CHOACHÍ",null,null,"LESION A MIEMBRO VOLUNTARIO DE LA FUERZA PUBLICA CON VEHICULO OFICIAL"]
[null,null,null,null,null,null,null,null,null,null,null,null,null,null,null,"15","BOYACÁ","15001","TUNJA",null,null,null,"CHOCONTÁ",null,null,"MUERTE DE MIEMBRO VOLUNTARIO DE LA FUERZA PUBLICA CON VEHICULO OFICIAL"]
[null,null,null,null,null,null,null,null,null,null,null,null,null,null,null,"15","BOYACÁ","15022","ALMEIDA",null,null,null,"CICUCO",null,null,"LESION A MIEMBRO VOLUNTARIO DE LA FUERZA PUBLICA CON AERONAVE OFICIAL"]
[null,null,null,null,null,null,null,null,null,null,null,null,null,null,null,"15","BOYACÁ","15047","AQUITANIA",null,null,null,"CIÉNAGA",null,null,"MUERTE DE MIEMBRO VOLUNTARIO DE LA FUERZA PUBLICA CON AERONAVE OFICIAL"]
[null,null,null,null,null,null,null,null,null,null,null,null,null,null,null,"15","BOYACÁ","15051","ARCABUCO",null,null,null,"CIÉNAGA DE ORO",null,null,"LESION A MIEMBRO VOLUNTARIO DE LA FUERZA PUBLICA CON NAVE OFICIAL"]
[null,null,null,null,null,null,null,null,null,null,null,null,null,null,null,"15","BOYACÁ","15087","BELÉN",null,null,null,"CIÉNEGA",null,null,"MUERTE DE MIEMBRO VOLUNTARIO DE LA FUERZA PUBLICA CON NAVE OFICIAL"]
[null,null,null,null,null,null,null,null,null,null,null,null,null,null,null,"15","BOYACÁ","15090","BERBEO",null,null,null,"CIMITARRA",null,null,"LESION A CONSCRIPTO CON VEHICULO OFICIAL"]
[null,null,null,null,null,null,null,null,null,null,null,null,null,null,null,"15","BOYACÁ","15092","BETÉITIVA",null,null,null,"CIRCASIA",null,null,"MUERTE DE CONSCRIPTO CON VEHICULO OFICIAL"]
[null,null,null,null,null,null,null,null,null,null,null,null,null,null,null,"15","BOYACÁ","15097","BOAVITA",null,null,null,"CISNEROS",null,null,"LESION A CONSCRIPTO CON AERONAVE OFICIAL"]
[null,null,null,null,null,null,null,null,null,null,null,null,null,null,null,"15","BOYACÁ","15104","BOYACÁ",null,null,null,"CIUDAD BOLÍVAR",null,null,"MUERTE DE CONSCRIPTO CON AERONAVE OFICIAL"]
[null,null,null,null,null,null,null,null,null,null,null,null,null,null,null,"15","BOYACÁ","15106","BRICEÑO",null,null,null,"CLEMENCIA",null,null,"MUERTE DE CONSCRIPTO CON NAVE OFICIAL"]
[null,null,null,null,null,null,null,null,null,null,null,null,null,null,null,"15","BOYACÁ","15109","BUENAVISTA",null,null,null,"COCORNÁ",null,null,"EXISTENCIA O INEXISTENCIA DEL CONTRATO"]
[null,null,null,null,null,null,null,null,null,null,null,null,null,null,null,"15","BOYACÁ","15114","BUSBANZÁ",null,null,null,"COELLO",null,null,"INCUMPLIMIENTO DE LAS OBLIGACIONES CONSIGNADAS EN EL ACTA DE LIQUIDACION DEL CONTRATO"]
[null,null,null,null,null,null,null,null,null,null,null,null,null,null,null,"15","BOYACÁ","15131","CALDAS",null,null,null,"COGUA",null,null,"INCUMPLIMIENTO DEL ACTO ADMINISTRATIVO QUE LIQUIDA UN CONTRATO"]
[null,null,null,null,null,null,null,null,null,null,null,null,null,null,null,"15","BOYACÁ","15135","CAMPOHERMOSO",null,null,null,"COLOMBIA",null,null,"OMISION EN LAS FUNCIONES DE INSPECCION, VIGILANCIA Y CONTROL"]
[null,null,null,null,null,null,null,null,null,null,null,null,null,null,null,"15","BOYACÁ","15162","CERINZA",null,null,null,"COLÓN",null,null,"ILEGALIDAD DEL ACTO ADMINISTRATIVO QUE NOMBRA FUNCIONARIO PUBLICO DESCONOCIENDO EL REGIMEN DE CARRERA DIPLOMATICA Y CONSULAR"]
[null,null,null,null,null,null,null,null,null,null,null,null,null,null,null,"15","BOYACÁ","15172","CHINAVITA",null,null,null,"COLOSÓ",null,null,"PERJUICIOS OCASIONADOS POR INSTAURAR UN PROCESO JUDICIAL INFUNDADO"]
[null,null,null,null,null,null,null,null,null,null,null,null,null,null,null,"15","BOYACÁ","15176","CHIQUINQUIRÁ",null,null,null,"CÓMBITA",null,null,"NO RECONOCIMIENTO DE LOS TRES (3) MESES DE ALTA ESTABLECIDOS EN EL DECRETO 1214 DE 1990"]
[null,null,null,null,null,null,null,null,null,null,null,null,null,null,null,"15","BOYACÁ","15180","CHISCAS",null,null,null,"CONCEPCIÓN",null,null,"ILEGALIDAD DEL ACTO ADMINISTRATIVO QUE IMPONE SANCION POR PRACTICA RESTRICTIVA DE LA COMPETENCIA"]
[null,null,null,null,null,null,null,null,null,null,null,null,null,null,null,"15","BOYACÁ","15183","CHITA",null,null,null,"CONCORDIA",null,null,"NO RECONOCIMIENTO DE TIEMPO DOBLE DE SERVICIO PRESTADO EN ESTADO DE CONMOCION INTERIOR O DE GUERRA INTERNACIONAL"]
[null,null,null,null,null,null,null,null,null,null,null,null,null,null,null,"15","BOYACÁ","15185","CHITARAQUE",null,null,null,"CONDOTO",null,null,"ILEGALIDAD DEL ACTO ADMINISTRATIVO QUE NIEGA LA HOMOLOGACION O CONVALIDACION DE TITULOS OTORGADOS EN EL EXTRANJERO"]
[null,null,null,null,null,null,null,null,null,null,null,null,null,null,null,"15","BOYACÁ","15187","CHIVATÁ",null,null,null,"CONFINES",null,null,"ILEGALIDAD DEL ACTO ADMINISTRATIVO QUE NOMBRA UN SERVIDOR PUBLICO DESCONOCIENDO EL REGIMEN DE CARRERA NOTARIAL"]
[null,null,null,null,null,null,null,null,null,null,null,null,null,null,null,"15","BOYACÁ","15189","CIÉNEGA",null,null,null,"CONSACÁ",null,null,"INDEBIDA LIQUIDACION DE INDEMNIZACION SUSTITUTIVA DE PENSION DE VEJEZ"]
[null,null,null,null,null,null,null,null,null,null,null,null,null,null,null,"15","BOYACÁ","15204","CÓMBITA",null,null,null,"CONTADERO",null,null,"NO OTORGAMIENTO DE LICENCIA DE FUNCIONAMIENTO"]
[null,null,null,null,null,null,null,null,null,null,null,null,null,null,null,"15","BOYACÁ","15212","COPER",null,null,null,"CONTRATACIÓN",null,null,"ACCESO CARNAL O ACTO SEXUAL CON INCAPAZ DE RESISTIR"]
[null,null,null,null,null,null,null,null,null,null,null,null,null,null,null,"15","BOYACÁ","15215","CORRALES",null,null,null,"CONVENCIÓN",null,null,"ACOSO SEXUAL"]
[null,null,null,null,null,null,null,null,null,null,null,null,null,null,null,"15","BOYACÁ","15218","COVARACHÍA",null,null,null,"COPACABANA",null,null,"ILEGALIDAD DEL ACTO ADMINISTRATIVO QUE IMPONE SANCION POR NO PAGO DE APORTES PARAFISCALES"]
[null,null,null,null,null,null,null,null,null,null,null,null,null,null,null,"15","BOYACÁ","15223","CUBARÁ",null,null,null,"COPER",null,null,"PRESTACION INADECUADA DEL SERVICIO CATASTRAL"]
[null,null,null,null,null,null,null,null,null,null,null,null,null,null,null,"15","BOYACÁ","15224","CUCAITA",null,null,null,"CÓRDOBA",null,null,"ILEGALIDAD DEL ACTO ADMINISTRATIVO QUE NO EFECTUA CORRECCION DE HISTORIA LABORAL"]
[null,null,null,null,null,null,null,null,null,null,null,null,null,null,null,"15","BOYACÁ","15226","CUÍTIVA",null,null,null,"CORINTO",null,null,"FALTA DE MANTENIMIENTO DE BIEN INMUEBLE ARRENDADO"]
[null,null,null,null,null,null,null,null,null,null,null,null,null,null,null,"15","BOYACÁ","15232","CHÍQUIZA",null,null,null,"COROMORO",null,null,"ILEGALIDAD DEL ACTO ADMINISTRATIVO QUE IMPONE SANCION A EMPRESA PRESTADORA DE SERVICIOS PUBLICOS DOMICILIARIOS POR VIOLACION AL ESTATUTO DEL CONSUMIDOR"]
[null,null,null,null,null,null,null,null,null,null,null,null,null,null,null,"15","BOYACÁ","15236","CHIVOR",null,null,null,"COROZAL",null,null,"ILEGALIDAD DEL ACTO ADMINISTRATIVO QUE LIBRA MANDAMIENTO DE PAGO"]
[null,null,null,null,null,null,null,null,null,null,null,null,null,null,null,"15","BOYACÁ","15238","DUITAMA",null,null,null,"CORRALES",null,null,"NO RECONOCIMIENTO DEL INCENTIVO A LA CAPITALIZACION RURAL ESTABLECIDO EN LA LEY 101 DE 1993"]
[null,null,null,null,null,null,null,null,null,null,null,null,null,null,null,"15","BOYACÁ","15244","EL COCUY",null,null,null,"COTA",null,null,"PERJUICIOS OCASIONADOS POR NO EXPEDICION DE DOCUMENTO"]
[null,null,null,null,null,null,null,null,null,null,null,null,null,null,null,"15","BOYACÁ","15248","EL ESPINO",null,null,null,"COTORRA",null,null,"ILEGALIDAD DEL ACTO ADMINISTRATIVO QUE MODIFICA PLANTA DE PERSONAL"]
[null,null,null,null,null,null,null,null,null,null,null,null,null,null,null,"15","BOYACÁ","15272","FIRAVITOBA",null,null,null,"COVARACHÍA",null,null,"INCUMPLIMIENTO DE LA OBLIGACION DE SUSCRIBIR CONTRATO DE SEGURO"]
[null,null,null,null,null,null,null,null,null,null,null,null,null,null,null,"15","BOYACÁ","15276","FLORESTA",null,null,null,"COVEÑAS",null,null,"ILEGALIDAD DEL ACTO ADMINISTRATIVO QUE NIEGA CREACION DE ZONA FRANCA"]
[null,null,null,null,null,null,null,null,null,null,null,null,null,null,null,"15","BOYACÁ","15293","GACHANTIVÁ",null,null,null,"COYAIMA",null,null,"NO SUSCRIPCION DE CONTRATO DE CONCESION PORTUARIA"]
[null,null,null,null,null,null,null,null,null,null,null,null,null,null,null,"15","BOYACÁ","15296","GÁMEZA",null,null,null,"CRAVO NORTE",null,null,"ILEGALIDAD DEL ACTO ADMINISTRATIVO QUE NIEGA CONDONACION DE CREDITO EDUCATIVO"]
[null,null,null,null,null,null,null,null,null,null,null,null,null,null,null,"15","BOYACÁ","15299","GARAGOA",null,null,null,"CUASPUD CARLOSAMA",null,null,"NO RECONOCIMIENTO BONIFICACION MENSUAL PARA LAS MADRES COMUNITARIAS Y SUSTITUTAS"]
[null,null,null,null,null,null,null,null,null,null,null,null,null,null,null,"15","BOYACÁ","15317","GUACAMAYAS",null,null,null,"CUBARÁ",null,null,"ILEGALIDAD DEL ACTO ADMINISTRATIVO QUE IMPONE SANCION POR VIOLACION DE NORMAS DE PROTECCION AMBIENTAL"]
[null,null,null,null,null,null,null,null,null,null,null,null,null,null,null,"15","BOYACÁ","15322","GUATEQUE",null,null,null,"CUBARRAL",null,null,"VOCACION HEREDITARIA DE BIENES"]
[null,null,null,null,null,null,null,null,null,null,null,null,null,null,null,"15","BOYACÁ","15325","GUAYATÁ",null,null,null,"CUCAITA",null,null,"ILEGALIDAD DEL ACTO ADMINISTRATIVO QUE IMPONE SANCION POR VIOLACION DE NORMAS SOBRE CONTRATO DE APRENDIZAJE"]
[null,null,null,null,null,null,null,null,null,null,null,null,null,null,null,"15","BOYACÁ","15332","GÜICÁN DE LA SIERRA",null,null,null,"CUCUNUBÁ",null,null,"NO ACEPTACION DE ENAJENACION VOLUNTARIA DE INMUEBLE AFECTADO A UN PROYECTO DE INFRAESTRUCTURA"]
[null,null,null,null,null,null,null,null,null,null,null,null,null,null,null,"15","BOYACÁ","15362","IZA",null,null,null,"CUCUTILLA",null,null,"LESION A CIVIL CON VEHICULO OFICIAL"]
[null,null,null,null,null,null,null,null,null,null,null,null,null,null,null,"15","BOYACÁ","15367","JENESANO",null,null,null,"CUÍTIVA",null,null,"INDEBIDA PRESTACION DE SERVICIOS FINANCIEROS"]
[null,null,null,null,null,null,null,null,null,null,null,null,null,null,null,"15","BOYACÁ","15368","JERICÓ",null,null,null,"CUMARAL",null,null,"MUERTE DE CIVIL CON VEHICULO OFICIAL"]
[null,null,null,null,null,null,null,null,null,null,null,null,null,null,null,"15","BOYACÁ","15377","LABRANZAGRANDE",null,null,null,"CUMARIBO",null,null,"NO RECONOCIMIENTO DE PENSION FAMILIAR"]
[null,null,null,null,null,null,null,null,null,null,null,null,null,null,null,"15","BOYACÁ","15380","LA CAPILLA",null,null,null,"CUMBAL",null,null,"DESCONOCIMIENTO DEL DERECHO A REUBICACION LABORAL"]
[null,null,null,null,null,null,null,null,null,null,null,null,null,null,null,"15","BOYACÁ","15401","LA VICTORIA",null,null,null,"CUMBITARA",null,null,"RETENCION DE CUOTAS SINDICALES"]
[null,null,null,null,null,null,null,null,null,null,null,null,null,null,null,"15","BOYACÁ","15403","LA UVITA",null,null,null,"CUNDAY",null,null,"REVOCATORIA DE LICENCIA DE FUNCIONAMIENTO"]
[null,null,null,null,null,null,null,null,null,null,null,null,null,null,null,"15","BOYACÁ","15407","VILLA DE LEYVA",null,null,null,"CURILLO",null,null,"ILEGALIDAD DEL ACTO ADMINISTRATIVO QUE DECLARA EL RESULTADO DE UN PROCESO ELECTORAL"]
[null,null,null,null,null,null,null,null,null,null,null,null,null,null,null,"15","BOYACÁ","15425","MACANAL",null,null,null,"CURITÍ",null,null,"NO DEVOLUCION DE APORTES A SALUD DESCONTADOS DE LA PENSION GRACIA"]
[null,null,null,null,null,null,null,null,null,null,null,null,null,null,null,"15","BOYACÁ","15442","MARIPÍ",null,null,null,"CURUMANÍ",null,null,"DESCONOCIMIENTO DEL AMPARO POR RETEN SOCIAL POR CONDICION DE PREPENSIONADO DURANTE LOS PROCESOS DE REESTRUCTURACION Y LIQUIDACION DE ENTIDADES PUBLICAS"]
[null,null,null,null,null,null,null,null,null,null,null,null,null,null,null,"15","BOYACÁ","15455","MIRAFLORES",null,null,null,"DABEIBA",null,null,"DESCONOCIMIENTO DEL AMPARO POR RETEN SOCIAL POR CONDICION DE MADRE O PADRE CABEZA DE FAMILIA DURANTE LOS PROCESOS DE REESTRUCTURACION Y LIQUIDACION DE ENTIDADES PUBLICAS"]
[null,null,null,null,null,null,null,null,null,null,null,null,null,null,null,"15","BOYACÁ","15464","MONGUA",null,null,null,"DAGUA",null,null,"DESCONOCIMIENTO DEL AMPARO POR RETEN SOCIAL POR CONDICION DE PERSONA CON DISCAPACIDAD DURANTE LOS PROCESOS DE REESTRUCTURACION Y LIQUIDACION DE ENTIDADES PUBLICAS"]
[null,null,null,null,null,null,null,null,null,null,null,null,null,null,null,"15","BOYACÁ","15466","MONGUÍ",null,null,null,"DIBULLA",null,null,"NO RECONOCIMIENTO DE DEVOLUCION DE APORTES ENTRE ADMINISTRADORAS DEL SISTEMA DE SEGURIDAD SOCIAL INTEGRAL"]
[null,null,null,null,null,null,null,null,null,null,null,null,null,null,null,"15","BOYACÁ","15469","MONIQUIRÁ",null,null,null,"DISTRACCIÓN",null,null,"VIOLACION AL REGIMEN LEGAL DE INHABILIDADES E INCOMPATIBILIDADES PARA ACCEDER A CARGO DE ELECCION POPULAR"]
[null,null,null,null,null,null,null,null,null,null,null,null,null,null,null,"15","BOYACÁ","15476","MOTAVITA",null,null,null,"DOLORES",null,null,"INCUMPLIMIENTO EN EL PAGO DE SALARIO"]
[null,null,null,null,null,null,null,null,null,null,null,null,null,null,null,"15","BOYACÁ","15480","MUZO",null,null,null,"DONMATÍAS",null,null,"INDEBIDA LIQUIDACION DE INDEMNIZACION POR DESPIDO SIN JUSTA CAUSA"]
[null,null,null,null,null,null,null,null,null,null,null,null,null,null,null,"15","BOYACÁ","15491","NOBSA",null,null,null,"DOSQUEBRADAS",null,null,"ILEGALIDAD DEL ACTO ADMINISTRATIVO QUE IMPONE SANCION POR INFRACCION DE TRANSITO"]
[null,null,null,null,null,null,null,null,null,null,null,null,null,null,null,"15","BOYACÁ","15494","NUEVO COLÓN",null,null,null,"DUITAMA",null,null,"ILEGALIDAD DEL ACTO ADMINISTRATIVO DE LIQUIDACION OFICIAL DE REVISION IMPUESTO DE RENTA Y COMPLEMENTARIOS"]
[null,null,null,null,null,null,null,null,null,null,null,null,null,null,null,"15","BOYACÁ","15500","OICATÁ",null,null,null,"DURANIA",null,null,"ILEGALIDAD DEL ACTO ADMINISTRATIVO DE LIQUIDACION OFICIAL DE REVISION IMPUESTO DE VENTAS"]
[null,null,null,null,null,null,null,null,null,null,null,null,null,null,null,"15","BOYACÁ","15507","OTANCHE",null,null,null,"EBÉJICO",null,null,"ILEGALIDAD DEL ACTO ADMINISTRATIVO DE LIQUIDACION OFICIAL DE REVISION IMPUESTO DE RETENCION EN LA FUENTE"]
[null,null,null,null,null,null,null,null,null,null,null,null,null,null,null,"15","BOYACÁ","15511","PACHAVITA",null,null,null,"EL ÁGUILA",null,null,"ILEGALIDAD DEL ACTO ADMINISTRATIVO DE LIQUIDACION OFICIAL DE REVISION IMPUESTO CREE"]
[null,null,null,null,null,null,null,null,null,null,null,null,null,null,null,"15","BOYACÁ","15514","PÁEZ",null,null,null,"EL BAGRE",null,null,"ILEGALIDAD DEL ACTO ADMINISTRATIVO DE LIQUIDACION OFICIAL DE REVISION IMPUESTO DE RIQUEZA"]
[null,null,null,null,null,null,null,null,null,null,null,null,null,null,null,"15","BOYACÁ","15516","PAIPA",null,null,null,"EL BANCO",null,null,"ILEGALIDAD DEL ACTO ADMINISTRATIVO DE LIQUIDACION OFICIAL DE REVISION IMPUESTO AL PATRIMONIO"]
[null,null,null,null,null,null,null,null,null,null,null,null,null,null,null,"15","BOYACÁ","15518","PAJARITO",null,null,null,"EL CAIRO",null,null,"ILEGALIDAD DEL ACTO ADMINISTRATIVO DE LIQUIDACION OFICIAL DE REVISION IMPUESTO DE SEGURIDAD DEMOCRATICA"]
[null,null,null,null,null,null,null,null,null,null,null,null,null,null,null,"15","BOYACÁ","15522","PANQUEBA",null,null,null,"EL CALVARIO",null,null,"ILEGALIDAD DEL ACTO ADMINISTRATIVO DE LIQUIDACION OFICIAL DE REVISION IMPUESTO AL CONSUMO"]
[null,null,null,null,null,null,null,null,null,null,null,null,null,null,null,"15","BOYACÁ","15531","PAUNA",null,null,null,"EL CANTÓN DEL SAN PABLO",null,null,"ILEGALIDAD DEL ACTO ADMINISTRATIVO DE LIQUIDACION OFICIAL DE CORRECCION IMPUESTO DE RENTA Y COMPLEMENTARIOS"]
[null,null,null,null,null,null,null,null,null,null,null,null,null,null,null,"15","BOYACÁ","15533","PAYA",null,null,null,"EL CARMEN",null,null,"ILEGALIDAD DEL ACTO ADMINISTRATIVO DE LIQUIDACION OFICIAL DE CORRECCION IMPUESTO DE VENTAS"]
[null,null,null,null,null,null,null,null,null,null,null,null,null,null,null,"15","BOYACÁ","15537","PAZ DE RÍO",null,null,null,"EL CARMEN DE ATRATO",null,null,"ILEGALIDAD DEL ACTO ADMINISTRATIVO DE LIQUIDACION OFICIAL DE CORRECCION IMPUESTO DE RETENCION EN LA FUENTE"]
[null,null,null,null,null,null,null,null,null,null,null,null,null,null,null,"15","BOYACÁ","15542","PESCA",null,null,null,"EL CARMEN DE BOLÍVAR",null,null,"ILEGALIDAD DEL ACTO ADMINISTRATIVO DE LIQUIDACION OFICIAL DE CORRECCION IMPUESTO CREE"]
[null,null,null,null,null,null,null,null,null,null,null,null,null,null,null,"15","BOYACÁ","15550","PISBA",null,null,null,"EL CARMEN DE CHUCURÍ",null,null,"ILEGALIDAD DEL ACTO ADMINISTRATIVO DE LIQUIDACION OFICIAL DE CORRECCION IMPUESTO DE RIQUEZA"]
[null,null,null,null,null,null,null,null,null,null,null,null,null,null,null,"15","BOYACÁ","15572","PUERTO BOYACÁ",null,null,null,"EL CARMEN DE VIBORAL",null,null,"ILEGALIDAD DEL ACTO ADMINISTRATIVO DE LIQUIDACION OFICIAL DE CORRECCION IMPUESTO AL PATRIMONIO"]
[null,null,null,null,null,null,null,null,null,null,null,null,null,null,null,"15","BOYACÁ","15580","QUÍPAMA",null,null,null,"EL CASTILLO",null,null,"ILEGALIDAD DEL ACTO ADMINISTRATIVO DE LIQUIDACION OFICIAL DE CORRECCION IMPUESTO DE SEGURIDAD DEMOCRATICA"]
[null,null,null,null,null,null,null,null,null,null,null,null,null,null,null,"15","BOYACÁ","15599","RAMIRIQUÍ",null,null,null,"EL CERRITO",null,null,"ILEGALIDAD DEL ACTO ADMINISTRATIVO DE LIQUIDACION OFICIAL DE CORRECCION IMPUESTO GMF"]
[null,null,null,null,null,null,null,null,null,null,null,null,null,null,null,"15","BOYACÁ","15600","RÁQUIRA",null,null,null,"EL CHARCO",null,null,"ILEGALIDAD DEL ACTO ADMINISTRATIVO DE LIQUIDACION OFICIAL DE AFORO IMPUESTO DE RENTA Y COMPLEMENTARIOS"]
[null,null,null,null,null,null,null,null,null,null,null,null,null,null,null,"15","BOYACÁ","15621","RONDÓN",null,null,null,"EL COCUY",null,null,"ILEGALIDAD DEL ACTO ADMINISTRATIVO DE LIQUIDACION OFICIAL DE AFORO IMPUESTO DE VENTAS"]
[null,null,null,null,null,null,null,null,null,null,null,null,null,null,null,"15","BOYACÁ","15632","SABOYÁ",null,null,null,"EL COLEGIO",null,null,"ILEGALIDAD DEL ACTO ADMINISTRATIVO DE LIQUIDACION OFICIAL DE AFORO IMPUESTO DE RETENCION EN LA FUENTE"]
[null,null,null,null,null,null,null,null,null,null,null,null,null,null,null,"15","BOYACÁ","15638","SÁCHICA",null,null,null,"EL COPEY",null,null,"ILEGALIDAD DEL ACTO ADMINISTRATIVO DE LIQUIDACION OFICIAL DE AFORO IMPUESTO CREE"]
[null,null,null,null,null,null,null,null,null,null,null,null,null,null,null,"15","BOYACÁ","15646","SAMACÁ",null,null,null,"EL DONCELLO",null,null,"ILEGALIDAD DEL ACTO ADMINISTRATIVO DE LIQUIDACION OFICIAL DE AFORO IMPUESTO DE RIQUEZA"]
[null,null,null,null,null,null,null,null,null,null,null,null,null,null,null,"15","BOYACÁ","15660","SAN EDUARDO",null,null,null,"EL DORADO",null,null,"ILEGALIDAD DEL ACTO ADMINISTRATIVO DE LIQUIDACION OFICIAL DE AFORO IMPUESTO AL PATRIMONIO"]
[null,null,null,null,null,null,null,null,null,null,null,null,null,null,null,"15","BOYACÁ","15664","SAN JOSÉ DE PARE",null,null,null,"EL DOVIO",null,null,"ILEGALIDAD DEL ACTO ADMINISTRATIVO DE LIQUIDACION OFICIAL DE AFORO IMPUESTO DE SEGURIDAD DEMOCRATICA"]
[null,null,null,null,null,null,null,null,null,null,null,null,null,null,null,"15","BOYACÁ","15667","SAN LUIS DE GACENO",null,null,null,"EL ENCANTO",null,null,"ILEGALIDAD DEL ACTO ADMINISTRATIVO DE LIQUIDACION OFICIAL DE AFORO IMPUESTO GMF"]
[null,null,null,null,null,null,null,null,null,null,null,null,null,null,null,"15","BOYACÁ","15673","SAN MATEO",null,null,null,"EL ESPINO",null,null,"ILEGALIDAD DEL ACTO ADMINISTRATIVO QUE CLAUSURA ESTABLECIMIENTO DE COMERCIO"]
[null,null,null,null,null,null,null,null,null,null,null,null,null,null,null,"15","BOYACÁ","15676","SAN MIGUEL DE SEMA",null,null,null,"EL GUACAMAYO",null,null,"ILEGALIDAD DEL ACTO ADMINISTRATIVO QUE IMPONE SANCION POR OMISION EN LA OBLIGACION DE LLEVAR LIBROS DE CONTABILIDAD"]
[null,null,null,null,null,null,null,null,null,null,null,null,null,null,null,"15","BOYACÁ","15681","SAN PABLO DE BORBUR",null,null,null,"EL GUAMO",null,null,"ILEGALIDAD DEL ACTO ADMINISTRATIVO QUE IMPONE SANCION A ENTIDADES AUTORIZADAS PARA LA RECEPCION Y RECAUDO DE IMPUESTOS"]
[null,null,null,null,null,null,null,null,null,null,null,null,null,null,null,"15","BOYACÁ","15686","SANTANA",null,null,null,"EL LITORAL DEL SAN JUAN",null,null,"ILEGALIDAD DEL ACTO ADMINISTRATIVO QUE IMPONE SANCION A CONTADORES PUBLICOS"]
[null,null,null,null,null,null,null,null,null,null,null,null,null,null,null,"15","BOYACÁ","15690","SANTA MARÍA",null,null,null,"EL MOLINO",null,null,"ILEGALIDAD DEL ACTO ADMINISTRATIVO QUE IMPONE SANCION POR EXTEMPORANEIDAD EN LA DECLARACION INFORMATIVA DE PRECIOS DE TRANSFERENCIA"]
[null,null,null,null,null,null,null,null,null,null,null,null,null,null,null,"15","BOYACÁ","15693","SANTA ROSA DE VITERBO",null,null,null,"EL PASO",null,null,"ILEGALIDAD DEL ACTO ADMINISTRATIVO QUE IMPONE SANCION POR INCONSISTENCIAS EN LA DECLARACION INFORMATIVA DE PRECIOS DE TRANSFERENCIA"]
[null,null,null,null,null,null,null,null,null,null,null,null,null,null,null,"15","BOYACÁ","15696","SANTA SOFÍA",null,null,null,"EL PAUJÍL",null,null,"ILEGALIDAD DEL ACTO ADMINISTRATIVO QUE IMPONE SANCION POR LA NO PRESENTACION DE LA DECLARACION INFORMATIVA DE PRECIOS DE TRANSFERENCIA"]
[null,null,null,null,null,null,null,null,null,null,null,null,null,null,null,"15","BOYACÁ","15720","SATIVANORTE",null,null,null,"EL PEÑOL",null,null,"ILEGALIDAD DEL ACTO ADMINISTRATIVO QUE IMPONE SANCION POR EXTEMPORANEIDAD EN LA DOCUMENTACION COMPROBATORIA DE PRECIOS DE TRANSFERENCIA"]
[null,null,null,null,null,null,null,null,null,null,null,null,null,null,null,"15","BOYACÁ","15723","SATIVASUR",null,null,null,"EL PEÑÓN",null,null,"ILEGALIDAD DEL ACTO ADMINISTRATIVO QUE IMPONE SANCION POR INCONSISTENCIAS EN LA DOCUMENTACION COMPROBATORIA DE PRECIOS DE TRANSFERENCIA"]
[null,null,null,null,null,null,null,null,null,null,null,null,null,null,null,"15","BOYACÁ","15740","SIACHOQUE",null,null,null,"EL PIÑÓN",null,null,"ILEGALIDAD DEL ACTO ADMINISTRATIVO QUE IMPONE SANCION POR LA NO PRESENTACION DE LA DOCUMENTACION COMPROBATORIA DE PRECIOS DE TRANSFERENCIA"]
[null,null,null,null,null,null,null,null,null,null,null,null,null,null,null,"15","BOYACÁ","15753","SOATÁ",null,null,null,"EL PLAYÓN",null,null,"ILEGALIDAD DEL ACTO ADMINISTRATIVO QUE IMPONE SANCION POR LA NO PRESENTACION DE INFORMACION EXOGENA"]
[null,null,null,null,null,null,null,null,null,null,null,null,null,null,null,"15","BOYACÁ","15755","SOCOTÁ",null,null,null,"EL RETÉN",null,null,"ILEGALIDAD DEL ACTO ADMINISTRATIVO QUE IMPONE SANCION POR EXTEMPORANEIDAD DE LA PRESENTACION DE INFORMACION EXOGENA"]
[null,null,null,null,null,null,null,null,null,null,null,null,null,null,null,"15","BOYACÁ","15757","SOCHA",null,null,null,"EL RETORNO",null,null,"ILEGALIDAD DEL ACTO ADMINISTRATIVO QUE IMPONE SANCION POR INCONSISTENCIAS EN LA PRESENTACION DE INFORMACION EXOGENA"]
[null,null,null,null,null,null,null,null,null,null,null,null,null,null,null,"15","BOYACÁ","15759","SOGAMOSO",null,null,null,"EL ROBLE",null,null,"ILEGALIDAD DEL ACTO ADMINISTRATIVO QUE IMPONE SANCION POR DEVOLUCION O COMPENSACION IMPROCEDENTE"]
[null,null,null,null,null,null,null,null,null,null,null,null,null,null,null,"15","BOYACÁ","15761","SOMONDOCO",null,null,null,"EL ROSAL",null,null,"ILEGALIDAD DEL ACTO ADMINISTRATIVO QUE IMPONE SANCION POR DECLARACION DE PROVEEDOR FICTICIO O INSOLVENTE"]
[null,null,null,null,null,null,null,null,null,null,null,null,null,null,null,"15","BOYACÁ","15762","SORA",null,null,null,"EL ROSARIO",null,null,"ILEGALIDAD DEL ACTO ADMINISTRATIVO QUE IMPONE SANCION POR DECLARACION DE INSOLVENCIA"]
[null,null,null,null,null,null,null,null,null,null,null,null,null,null,null,"15","BOYACÁ","15763","SOTAQUIRÁ",null,null,null,"EL SANTUARIO",null,null,"ILEGALIDAD DEL ACTO ADMINISTRATIVO QUE IMPONE SANCION POR EXTEMPORANEIDAD EN LA INSCRIPCION EN EL REGISTRO NACIONAL DE VENDEDORES"]
[null,null,null,null,null,null,null,null,null,null,null,null,null,null,null,"15","BOYACÁ","15764","SORACÁ",null,null,null,"EL TABLÓN DE GÓMEZ",null,null,"ILEGALIDAD DEL ACTO ADMINISTRATIVO QUE IMPONE SANCION POR LA OMISION EN LA EXPEDICION DE CERTIFICADOS"]
[null,null,null,null,null,null,null,null,null,null,null,null,null,null,null,"15","BOYACÁ","15774","SUSACÓN",null,null,null,"EL TAMBO",null,null,"ILEGALIDAD DEL ACTO ADMINISTRATIVO QUE DECRETA MEDIDAS CAUTELARES"]
[null,null,null,null,null,null,null,null,null,null,null,null,null,null,null,"15","BOYACÁ","15776","SUTAMARCHÁN",null,null,null,"EL TARRA",null,null,"ILEGALIDAD DEL ACTO ADMINISTRATIVO QUE NIEGA O ADMITE REGISTRO DE CONTRATO"]
[null,null,null,null,null,null,null,null,null,null,null,null,null,null,null,"15","BOYACÁ","15778","SUTATENZA",null,null,null,"EL ZULIA",null,null,"ILEGALIDAD DEL ACTO ADMINISTRATIVO QUE NIEGA O ADMITE ACUERDO ANTICIPADO DE PRECIOS"]
[null,null,null,null,null,null,null,null,null,null,null,null,null,null,null,"15","BOYACÁ","15790","TASCO",null,null,null,"ELÍAS",null,null,"ILEGALIDAD DEL ACTO ADMINISTRATIVO QUE NIEGA O ADMITE CONTRATO DE ESTABILIDAD JURIDICA"]
[null,null,null,null,null,null,null,null,null,null,null,null,null,null,null,"15","BOYACÁ","15798","TENZA",null,null,null,"ENCINO",null,null,"ILEGALIDAD DEL ACTO ADMINISTRATIVO QUE NIEGA O APRUEBA FACILIDAD DE PAGO"]
[null,null,null,null,null,null,null,null,null,null,null,null,null,null,null,"15","BOYACÁ","15804","TIBANÁ",null,null,null,"ENCISO",null,null,"ILEGALIDAD DEL ACTO ADMINISTRATIVO QUE DEJA SIN EFECTO FACILIDAD DE PAGO"]
[null,null,null,null,null,null,null,null,null,null,null,null,null,null,null,"15","BOYACÁ","15806","TIBASOSA",null,null,null,"ENTRERRÍOS",null,null,"ILEGALIDAD DEL ACTO ADMINISTRATIVO QUE NIEGA O APRUEBA CONCILIACION"]
[null,null,null,null,null,null,null,null,null,null,null,null,null,null,null,"15","BOYACÁ","15808","TINJACÁ",null,null,null,"ENVIGADO",null,null,"ILEGALIDAD DEL ACTO ADMINISTRATIVO QUE NIEGA O APRUEBA DACION EN PAGO"]
[null,null,null,null,null,null,null,null,null,null,null,null,null,null,null,"15","BOYACÁ","15810","TIPACOQUE",null,null,null,"ESPINAL",null,null,"ILEGALIDAD DEL ACTO ADMINISTRATIVO QUE NIEGA O APRUEBA CRUCE DE CUENTAS"]
[null,null,null,null,null,null,null,null,null,null,null,null,null,null,null,"15","BOYACÁ","15814","TOCA",null,null,null,"FACATATIVÁ",null,null,"ILEGALIDAD DEL ACTO ADMINISTRATIVO QUE DISPONE DECOMISO DE MERCANCIAS"]
[null,null,null,null,null,null,null,null,null,null,null,null,null,null,null,"15","BOYACÁ","15816","TOGÜÍ",null,null,null,"FALAN",null,null,"ILEGALIDAD DEL ACTO ADMINISTRATIVO QUE PROFIERE LIQUIDACION OFICIAL DE REVISION DE VALOR DEL IMPUESTO DE IMPORTACION"]
[null,null,null,null,null,null,null,null,null,null,null,null,null,null,null,"15","BOYACÁ","15820","TÓPAGA",null,null,null,"FILADELFIA",null,null,"ILEGALIDAD DEL ACTO ADMINISTRATIVO QUE NIEGA LIQUIDACION OFICIAL PARA EFECTOS DE DEVOLUCION DE ARANCELES ADUANEROS"]
[null,null,null,null,null,null,null,null,null,null,null,null,null,null,null,"15","BOYACÁ","15822","TOTA",null,null,null,"FILANDIA",null,null,"ILEGALIDAD DEL ACTO ADMINISTRATIVO QUE IMPONE SANCION POR FALTA ADUANERA DE LOS DECLARANTES EN EL REGIMEN DE IMPORTACION"]
[null,null,null,null,null,null,null,null,null,null,null,null,null,null,null,"15","BOYACÁ","15832","TUNUNGUÁ",null,null,null,"FIRAVITOBA",null,null,"ILEGALIDAD DEL ACTO ADMINISTRATIVO QUE IMPONE SANCION POR FALTA ADUANERA DE LOS DECLARANTES EN EL REGIMEN DE EXPORTACION"]
[null,null,null,null,null,null,null,null,null,null,null,null,null,null,null,"15","BOYACÁ","15835","TURMEQUÉ",null,null,null,"FLANDES",null,null,"ILEGALIDAD DEL ACTO ADMINISTRATIVO QUE IMPONE SANCION POR FALTA ADUANERA DE LOS DECLARANTES EN EL REGIMEN DE TRANSITO ADUANERO"]
[null,null,null,null,null,null,null,null,null,null,null,null,null,null,null,"15","BOYACÁ","15837","TUTA",null,null,null,"FLORENCIA",null,null,"ILEGALIDAD DEL ACTO ADMINISTRATIVO QUE IMPONE SANCION POR FALTA ADUANERA DE LOS AGENTES DE ADUANAS"]
[null,null,null,null,null,null,null,null,null,null,null,null,null,null,null,"15","BOYACÁ","15839","TUTAZÁ",null,null,null,"FLORESTA",null,null,"ILEGALIDAD DEL ACTO ADMINISTRATIVO QUE IMPONE SANCION POR FALTA ADUANERA DE LOS USUARIOS ADUANEROS PERMANENTES"]
[null,null,null,null,null,null,null,null,null,null,null,null,null,null,null,"15","BOYACÁ","15842","ÚMBITA",null,null,null,"FLORIÁN",null,null,"ILEGALIDAD DEL ACTO ADMINISTRATIVO QUE IMPONE SANCION POR FALTA ADUANERA DE LOS USUARIOS OPERADORES DE ZONA FRANCA"]
[null,null,null,null,null,null,null,null,null,null,null,null,null,null,null,"15","BOYACÁ","15861","VENTAQUEMADA",null,null,null,"FLORIDA",null,null,"ILEGALIDAD DEL ACTO ADMINISTRATIVO QUE IMPONE SANCION POR FALTA ADUANERA DE LOS USUARIOS INDUSTRIALES Y COMERCIALES DE ZONA FRANCA"]
[null,null,null,null,null,null,null,null,null,null,null,null,null,null,null,"15","BOYACÁ","15879","VIRACACHÁ",null,null,null,"FLORIDABLANCA",null,null,"ILEGALIDAD DEL ACTO ADMINISTRATIVO QUE IMPONE SANCION POR FALTA ADUANERA DE LOS DEPOSITOS PUBLICOS Y PRIVADOS"]
[null,null,null,null,null,null,null,null,null,null,null,null,null,null,null,"15","BOYACÁ","15897","ZETAQUIRA",null,null,null,"FÓMEQUE",null,null,"ILEGALIDAD DEL ACTO ADMINISTRATIVO QUE IMPONE SANCION POR FALTA ADUANERA DE LOS INTERMEDIARIOS DE TRAFICO POSTAL Y ENVIOS URGENTES"]
[null,null,null,null,null,null,null,null,null,null,null,null,null,null,null,"17","CALDAS","17001","MANIZALES",null,null,null,"FONSECA",null,null,"ILEGALIDAD DEL ACTO ADMINISTRATIVO QUE IMPONE SANCION POR FALTA ADUANERA DE LOS TRANSPORTADORES"]
[null,null,null,null,null,null,null,null,null,null,null,null,null,null,null,"17","CALDAS","17013","AGUADAS",null,null,null,"FORTUL",null,null,"ILEGALIDAD DEL ACTO ADMINISTRATIVO QUE IMPONE SANCION POR FALTA ADUANERA DE LOS AGENTES DE CARGA INTERNACIONAL"]
[null,null,null,null,null,null,null,null,null,null,null,null,null,null,null,"17","CALDAS","17042","ANSERMA",null,null,null,"FOSCA",null,null,"ILEGALIDAD DEL ACTO ADMINISTRATIVO QUE IMPONE SANCION POR FALTA ADUANERA EN MATERIA DE VALORACION DE MERCANCIAS"]
[null,null,null,null,null,null,null,null,null,null,null,null,null,null,null,"17","CALDAS","17050","ARANZAZU",null,null,null,"FRANCISCO PIZARRO",null,null,"CADUCIDAD DE LA ACCION SANCIONATORIA ADUANERA"]
[null,null,null,null,null,null,null,null,null,null,null,null,null,null,null,"17","CALDAS","17088","BELALCÁZAR",null,null,null,"FREDONIA",null,null,"ILEGALIDAD DEL ACTO ADMINISTRATIVO QUE NIEGA EL RECONOCIMIENTO E INSCRIPCION O RENOVACION DE LOS USUARIOS ADUANEROS PERMANENTES"]
[null,null,null,null,null,null,null,null,null,null,null,null,null,null,null,"17","CALDAS","17174","CHINCHINÁ",null,null,null,"FRESNO",null,null,"ILEGALIDAD DEL ACTO ADMINISTRATIVO QUE NIEGA LA HABILITACION DE LUGARES PARA EL INGRESO Y SALIDA DE MERCANCIAS BAJO CONTROL ADUANERO"]
[null,null,null,null,null,null,null,null,null,null,null,null,null,null,null,"17","CALDAS","17272","FILADELFIA",null,null,null,"FRONTINO",null,null,"ILEGALIDAD DEL ACTO ADMINISTRATIVO QUE NIEGA LA AUTORIZACION COMO DEPOSITO PUBLICO O PRIVADO DE MERCANCIAS BAJO CONTROL ADUANERO"]
[null,null,null,null,null,null,null,null,null,null,null,null,null,null,null,"17","CALDAS","17380","LA DORADA",null,null,null,"FUENTE DE ORO",null,null,"ILEGALIDAD DEL ACTO ADMINISTRATIVO QUE NIEGA LA DEVOLUCION O COMPENSACION DE OBLIGACIONES ADUANERAS"]
[null,null,null,null,null,null,null,null,null,null,null,null,null,null,null,"17","CALDAS","17388","LA MERCED",null,null,null,"FUNDACIÓN",null,null,"ILEGALIDAD DEL ACTO ADMINISTRATIVO QUE EFECTUA CLASIFICACION ARANCELARIA MERCANCIAS"]
[null,null,null,null,null,null,null,null,null,null,null,null,null,null,null,"17","CALDAS","17433","MANZANARES",null,null,null,"FUNES",null,null,"OMISION EN LA DEVOLUCION OPORTUNA DE TRIBUTOS ADUANEROS PAGADOS EN EXCESO"]
[null,null,null,null,null,null,null,null,null,null,null,null,null,null,null,"17","CALDAS","17442","MARMATO",null,null,null,"FUNZA",null,null,"APREHENSION ILEGAL DE MERCANCIAS"]
[null,null,null,null,null,null,null,null,null,null,null,null,null,null,null,"17","CALDAS","17444","MARQUETALIA",null,null,null,"FÚQUENE",null,null,"ILEGALIDAD DEL ACTO ADMINISTRATIVO QUE DESVINCULA A SUPERNUMERARIO"]
[null,null,null,null,null,null,null,null,null,null,null,null,null,null,null,"17","CALDAS","17446","MARULANDA",null,null,null,"FUSAGASUGÁ",null,null,"ILEGALIDAD DEL ACTO ADMINISTRATIVO QUE NIEGA INSCRIPCION DE FUNCIONARIO EN EL REGISTRO PUBLICO DE CARRERA ADMINISTRATIVA"]
[null,null,null,null,null,null,null,null,null,null,null,null,null,null,null,"17","CALDAS","17486","NEIRA",null,null,null,"GACHALÁ",null,null,"CAUSA DIAN POR DEFINIR"]
[null,null,null,null,null,null,null,null,null,null,null,null,null,null,null,"17","CALDAS","17495","NORCASIA",null,null,null,"GACHANCIPÁ",null,null,"EXCESO EN EL COBRO DE INTERESES"]
[null,null,null,null,null,null,null,null,null,null,null,null,null,null,null,"17","CALDAS","17513","PÁCORA",null,null,null,"GACHANTIVÁ",null,null,"ILEGALIDAD DEL ACTO ADMINISTRATIVO QUE DEFINE AVALUO CATASTRAL"]
[null,null,null,null,null,null,null,null,null,null,null,null,null,null,null,"17","CALDAS","17524","PALESTINA",null,null,null,"GACHETÁ",null,null,"HACINAMIENTO CARCELARIO"]
[null,null,null,null,null,null,null,null,null,null,null,null,null,null,null,"17","CALDAS","17541","PENSILVANIA",null,null,null,"GALÁN",null,null,"MUERTE DE MIEMBRO VOLUNTARIO DE LA FUERZA PUBLICA EN ENFRENTAMIENTO ENTRE TROPAS"]
[null,null,null,null,null,null,null,null,null,null,null,null,null,null,null,"17","CALDAS","17614","RIOSUCIO",null,null,null,"GALAPA",null,null,"VIOLACION O AMENAZA AL GOCE DE UN AMBIENTE SANO"]
[null,null,null,null,null,null,null,null,null,null,null,null,null,null,null,"17","CALDAS","17616","RISARALDA",null,null,null,"GALERAS",null,null,"ILEGALIDAD DEL ACTO ADMINISTRATIVO QUE NIEGA EXPEDICION DE HOJA DE SERVICIOS"]
[null,null,null,null,null,null,null,null,null,null,null,null,null,null,null,"17","CALDAS","17653","SALAMINA",null,null,null,"GAMA",null,null,"MUERTE DE MIEMBRO VOLUNTARIO DE LA FUERZA PUBLICA CON ARMA DE USO PERSONAL"]
[null,null,null,null,null,null,null,null,null,null,null,null,null,null,null,"17","CALDAS","17662","SAMANÁ",null,null,null,"GAMARRA",null,null,"PERDIDA DE POSESION O TENENCIA DE BIEN"]
[null,null,null,null,null,null,null,null,null,null,null,null,null,null,null,"17","CALDAS","17665","SAN JOSÉ",null,null,null,"GÁMBITA",null,null,"DIVISION DE LA COSA COMUN POR PARTE DE COMUNEROS O COPROPIETARIOS"]
[null,null,null,null,null,null,null,null,null,null,null,null,null,null,null,"17","CALDAS","17777","SUPÍA",null,null,null,"GÁMEZA",null,null,"ILEGALIDAD DEL ACTO ADMINISTRATIVO QUE NIEGA PERMISO PARA PORTE O TENENCIA DE ARMAS"]
[null,null,null,null,null,null,null,null,null,null,null,null,null,null,null,"17","CALDAS","17867","VICTORIA",null,null,null,"GARAGOA",null,null,"ILEGALIDAD DEL ACTO ADMINISTRATIVO QUE NIEGA FINANCIACION DE ESTUDIOS"]
[null,null,null,null,null,null,null,null,null,null,null,null,null,null,null,"17","CALDAS","17873","VILLAMARÍA",null,null,null,"GARZÓN",null,null,"DENEGACION DE PETICION DE EXTENSION DE JURISPRUDENCIA"]
[null,null,null,null,null,null,null,null,null,null,null,null,null,null,null,"17","CALDAS","17877","VITERBO",null,null,null,"GÉNOVA",null,null,"DESCUENTO DE NOMINA NO AUTORIZADO"]
[null,null,null,null,null,null,null,null,null,null,null,null,null,null,null,"18","CAQUETÁ","18001","FLORENCIA",null,null,null,"GIGANTE",null,null,"ILEGALIDAD DEL ACTO ADMINISTRATIVO QUE NOMBRA FUNCIONARIO PUBLICO DESCONOCIENDO EL REGIMEN DE CARRERA JUDICIAL"]
[null,null,null,null,null,null,null,null,null,null,null,null,null,null,null,"18","CAQUETÁ","18029","ALBANIA",null,null,null,"GINEBRA",null,null,"ILEGALIDAD DEL ACTO ADMINISTRATIVO QUE NOMBRA FUNCIONARIO PUBLICO DESCONOCIENDO EL REGIMEN DE CARRERA ADMINISTRATIVA"]
[null,null,null,null,null,null,null,null,null,null,null,null,null,null,null,"18","CAQUETÁ","18094","BELÉN DE LOS ANDAQUÍES",null,null,null,"GIRALDO",null,null,"VIA DE HECHO DE LA ADMINISTRACION"]
[null,null,null,null,null,null,null,null,null,null,null,null,null,null,null,"18","CAQUETÁ","18150","CARTAGENA DEL CHAIRÁ",null,null,null,"GIRARDOT",null,null,"ILEGALIDAD DEL ACTO ADMINISTRATIVO QUE REGULA LOS SERVICIOS PUBLICOS DE ENERGIA, GAS NATURAL, GLP Y COMBUSTIBLES LIQUIDOS"]
[null,null,null,null,null,null,null,null,null,null,null,null,null,null,null,"18","CAQUETÁ","18205","CURILLO",null,null,null,"GIRARDOTA",null,null,"ILEGALIDAD DEL ACTO ADMINISTRATIVO QUE APRUEBA TARIFAS DE ENERGIA Y GAS COMBUSTIBLE"]
[null,null,null,null,null,null,null,null,null,null,null,null,null,null,null,"18","CAQUETÁ","18247","EL DONCELLO",null,null,null,"GIRÓN",null,null,"DESPOJO JURIDICO Y MATERIAL DE TIERRAS"]
[null,null,null,null,null,null,null,null,null,null,null,null,null,null,null,"18","CAQUETÁ","18256","EL PAUJÍL",null,null,null,"GÓMEZ PLATA",null,null,"PERJUICIOS OCASIONADOS POR DECLARATORIA DE ZONA DE RESERVA FORESTAL"]
[null,null,null,null,null,null,null,null,null,null,null,null,null,null,null,"18","CAQUETÁ","18410","LA MONTAÑITA",null,null,null,"GONZÁLEZ",null,null,"ILEGALIDAD DEL ACTO ADMINISTRATIVO QUE IMPONE SANCION POR VIOLACION DE NORMAS DE DERECHO LABORAL INDIVIDUAL"]
[null,null,null,null,null,null,null,null,null,null,null,null,null,null,null,"18","CAQUETÁ","18460","MILÁN",null,null,null,"GRAMALOTE",null,null,"ILEGALIDAD DEL ACTO ADMINISTRATIVO QUE IMPONE SANCION POR VIOLACION DE NORMAS DE DERECHO LABORAL COLECTIVO"]
[null,null,null,null,null,null,null,null,null,null,null,null,null,null,null,"18","CAQUETÁ","18479","MORELIA",null,null,null,"GRANADA",null,null,"ILEGALIDAD DEL ACTO ADMINISTRATIVO QUE IMPONE SANCION POR VIOLACION DE NORMAS DEL SISTEMA DE SEGURIDAD SOCIAL INTEGRAL"]
[null,null,null,null,null,null,null,null,null,null,null,null,null,null,null,"18","CAQUETÁ","18592","PUERTO RICO",null,null,null,"GUACA",null,null,"CUMPLIMIENTO DE REQUISITOS LEGALES PARA LEVANTAMIENTO DE FUERO SINDICAL"]
[null,null,null,null,null,null,null,null,null,null,null,null,null,null,null,"18","CAQUETÁ","18610","SAN JOSÉ DEL FRAGUA",null,null,null,"GUACAMAYAS",null,null,"INCUMPLIMIENTO EN EL PAGO DE CUOTAS DE COPROPIEDAD"]
[null,null,null,null,null,null,null,null,null,null,null,null,null,null,null,"18","CAQUETÁ","18753","SAN VICENTE DEL CAGUÁN",null,null,null,"GUACARÍ",null,null,"ILEGALIDAD DEL ACTO ADMINISTRATIVO QUE NIEGA LA DEVOLUCION O COMPENSACION DE OBLIGACIONES TRIBUTARIAS"]
[null,null,null,null,null,null,null,null,null,null,null,null,null,null,null,"18","CAQUETÁ","18756","SOLANO",null,null,null,"GUACHENÉ",null,null,"SUBROGACION DE LOS DERECHOS DEL ASEGURADO POR RESPONSABILIDAD EN SINIESTRO"]
[null,null,null,null,null,null,null,null,null,null,null,null,null,null,null,"18","CAQUETÁ","18785","SOLITA",null,null,null,"GUACHETÁ",null,null,"ILEGALIDAD DEL ACTO ADMINISTRATIVO QUE ORDENA LA DEVOLUCION DE VALORES POR REINTEGRO AL SERVICIO ACTIVO"]
[null,null,null,null,null,null,null,null,null,null,null,null,null,null,null,"18","CAQUETÁ","18860","VALPARAÍSO",null,null,null,"GUACHUCAL",null,null,"ILEGALIDAD DEL ACTO ADMINISTRATIVO QUE IMPONE SANCIONES DERIVADAS DE LA FACULTAD DE INSPECCION, VIGILANCIA Y CONTROL"]
[null,null,null,null,null,null,null,null,null,null,null,null,null,null,null,"19","CAUCA","19001","POPAYÁN",null,null,null,"GUADALAJARA DE BUGA",null,null,"RECLAMACIONES SOBRE ASPECTOS SIN SALVEDADES EN EL ACTA DE LIQUIDACION"]
[null,null,null,null,null,null,null,null,null,null,null,null,null,null,null,"19","CAUCA","19022","ALMAGUER",null,null,null,"GUADALUPE",null,null,"ILEGALIDAD DEL ACTO ADMINISTRATIVO QUE DECLARA EL INCUMPLIMIENTO DEL CONTRATO"]
[null,null,null,null,null,null,null,null,null,null,null,null,null,null,null,"19","CAUCA","19050","ARGELIA",null,null,null,"GUADUAS",null,null,"INCUMPLIMIENTO DE LA OBLIGACION DE CONSTITUCION DE GARANTIAS CONTRACTUALES"]
[null,null,null,null,null,null,null,null,null,null,null,null,null,null,null,"19","CAUCA","19075","BALBOA",null,null,null,"GUAITARILLA",null,null,"INCUMPLIMIENTO DEL CONTRATO POR EJECUCION PARCIAL DE PRESTACIONES"]
[null,null,null,null,null,null,null,null,null,null,null,null,null,null,null,"19","CAUCA","19100","BOLÍVAR",null,null,null,"GUALMATÁN",null,null,"INCUMPLIMIENTO DEL CONTRATO POR EJECUCION TARDIA DE PRESTACIONES"]
[null,null,null,null,null,null,null,null,null,null,null,null,null,null,null,"19","CAUCA","19110","BUENOS AIRES",null,null,null,"GUAMAL",null,null,"INCUMPLIMIENTO DEL CONTRATO POR INDEBIDA INTERPRETACION"]
[null,null,null,null,null,null,null,null,null,null,null,null,null,null,null,"19","CAUCA","19130","CAJIBÍO",null,null,null,"GUAMO",null,null,"INCUMPLIMIENTO DEL CONTRATO POR NO EJECUCION DE PRESTACIONES"]
[null,null,null,null,null,null,null,null,null,null,null,null,null,null,null,"19","CAUCA","19137","CALDONO",null,null,null,"GUAPI",null,null,"INCUMPLIMIENTO DEL CONTRATO POR VIOLACION DEL PRINCIPIO DE PLANEACION POR PARTE DE LA ENTIDAD CONTRATANTE"]
[null,null,null,null,null,null,null,null,null,null,null,null,null,null,null,"19","CAUCA","19142","CALOTO",null,null,null,"GUAPOTÁ",null,null,"INCUMPLIMIENTO DEL CONTRATO POR VIOLACION DEL PRINCIPIO DE PLANEACION POR PARTE DEL CONTRATISTA"]
[null,null,null,null,null,null,null,null,null,null,null,null,null,null,null,"19","CAUCA","19212","CORINTO",null,null,null,"GUARANDA",null,null,"REDUCCION DE LA CLAUSULA PENAL POR INCUMPLIMIENTO PARCIAL"]
[null,null,null,null,null,null,null,null,null,null,null,null,null,null,null,"19","CAUCA","19256","EL TAMBO",null,null,null,"GUARNE",null,null,"DESEQUILIBRIO ECONOMICO DEL CONTRATO POR ACTOS O HECHOS DE LA ENTIDAD CONTRATANTE"]
[null,null,null,null,null,null,null,null,null,null,null,null,null,null,null,"19","CAUCA","19290","FLORENCIA",null,null,null,"GUASCA",null,null,"DESEQUILIBRIO ECONOMICO DEL CONTRATO POR ACTOS O HECHOS DEL CONTRATISTA"]
[null,null,null,null,null,null,null,null,null,null,null,null,null,null,null,"19","CAUCA","19300","GUACHENÉ",null,null,null,"GUATAPÉ",null,null,"DESEQUILIBRIO ECONOMICO DEL CONTRATO POR EL HECHO DEL PRINCIPE"]
[null,null,null,null,null,null,null,null,null,null,null,null,null,null,null,"19","CAUCA","19318","GUAPI",null,null,null,"GUATAQUÍ",null,null,"DESEQUILIBRIO ECONOMICO DEL CONTRATO POR TEORIA DE LA IMPREVISION"]
[null,null,null,null,null,null,null,null,null,null,null,null,null,null,null,"19","CAUCA","19355","INZÁ",null,null,null,"GUATAVITA",null,null,"NULIDAD ABSOLUTA DEL CONTRATO ESTATAL"]
[null,null,null,null,null,null,null,null,null,null,null,null,null,null,null,"19","CAUCA","19364","JAMBALÓ",null,null,null,"GUATEQUE",null,null,"NULIDAD RELATIVA DEL CONTRATO ESTATAL"]
[null,null,null,null,null,null,null,null,null,null,null,null,null,null,null,"19","CAUCA","19392","LA SIERRA",null,null,null,"GUÁTICA",null,null,"EXTENSION DE LAS GARANTIAS CONTRACTUALES"]
[null,null,null,null,null,null,null,null,null,null,null,null,null,null,null,"19","CAUCA","19397","LA VEGA",null,null,null,"GUAVATÁ",null,null,"ILEGALIDAD DEL ACTO ADMINISTRATIVO QUE DECLARA LA TERMINACION UNILATERAL DEL CONTRATO"]
[null,null,null,null,null,null,null,null,null,null,null,null,null,null,null,"19","CAUCA","19418","LÓPEZ DE MICAY",null,null,null,"GUAYABAL DE SÍQUIMA",null,null,"MAYOR PERMANENCIA DE OBRA"]
[null,null,null,null,null,null,null,null,null,null,null,null,null,null,null,"19","CAUCA","19450","MERCADERES",null,null,null,"GUAYABETAL",null,null,"MAYORES CANTIDADES, SOBRECOSTOS Y OBRAS ADICIONALES EN CONTRATO DE OBRA A PRECIO GLOBAL"]
[null,null,null,null,null,null,null,null,null,null,null,null,null,null,null,"19","CAUCA","19455","MIRANDA",null,null,null,"GUAYATÁ",null,null,"MAYORES CANTIDADES, SOBRECOSTOS Y OBRAS ADICIONALES EN CONTRATO DE OBRA A PRECIO UNITARIO"]
[null,null,null,null,null,null,null,null,null,null,null,null,null,null,null,"19","CAUCA","19473","MORALES",null,null,null,"GÜEPSA",null,null,"MAYORES CANTIDADES, SOBRECOSTOS Y OBRAS ADICIONALES POR EVENTO DE FUERZA MAYOR"]
[null,null,null,null,null,null,null,null,null,null,null,null,null,null,null,"19","CAUCA","19513","PADILLA",null,null,null,"GÜICÁN DE LA SIERRA",null,null,"MODIFICACION Y/O REVISION DE LAS PRESTACIONES CONTRACTUALES"]
[null,null,null,null,null,null,null,null,null,null,null,null,null,null,null,"19","CAUCA","19517","PÁEZ",null,null,null,"GUTIÉRREZ",null,null,"MODIFICACION Y/O REVISION DEL PLAZO CONTRACTUAL"]
[null,null,null,null,null,null,null,null,null,null,null,null,null,null,null,"19","CAUCA","19532","PATÍA",null,null,null,"HACARÍ",null,null,"ILEGALIDAD DEL ACTO ADMINISTRATIVO QUE INTERPRETA UNILATERALMENTE EL CONTRATO"]
[null,null,null,null,null,null,null,null,null,null,null,null,null,null,null,"19","CAUCA","19533","PIAMONTE",null,null,null,"HATILLO DE LOBA",null,null,"EJECUCIONES EXTRAJUDICIALES PERPETRADAS POR AGENTES DEL ESTADO"]
[null,null,null,null,null,null,null,null,null,null,null,null,null,null,null,"19","CAUCA","19548","PIENDAMÓ - TUNÍA",null,null,null,"HATO",null,null,"EJECUCIONES EXTRAJUDICIALES PERPETRADAS POR TERCEROS CON PARTICIPACION DE AGENTES DEL ESTADO"]
[null,null,null,null,null,null,null,null,null,null,null,null,null,null,null,"19","CAUCA","19573","PUERTO TEJADA",null,null,null,"HATO COROZAL",null,null,"DAÑOS A BIENES CON VEHICULO OFICIAL"]
[null,null,null,null,null,null,null,null,null,null,null,null,null,null,null,"19","CAUCA","19585","PURACÉ",null,null,null,"HATONUEVO",null,null,"LESION A CIVIL CON AERONAVE OFICIAL"]
[null,null,null,null,null,null,null,null,null,null,null,null,null,null,null,"19","CAUCA","19622","ROSAS",null,null,null,"HELICONIA",null,null,"MUERTE DE CIVIL CON AERONAVE OFICIAL"]
[null,null,null,null,null,null,null,null,null,null,null,null,null,null,null,"19","CAUCA","19693","SAN SEBASTIÁN",null,null,null,"HERRÁN",null,null,"DAÑOS A BIENES CON AERONAVE OFICIAL"]
[null,null,null,null,null,null,null,null,null,null,null,null,null,null,null,"19","CAUCA","19698","SANTANDER DE QUILICHAO",null,null,null,"HERVEO",null,null,"LESION A CIVIL CON NAVE OFICIAL"]
[null,null,null,null,null,null,null,null,null,null,null,null,null,null,null,"19","CAUCA","19701","SANTA ROSA",null,null,null,"HISPANIA",null,null,"MUERTE DE CIVIL CON NAVE OFICIAL"]
[null,null,null,null,null,null,null,null,null,null,null,null,null,null,null,"19","CAUCA","19743","SILVIA",null,null,null,"HOBO",null,null,"DAÑOS A BIENES CON NAVE OFICIAL"]
[null,null,null,null,null,null,null,null,null,null,null,null,null,null,null,"19","CAUCA","19760","SOTARÁ PAISPAMBA",null,null,null,"HONDA",null,null,"LESION AUTO INFLIGIDA DE CONSCRIPTO"]
[null,null,null,null,null,null,null,null,null,null,null,null,null,null,null,"19","CAUCA","19780","SUÁREZ",null,null,null,"IBAGUÉ",null,null,"MUERTE AUTO INFLIGIDA DE CONSCRIPTO"]
[null,null,null,null,null,null,null,null,null,null,null,null,null,null,null,"19","CAUCA","19785","SUCRE",null,null,null,"ICONONZO",null,null,"LESION A CONSCRIPTO CON NAVE OFICIAL"]
[null,null,null,null,null,null,null,null,null,null,null,null,null,null,null,"19","CAUCA","19807","TIMBÍO",null,null,null,"ILES",null,null,"LESION A CONSCRIPTO DERIVADA DE LA PRESTACION DEL SERVICIO DE SALUD"]
[null,null,null,null,null,null,null,null,null,null,null,null,null,null,null,"19","CAUCA","19809","TIMBIQUÍ",null,null,null,"IMUÉS",null,null,"MUERTE DE CONSCRIPTO DERIVADA DE LA PRESTACION DEL SERVICIO DE SALUD"]
[null,null,null,null,null,null,null,null,null,null,null,null,null,null,null,"19","CAUCA","19821","TORIBÍO",null,null,null,"INÍRIDA",null,null,"LESION A CONSCRIPTO EN OPERATIVO MILITAR"]
[null,null,null,null,null,null,null,null,null,null,null,null,null,null,null,"19","CAUCA","19824","TOTORÓ",null,null,null,"INZÁ",null,null,"MUERTE DE CONSCRIPTO EN OPERATIVO MILITAR"]
[null,null,null,null,null,null,null,null,null,null,null,null,null,null,null,"19","CAUCA","19845","VILLA RICA",null,null,null,"IPIALES",null,null,"LESION A CONSCRIPTO EN COMBATE O ENFRENTAMIENTO"]
[null,null,null,null,null,null,null,null,null,null,null,null,null,null,null,"20","CESAR","20001","VALLEDUPAR",null,null,null,"ÍQUIRA",null,null,"MUERTE DE CONSCRIPTO EN COMBATE O ENFRENTAMIENTO"]
[null,null,null,null,null,null,null,null,null,null,null,null,null,null,null,"20","CESAR","20011","AGUACHICA",null,null,null,"ISNOS",null,null,"LESION A CONSCRIPTO EN ENFRENTAMIENTO ENTRE TROPAS"]
[null,null,null,null,null,null,null,null,null,null,null,null,null,null,null,"20","CESAR","20013","AGUSTÍN CODAZZI",null,null,null,"ISTMINA",null,null,"LESION A CONSCRIPTO EN PROCEDIMIENTO DE POLICIA"]
[null,null,null,null,null,null,null,null,null,null,null,null,null,null,null,"20","CESAR","20032","ASTREA",null,null,null,"ITAGÜÍ",null,null,"MUERTE DE CONSCRIPTO EN PROCEDIMIENTO DE POLICIA"]
[null,null,null,null,null,null,null,null,null,null,null,null,null,null,null,"20","CESAR","20045","BECERRIL",null,null,null,"ITUANGO",null,null,"MUERTE DE CONSCRIPTO EN ENFRENTAMIENTO ENTRE TROPAS"]
[null,null,null,null,null,null,null,null,null,null,null,null,null,null,null,"20","CESAR","20060","BOSCONIA",null,null,null,"IZA",null,null,"SECUESTRO DE CONSCRIPTO"]
[null,null,null,null,null,null,null,null,null,null,null,null,null,null,null,"20","CESAR","20175","CHIMICHAGUA",null,null,null,"JAMBALÓ",null,null,"LESION AUTO INFLIGIDA DE MIEMBRO VOLUNTARIO DE LA FUERZA PUBLICA"]
[null,null,null,null,null,null,null,null,null,null,null,null,null,null,null,"20","CESAR","20178","CHIRIGUANÁ",null,null,null,"JAMUNDÍ",null,null,"MUERTE AUTO INFLIGIDA DE MIEMBRO VOLUNTARIO DE LA FUERZA PUBLICA"]
[null,null,null,null,null,null,null,null,null,null,null,null,null,null,null,"20","CESAR","20228","CURUMANÍ",null,null,null,"JARDÍN",null,null,"LESION A MIEMBRO VOLUNTARIO DE LA FUERZA PUBLICA DERIVADA DE LA PRESTACION DEL SERVICIO DE SALUD"]
[null,null,null,null,null,null,null,null,null,null,null,null,null,null,null,"20","CESAR","20238","EL COPEY",null,null,null,"JENESANO",null,null,"MUERTE DE MIEMBRO VOLUNTARIO DE LA FUERZA PUBLICA DERIVADA DE LA PRESTACION DEL SERVICIO DE SALUD"]
[null,null,null,null,null,null,null,null,null,null,null,null,null,null,null,"20","CESAR","20250","EL PASO",null,null,null,"JERICÓ",null,null,"LESION A MIEMBRO VOLUNTARIO DE LA FUERZA PUBLICA EN OPERATIVO MILITAR"]
[null,null,null,null,null,null,null,null,null,null,null,null,null,null,null,"20","CESAR","20295","GAMARRA",null,null,null,"JERUSALÉN",null,null,"MUERTE DE MIEMBRO VOLUNTARIO DE LA FUERZA PUBLICA EN OPERATIVO MILITAR"]
[null,null,null,null,null,null,null,null,null,null,null,null,null,null,null,"20","CESAR","20310","GONZÁLEZ",null,null,null,"JESÚS MARÍA",null,null,"LESION A MIEMBRO VOLUNTARIO DE LA FUERZA PUBLICA EN COMBATE O ENFRENTAMIENTO"]
[null,null,null,null,null,null,null,null,null,null,null,null,null,null,null,"20","CESAR","20383","LA GLORIA",null,null,null,"JORDÁN",null,null,"MUERTE DE MIEMBRO VOLUNTARIO DE LA FUERZA PUBLICA EN COMBATE O ENFRENTAMIENTO"]
[null,null,null,null,null,null,null,null,null,null,null,null,null,null,null,"20","CESAR","20400","LA JAGUA DE IBIRICO",null,null,null,"JUAN DE ACOSTA",null,null,"LESION A MIEMBRO VOLUNTARIO DE LA FUERZA PUBLICA EN ENFRENTAMIENTO ENTRE TROPAS"]
[null,null,null,null,null,null,null,null,null,null,null,null,null,null,null,"20","CESAR","20443","MANAURE BALCÓN DEL CESAR",null,null,null,"JUNÍN",null,null,"LESION A MIEMBRO VOLUNTARIO DE LA FUERZA PUBLICA EN PROCEDIMIENTO DE POLICIA"]
[null,null,null,null,null,null,null,null,null,null,null,null,null,null,null,"20","CESAR","20517","PAILITAS",null,null,null,"JURADÓ",null,null,"MUERTE DE MIEMBRO VOLUNTARIO DE LA FUERZA PUBLICA EN PROCEDIMIENTO DE POLICIA"]
[null,null,null,null,null,null,null,null,null,null,null,null,null,null,null,"20","CESAR","20550","PELAYA",null,null,null,"LA APARTADA",null,null,"SECUESTRO DE MIEMBRO VOLUNTARIO DE LA FUERZA PUBLICA"]
[null,null,null,null,null,null,null,null,null,null,null,null,null,null,null,"20","CESAR","20570","PUEBLO BELLO",null,null,null,"LA ARGENTINA",null,null,"LESION A MIEMBRO VOLUNTARIO DE LA FUERZA PUBLICA CON ARMA DE USO PERSONAL"]
[null,null,null,null,null,null,null,null,null,null,null,null,null,null,null,"20","CESAR","20614","RÍO DE ORO",null,null,null,"LA BELLEZA",null,null,"SECUESTRO DE CIVIL"]
[null,null,null,null,null,null,null,null,null,null,null,null,null,null,null,"20","CESAR","20621","LA PAZ",null,null,null,"LA CALERA",null,null,"LESION A CIVIL EN OPERATIVO MILITAR"]
[null,null,null,null,null,null,null,null,null,null,null,null,null,null,null,"20","CESAR","20710","SAN ALBERTO",null,null,null,"LA CAPILLA",null,null,"MUERTE DE CIVIL EN OPERATIVO MILITAR"]
[null,null,null,null,null,null,null,null,null,null,null,null,null,null,null,"20","CESAR","20750","SAN DIEGO",null,null,null,"LA CEJA",null,null,"DAÑOS A BIENES EN OPERATIVO MILITAR"]
[null,null,null,null,null,null,null,null,null,null,null,null,null,null,null,"20","CESAR","20770","SAN MARTÍN",null,null,null,"LA CELIA",null,null,"LESION A CIVIL EN COMBATE O ENFRENTAMIENTO"]
[null,null,null,null,null,null,null,null,null,null,null,null,null,null,null,"20","CESAR","20787","TAMALAMEQUE",null,null,null,"LA CHORRERA",null,null,"MUERTE DE CIVIL EN COMBATE O ENFRENTAMIENTO"]
[null,null,null,null,null,null,null,null,null,null,null,null,null,null,null,"23","CÓRDOBA","23001","MONTERÍA",null,null,null,"LA CRUZ",null,null,"DAÑOS A BIENES EN COMBATE O ENFRENTAMIENTO"]
[null,null,null,null,null,null,null,null,null,null,null,null,null,null,null,"23","CÓRDOBA","23068","AYAPEL",null,null,null,"LA CUMBRE",null,null,"LESION A CIVIL EN ENFRENTAMIENTO ENTRE TROPAS"]
[null,null,null,null,null,null,null,null,null,null,null,null,null,null,null,"23","CÓRDOBA","23079","BUENAVISTA",null,null,null,"LA DORADA",null,null,"MUERTE DE CIVIL EN ENFRENTAMIENTO ENTRE TROPAS"]
[null,null,null,null,null,null,null,null,null,null,null,null,null,null,null,"23","CÓRDOBA","23090","CANALETE",null,null,null,"LA ESPERANZA",null,null,"DAÑOS A BIENES EN ENFRENTAMIENTO ENTRE TROPAS"]
[null,null,null,null,null,null,null,null,null,null,null,null,null,null,null,"23","CÓRDOBA","23162","CERETÉ",null,null,null,"LA ESTRELLA",null,null,"LESION A RECLUSO CAUSADA POR AGENTES DEL ESTADO"]
[null,null,null,null,null,null,null,null,null,null,null,null,null,null,null,"23","CÓRDOBA","23168","CHIMÁ",null,null,null,"LA FLORIDA",null,null,"LESION A RECLUSO CAUSADA POR TERCEROS"]
[null,null,null,null,null,null,null,null,null,null,null,null,null,null,null,"23","CÓRDOBA","23182","CHINÚ",null,null,null,"LA GLORIA",null,null,"LESION A RECLUSO CAUSADA POR OTRO RECLUSO"]
[null,null,null,null,null,null,null,null,null,null,null,null,null,null,null,"23","CÓRDOBA","23189","CIÉNAGA DE ORO",null,null,null,"LA GUADALUPE",null,null,"LESION AUTO INFLIGIDA DE RECLUSO"]
[null,null,null,null,null,null,null,null,null,null,null,null,null,null,null,"23","CÓRDOBA","23300","COTORRA",null,null,null,"LA JAGUA DE IBIRICO",null,null,"LESION ACCIDENTAL O FORTUITA A RECLUSO"]
[null,null,null,null,null,null,null,null,null,null,null,null,null,null,null,"23","CÓRDOBA","23350","LA APARTADA",null,null,null,"LA JAGUA DEL PILAR",null,null,"LESION A RECLUSO DERIVADA DE LA PRESTACION DEL SERVICIO DE SALUD"]
[null,null,null,null,null,null,null,null,null,null,null,null,null,null,null,"23","CÓRDOBA","23417","LORICA",null,null,null,"LA LLANADA",null,null,"MUERTE DE RECLUSO CAUSADA POR AGENTES DEL ESTADO"]
[null,null,null,null,null,null,null,null,null,null,null,null,null,null,null,"23","CÓRDOBA","23419","LOS CÓRDOBAS",null,null,null,"LA MACARENA",null,null,"MUERTE DE RECLUSO CAUSADA POR TERCEROS"]
[null,null,null,null,null,null,null,null,null,null,null,null,null,null,null,"23","CÓRDOBA","23464","MOMIL",null,null,null,"LA MERCED",null,null,"MUERTE DE RECLUSO CAUSADA POR OTRO RECLUSO"]
[null,null,null,null,null,null,null,null,null,null,null,null,null,null,null,"23","CÓRDOBA","23466","MONTELÍBANO",null,null,null,"LA MESA",null,null,"MUERTE AUTO INFLIGIDA DE RECLUSO"]
[null,null,null,null,null,null,null,null,null,null,null,null,null,null,null,"23","CÓRDOBA","23500","MOÑITOS",null,null,null,"LA MONTAÑITA",null,null,"MUERTE ACCIDENTAL O FORTUITA A RECLUSO"]
[null,null,null,null,null,null,null,null,null,null,null,null,null,null,null,"23","CÓRDOBA","23555","PLANETA RICA",null,null,null,"LA PALMA",null,null,"MUERTE DE RECLUSO DERIVADA DE LA PRESTACION DEL SERVICIO DE SALUD"]
[null,null,null,null,null,null,null,null,null,null,null,null,null,null,null,"23","CÓRDOBA","23570","PUEBLO NUEVO",null,null,null,"LA PAZ",null,null,"LESION POR CONDUCCION DE ENERGIA ELECTRICA"]
[null,null,null,null,null,null,null,null,null,null,null,null,null,null,null,"23","CÓRDOBA","23574","PUERTO ESCONDIDO",null,null,null,"LA PEDRERA",null,null,"MUERTE POR CONDUCCION DE ENERGIA ELECTRICA"]
[null,null,null,null,null,null,null,null,null,null,null,null,null,null,null,"23","CÓRDOBA","23580","PUERTO LIBERTADOR",null,null,null,"LA PEÑA",null,null,"DAÑOS A BIENES POR CONDUCCION DE ENERGIA ELECTRICA"]
[null,null,null,null,null,null,null,null,null,null,null,null,null,null,null,"23","CÓRDOBA","23586","PURÍSIMA DE LA CONCEPCIÓN",null,null,null,"LA PINTADA",null,null,"LESION POR VIA PUBLICA EN MAL ESTADO"]
[null,null,null,null,null,null,null,null,null,null,null,null,null,null,null,"23","CÓRDOBA","23660","SAHAGÚN",null,null,null,"LA PLATA",null,null,"MUERTE POR VIA PUBLICA EN MAL ESTADO"]
[null,null,null,null,null,null,null,null,null,null,null,null,null,null,null,"23","CÓRDOBA","23670","SAN ANDRÉS DE SOTAVENTO",null,null,null,"LA PLAYA",null,null,"DAÑOS A BIENES POR VIA PUBLICA EN MAL ESTADO"]
[null,null,null,null,null,null,null,null,null,null,null,null,null,null,null,"23","CÓRDOBA","23672","SAN ANTERO",null,null,null,"LA PRIMAVERA",null,null,"LESION POR FALTA DE SEÑALIZACION EN LA VIA PUBLICA"]
[null,null,null,null,null,null,null,null,null,null,null,null,null,null,null,"23","CÓRDOBA","23675","SAN BERNARDO DEL VIENTO",null,null,null,"LA SALINA",null,null,"MUERTE POR FALTA DE SEÑALIZACION EN LA VIA PUBLICA"]
[null,null,null,null,null,null,null,null,null,null,null,null,null,null,null,"23","CÓRDOBA","23678","SAN CARLOS",null,null,null,"LA SIERRA",null,null,"DAÑOS A BIENES POR FALTA DE SEÑALIZACION EN LA VIA PUBLICA"]
[null,null,null,null,null,null,null,null,null,null,null,null,null,null,null,"23","CÓRDOBA","23682","SAN JOSÉ DE URÉ",null,null,null,"LA TEBAIDA",null,null,"LESION POR FALTA DE ILUMINACION EN LA VIA PUBLICA"]
[null,null,null,null,null,null,null,null,null,null,null,null,null,null,null,"23","CÓRDOBA","23686","SAN PELAYO",null,null,null,"LA TOLA",null,null,"MUERTE POR FALTA DE ILUMINACION EN LA VIA PUBLICA"]
[null,null,null,null,null,null,null,null,null,null,null,null,null,null,null,"23","CÓRDOBA","23807","TIERRALTA",null,null,null,"LA UNIÓN",null,null,"DAÑOS A BIENES POR FALTA DE ILUMINACION EN LA VIA PUBLICA"]
[null,null,null,null,null,null,null,null,null,null,null,null,null,null,null,"23","CÓRDOBA","23815","TUCHÍN",null,null,null,"LA UVITA",null,null,"LESION POR CAIDA DE ARBOL"]
[null,null,null,null,null,null,null,null,null,null,null,null,null,null,null,"23","CÓRDOBA","23855","VALENCIA",null,null,null,"LA VEGA",null,null,"MUERTE POR CAIDA DE ARBOL"]
[null,null,null,null,null,null,null,null,null,null,null,null,null,null,null,"25","CUNDINAMARCA","25001","AGUA DE DIOS",null,null,null,"LA VICTORIA",null,null,"DAÑOS A BIENES POR CAIDA DE ARBOL"]
[null,null,null,null,null,null,null,null,null,null,null,null,null,null,null,"25","CUNDINAMARCA","25019","ALBÁN",null,null,null,"LA VIRGINIA",null,null,"LESION POR RUINA DE EDIFICACION PUBLICA"]
[null,null,null,null,null,null,null,null,null,null,null,null,null,null,null,"25","CUNDINAMARCA","25035","ANAPOIMA",null,null,null,"LABATECA",null,null,"MUERTE POR RUINA DE EDIFICACION PUBLICA"]
[null,null,null,null,null,null,null,null,null,null,null,null,null,null,null,"25","CUNDINAMARCA","25040","ANOLAIMA",null,null,null,"LABRANZAGRANDE",null,null,"DAÑOS A BIENES POR RUINA DE EDIFICACION PUBLICA"]
[null,null,null,null,null,null,null,null,null,null,null,null,null,null,null,"25","CUNDINAMARCA","25053","ARBELÁEZ",null,null,null,"LANDÁZURI",null,null,"LESION EN ACCIDENTE AEREO"]
[null,null,null,null,null,null,null,null,null,null,null,null,null,null,null,"25","CUNDINAMARCA","25086","BELTRÁN",null,null,null,"LEBRIJA",null,null,"MUERTE EN ACCIDENTE AEREO"]
[null,null,null,null,null,null,null,null,null,null,null,null,null,null,null,"25","CUNDINAMARCA","25095","BITUIMA",null,null,null,"LEIVA",null,null,"DAÑOS A BIENES EN ACCIDENTE AEREO"]
[null,null,null,null,null,null,null,null,null,null,null,null,null,null,null,"25","CUNDINAMARCA","25099","BOJACÁ",null,null,null,"LEJANÍAS",null,null,"LESION EN ACCIDENTE FLUVIAL"]
[null,null,null,null,null,null,null,null,null,null,null,null,null,null,null,"25","CUNDINAMARCA","25120","CABRERA",null,null,null,"LENGUAZAQUE",null,null,"MUERTE EN ACCIDENTE FLUVIAL"]
[null,null,null,null,null,null,null,null,null,null,null,null,null,null,null,"25","CUNDINAMARCA","25123","CACHIPAY",null,null,null,"LÉRIDA",null,null,"DAÑOS A BIENES EN ACCIDENTE FLUVIAL"]
[null,null,null,null,null,null,null,null,null,null,null,null,null,null,null,"25","CUNDINAMARCA","25126","CAJICÁ",null,null,null,"LETICIA",null,null,"LESION EN ACCIDENTE MARITIMO"]
[null,null,null,null,null,null,null,null,null,null,null,null,null,null,null,"25","CUNDINAMARCA","25148","CAPARRAPÍ",null,null,null,"LÍBANO",null,null,"MUERTE EN ACCIDENTE MARITIMO"]
[null,null,null,null,null,null,null,null,null,null,null,null,null,null,null,"25","CUNDINAMARCA","25151","CÁQUEZA",null,null,null,"LIBORINA",null,null,"DAÑOS A BIENES EN ACCIDENTE MARITIMO"]
[null,null,null,null,null,null,null,null,null,null,null,null,null,null,null,"25","CUNDINAMARCA","25154","CARMEN DE CARUPA",null,null,null,"LINARES",null,null,"LESION POR ALUD DE TIERRA"]
[null,null,null,null,null,null,null,null,null,null,null,null,null,null,null,"25","CUNDINAMARCA","25168","CHAGUANÍ",null,null,null,"LLORÓ",null,null,"MUERTE POR ALUD DE TIERRA"]
[null,null,null,null,null,null,null,null,null,null,null,null,null,null,null,"25","CUNDINAMARCA","25175","CHÍA",null,null,null,"LÓPEZ DE MICAY",null,null,"DAÑOS A BIENES POR ALUD DE TIERRA"]
[null,null,null,null,null,null,null,null,null,null,null,null,null,null,null,"25","CUNDINAMARCA","25178","CHIPAQUE",null,null,null,"LORICA",null,null,"LESION POR INUNDACION"]
[null,null,null,null,null,null,null,null,null,null,null,null,null,null,null,"25","CUNDINAMARCA","25181","CHOACHÍ",null,null,null,"LOS ANDES",null,null,"MUERTE POR INUNDACION"]
[null,null,null,null,null,null,null,null,null,null,null,null,null,null,null,"25","CUNDINAMARCA","25183","CHOCONTÁ",null,null,null,"LOS CÓRDOBAS",null,null,"DAÑOS A BIENES POR INUNDACION"]
[null,null,null,null,null,null,null,null,null,null,null,null,null,null,null,"25","CUNDINAMARCA","25200","COGUA",null,null,null,"LOS PALMITOS",null,null,"LESION A CIVIL POR ACTO TERRORISTA CONTRA INSTALACIONES, PERSONAJES O ELEMENTOS REPRESENTATIVOS DEL ESTADO"]
[null,null,null,null,null,null,null,null,null,null,null,null,null,null,null,"25","CUNDINAMARCA","25214","COTA",null,null,null,"LOS PATIOS",null,null,"MUERTE DE CIVIL POR ACTO TERRORISTA CONTRA INSTALACIONES, PERSONAJES O ELEMENTOS REPRESENTATIVOS DEL ESTADO"]
[null,null,null,null,null,null,null,null,null,null,null,null,null,null,null,"25","CUNDINAMARCA","25224","CUCUNUBÁ",null,null,null,"LOS SANTOS",null,null,"DAÑOS A BIENES POR ACTO TERRORISTA CONTRA INSTALACIONES, PERSONAJES O ELEMENTOS REPRESENTATIVOS DEL ESTADO"]
[null,null,null,null,null,null,null,null,null,null,null,null,null,null,null,"25","CUNDINAMARCA","25245","EL COLEGIO",null,null,null,"LOURDES",null,null,"LESION A CIVIL POR ACTO TERRORISTA CONTRA POBLACION CIVIL"]
[null,null,null,null,null,null,null,null,null,null,null,null,null,null,null,"25","CUNDINAMARCA","25258","EL PEÑÓN",null,null,null,"LURUACO",null,null,"MUERTE DE CIVIL POR ACTO TERRORISTA CONTRA POBLACION CIVIL"]
[null,null,null,null,null,null,null,null,null,null,null,null,null,null,null,"25","CUNDINAMARCA","25260","EL ROSAL",null,null,null,"MACANAL",null,null,"DAÑOS A BIENES POR ACTO TERRORISTA CONTRA POBLACION CIVIL"]
[null,null,null,null,null,null,null,null,null,null,null,null,null,null,null,"25","CUNDINAMARCA","25269","FACATATIVÁ",null,null,null,"MACARAVITA",null,null,"LESION EN MANIFESTACION PUBLICA"]
[null,null,null,null,null,null,null,null,null,null,null,null,null,null,null,"25","CUNDINAMARCA","25279","FÓMEQUE",null,null,null,"MACEO",null,null,"MUERTE EN MANIFESTACION PUBLICA"]
[null,null,null,null,null,null,null,null,null,null,null,null,null,null,null,"25","CUNDINAMARCA","25281","FOSCA",null,null,null,"MACHETÁ",null,null,"DAÑOS A BIENES EN MANIFESTACION PUBLICA"]
[null,null,null,null,null,null,null,null,null,null,null,null,null,null,null,"25","CUNDINAMARCA","25286","FUNZA",null,null,null,"MADRID",null,null,"OCUPACION TEMPORAL DE INMUEBLE"]
[null,null,null,null,null,null,null,null,null,null,null,null,null,null,null,"25","CUNDINAMARCA","25288","FÚQUENE",null,null,null,"MAGANGUÉ",null,null,"OCUPACION PERMANENTE DE INMUEBLE"]
[null,null,null,null,null,null,null,null,null,null,null,null,null,null,null,"25","CUNDINAMARCA","25290","FUSAGASUGÁ",null,null,null,"MAGÜÍ",null,null,"INCUMPLIMIENTO DE SENTENCIA JUDICIAL"]
[null,null,null,null,null,null,null,null,null,null,null,null,null,null,null,"25","CUNDINAMARCA","25293","GACHALÁ",null,null,null,"MAHATES",null,null,"INCUMPLIMIENTO DE ACUERDO CONCILIATORIO"]
[null,null,null,null,null,null,null,null,null,null,null,null,null,null,null,"25","CUNDINAMARCA","25295","GACHANCIPÁ",null,null,null,"MAICAO",null,null,"INCUMPLIMIENTO DE LAUDO ARBITRAL"]
[null,null,null,null,null,null,null,null,null,null,null,null,null,null,null,"25","CUNDINAMARCA","25297","GACHETÁ",null,null,null,"MAJAGUAL",null,null,"LESION A ALUMNO EN ESTABLECIMIENTO EDUCATIVO"]
[null,null,null,null,null,null,null,null,null,null,null,null,null,null,null,"25","CUNDINAMARCA","25299","GAMA",null,null,null,"MÁLAGA",null,null,"MUERTE DE ALUMNO EN ESTABLECIMIENTO EDUCATIVO"]
[null,null,null,null,null,null,null,null,null,null,null,null,null,null,null,"25","CUNDINAMARCA","25307","GIRARDOT",null,null,null,"MALAMBO",null,null,"LESION A PERSONAL DOCENTE O ADMINISTRATIVO EN ESTABLECIMIENTO EDUCATIVO"]
[null,null,null,null,null,null,null,null,null,null,null,null,null,null,null,"25","CUNDINAMARCA","25312","GRANADA",null,null,null,"MALLAMA",null,null,"MUERTE DE PERSONAL DOCENTE O ADMINISTRATIVO EN ESTABLECIMIENTO EDUCATIVO"]
[null,null,null,null,null,null,null,null,null,null,null,null,null,null,null,"25","CUNDINAMARCA","25317","GUACHETÁ",null,null,null,"MANATÍ",null,null,"DAÑOS A BIENES EN ESTABLECIMIENTO EDUCATIVO"]
[null,null,null,null,null,null,null,null,null,null,null,null,null,null,null,"25","CUNDINAMARCA","25320","GUADUAS",null,null,null,"MANAURE",null,null,"LESION POR USO EXCESIVO DE LA FUERZA"]
[null,null,null,null,null,null,null,null,null,null,null,null,null,null,null,"25","CUNDINAMARCA","25322","GUASCA",null,null,null,"MANAURE BALCÓN DEL CESAR",null,null,"MUERTE POR USO EXCESIVO DE LA FUERZA"]
[null,null,null,null,null,null,null,null,null,null,null,null,null,null,null,"25","CUNDINAMARCA","25324","GUATAQUÍ",null,null,null,"MANÍ",null,null,"DAÑOS A BIENES POR USO EXCESIVO DE LA FUERZA"]
[null,null,null,null,null,null,null,null,null,null,null,null,null,null,null,"25","CUNDINAMARCA","25326","GUATAVITA",null,null,null,"MANIZALES",null,null,"DECRETO INJUSTO DE MEDIDAS CAUTELARES SOBRE BIENES SUSCEPTIBLES DE COMISO EN PROCESOS PENALES"]
[null,null,null,null,null,null,null,null,null,null,null,null,null,null,null,"25","CUNDINAMARCA","25328","GUAYABAL DE SÍQUIMA",null,null,null,"MANTA",null,null,"MORA EN LA ENTREGA DE BIEN INCAUTADO U OCUPADO EN UN PROCESO PENAL"]
[null,null,null,null,null,null,null,null,null,null,null,null,null,null,null,"25","CUNDINAMARCA","25335","GUAYABETAL",null,null,null,"MANZANARES",null,null,"LESION POR SEMOVIENTE DE PROPIEDAD DEL ESTADO"]
[null,null,null,null,null,null,null,null,null,null,null,null,null,null,null,"25","CUNDINAMARCA","25339","GUTIÉRREZ",null,null,null,"MAPIRIPÁN",null,null,"MUERTE POR SEMOVIENTE DE PROPIEDAD DEL ESTADO"]
[null,null,null,null,null,null,null,null,null,null,null,null,null,null,null,"25","CUNDINAMARCA","25368","JERUSALÉN",null,null,null,"MARGARITA",null,null,"DAÑOS A BIENES POR SEMOVIENTE DE PROPIEDAD DEL ESTADO"]
[null,null,null,null,null,null,null,null,null,null,null,null,null,null,null,"25","CUNDINAMARCA","25372","JUNÍN",null,null,null,"MARÍA LA BAJA",null,null,"DAÑOS DERIVADOS DE LA ACTIVIDAD LEGISLATIVA"]
[null,null,null,null,null,null,null,null,null,null,null,null,null,null,null,"25","CUNDINAMARCA","25377","LA CALERA",null,null,null,"MARINILLA",null,null,"DAÑOS DERIVADOS DE ACTO ADMINISTRATIVO LICITO"]
[null,null,null,null,null,null,null,null,null,null,null,null,null,null,null,"25","CUNDINAMARCA","25386","LA MESA",null,null,null,"MARIPÍ",null,null,"IMPOSICION INJUSTA DE MEDIDA DE ASEGURAMIENTO NO PRIVATIVA DE LA LIBERTAD"]
[null,null,null,null,null,null,null,null,null,null,null,null,null,null,null,"25","CUNDINAMARCA","25394","LA PALMA",null,null,null,"MARMATO",null,null,"LESION POR FALTA DE ADOPCION DE MEDIDAS DE PROTECCION Y SEGURIDAD"]
[null,null,null,null,null,null,null,null,null,null,null,null,null,null,null,"25","CUNDINAMARCA","25398","LA PEÑA",null,null,null,"MARQUETALIA",null,null,"MUERTE POR FALTA DE ADOPCION DE MEDIDAS DE PROTECCION Y SEGURIDAD"]
[null,null,null,null,null,null,null,null,null,null,null,null,null,null,null,"25","CUNDINAMARCA","25402","LA VEGA",null,null,null,"MARSELLA",null,null,"DAÑOS A BIENES POR FALTA DE ADOPCION DE MEDIDAS DE PROTECCION Y SEGURIDAD"]
[null,null,null,null,null,null,null,null,null,null,null,null,null,null,null,"25","CUNDINAMARCA","25407","LENGUAZAQUE",null,null,null,"MARULANDA",null,null,"LESION POR INDEBIDA O INSUFICIENTE ADOPCION DE MEDIDAS DE PROTECCION Y SEGURIDAD"]
[null,null,null,null,null,null,null,null,null,null,null,null,null,null,null,"25","CUNDINAMARCA","25426","MACHETÁ",null,null,null,"MATANZA",null,null,"MUERTE POR INDEBIDA O INSUFICIENTE ADOPCION DE MEDIDAS DE PROTECCION Y SEGURIDAD"]
[null,null,null,null,null,null,null,null,null,null,null,null,null,null,null,"25","CUNDINAMARCA","25430","MADRID",null,null,null,"MEDELLÍN",null,null,"DAÑOS A BIENES POR INDEBIDA O INSUFICIENTE ADOPCION DE MEDIDAS DE PROTECCION Y SEGURIDAD"]
[null,null,null,null,null,null,null,null,null,null,null,null,null,null,null,"25","CUNDINAMARCA","25436","MANTA",null,null,null,"MEDINA",null,null,"LESION POR MODIFICACION O REDUCCION DE LAS MEDIDAS DE PROTECCION Y SEGURIDAD"]
[null,null,null,null,null,null,null,null,null,null,null,null,null,null,null,"25","CUNDINAMARCA","25438","MEDINA",null,null,null,"MEDIO ATRATO",null,null,"MUERTE POR MODIFICACION O REDUCCION DE LAS MEDIDAS DE PROTECCION Y SEGURIDAD"]
[null,null,null,null,null,null,null,null,null,null,null,null,null,null,null,"25","CUNDINAMARCA","25473","MOSQUERA",null,null,null,"MEDIO BAUDÓ",null,null,"DAÑOS A BIENES POR MODIFICACION O REDUCCION DE LAS MEDIDAS DE PROTECCION Y SEGURIDAD"]
[null,null,null,null,null,null,null,null,null,null,null,null,null,null,null,"25","CUNDINAMARCA","25483","NARIÑO",null,null,null,"MEDIO SAN JUAN",null,null,"LESION POR INDEBIDA PRESTACION DEL SERVICIO DE SALUD GINECO OBSTETRICO"]
[null,null,null,null,null,null,null,null,null,null,null,null,null,null,null,"25","CUNDINAMARCA","25486","NEMOCÓN",null,null,null,"MELGAR",null,null,"MUERTE POR INDEBIDA PRESTACION DEL SERVICIO DE SALUD GINECO OBSTETRICO"]
[null,null,null,null,null,null,null,null,null,null,null,null,null,null,null,"25","CUNDINAMARCA","25488","NILO",null,null,null,"MERCADERES",null,null,"LESION POR INDEBIDO CONSENTIMIENTO INFORMADO EN LA PRESTACION DEL SERVICIO DE SALUD"]
[null,null,null,null,null,null,null,null,null,null,null,null,null,null,null,"25","CUNDINAMARCA","25489","NIMAIMA",null,null,null,"MESETAS",null,null,"MUERTE POR INDEBIDO CONSENTIMIENTO INFORMADO EN LA PRESTACION DEL SERVICIO DE SALUD"]
[null,null,null,null,null,null,null,null,null,null,null,null,null,null,null,"25","CUNDINAMARCA","25491","NOCAIMA",null,null,null,"MILÁN",null,null,"LESION POR INCUMPLIMIENTO DEL DEBER DE SEGURIDAD EN LA ATENCION HOSPITALARIA"]
[null,null,null,null,null,null,null,null,null,null,null,null,null,null,null,"25","CUNDINAMARCA","25506","VENECIA",null,null,null,"MIRAFLORES",null,null,"MUERTE POR INCUMPLIMIENTO DEL DEBER DE SEGURIDAD EN LA ATENCION HOSPITALARIA"]
[null,null,null,null,null,null,null,null,null,null,null,null,null,null,null,"25","CUNDINAMARCA","25513","PACHO",null,null,null,"MIRANDA",null,null,"LESION POR INDEBIDA PRESTACION DEL SERVICIO DE SALUD"]
[null,null,null,null,null,null,null,null,null,null,null,null,null,null,null,"25","CUNDINAMARCA","25518","PAIME",null,null,null,"MIRITÍ - PARANÁ",null,null,"MUERTE POR INDEBIDA PRESTACION DEL SERVICIO DE SALUD"]
[null,null,null,null,null,null,null,null,null,null,null,null,null,null,null,"25","CUNDINAMARCA","25524","PANDI",null,null,null,"MISTRATÓ",null,null,"LESION EN OPERACION ADMINISTRATIVA"]
[null,null,null,null,null,null,null,null,null,null,null,null,null,null,null,"25","CUNDINAMARCA","25530","PARATEBUENO",null,null,null,"MITÚ",null,null,"MUERTE EN OPERACION ADMINISTRATIVA"]
[null,null,null,null,null,null,null,null,null,null,null,null,null,null,null,"25","CUNDINAMARCA","25535","PASCA",null,null,null,"MOCOA",null,null,"DAÑOS A BIENES EN OPERACION ADMINISTRATIVA"]
[null,null,null,null,null,null,null,null,null,null,null,null,null,null,null,"25","CUNDINAMARCA","25572","PUERTO SALGAR",null,null,null,"MOGOTES",null,null,"LESION DE MIEMBRO VOLUNTARIO DE LA FUERZA PUBLICA POR DESCONOCIDOS"]
[null,null,null,null,null,null,null,null,null,null,null,null,null,null,null,"25","CUNDINAMARCA","25580","PULÍ",null,null,null,"MOLAGAVITA",null,null,"LESION DE CONSCRIPTO POR DESCONOCIDOS"]
[null,null,null,null,null,null,null,null,null,null,null,null,null,null,null,"25","CUNDINAMARCA","25592","QUEBRADANEGRA",null,null,null,"MOMIL",null,null,"MUERTE DE CONSCRIPTO POR DESCONOCIDOS"]
[null,null,null,null,null,null,null,null,null,null,null,null,null,null,null,"25","CUNDINAMARCA","25594","QUETAME",null,null,null,"MONGUA",null,null,"LESION EN ZONA DE DISTENSION"]
[null,null,null,null,null,null,null,null,null,null,null,null,null,null,null,"25","CUNDINAMARCA","25596","QUIPILE",null,null,null,"MONGUÍ",null,null,"MUERTE EN ZONA DE DISTENSION"]
[null,null,null,null,null,null,null,null,null,null,null,null,null,null,null,"25","CUNDINAMARCA","25599","APULO",null,null,null,"MONIQUIRÁ",null,null,"DAÑOS A BIENES EN ZONA DE DISTENSION"]
[null,null,null,null,null,null,null,null,null,null,null,null,null,null,null,"25","CUNDINAMARCA","25612","RICAURTE",null,null,null,"MONTEBELLO",null,null,"LESION POR ACTIVIDAD MINERA"]
[null,null,null,null,null,null,null,null,null,null,null,null,null,null,null,"25","CUNDINAMARCA","25645","SAN ANTONIO DEL TEQUENDAMA",null,null,null,"MONTECRISTO",null,null,"MUERTE POR ACTIVIDAD MINERA"]
[null,null,null,null,null,null,null,null,null,null,null,null,null,null,null,"25","CUNDINAMARCA","25649","SAN BERNARDO",null,null,null,"MONTELÍBANO",null,null,"DAÑOS A BIENES POR ACTIVIDAD MINERA"]
[null,null,null,null,null,null,null,null,null,null,null,null,null,null,null,"25","CUNDINAMARCA","25653","SAN CAYETANO",null,null,null,"MONTENEGRO",null,null,"LESION POR ACTIVIDAD DEL SECTOR DE HIDROCARBUROS"]
[null,null,null,null,null,null,null,null,null,null,null,null,null,null,null,"25","CUNDINAMARCA","25658","SAN FRANCISCO",null,null,null,"MONTERÍA",null,null,"MUERTE POR ACTIVIDAD DEL SECTOR DE HIDROCARBUROS"]
[null,null,null,null,null,null,null,null,null,null,null,null,null,null,null,"25","CUNDINAMARCA","25662","SAN JUAN DE RIOSECO",null,null,null,"MONTERREY",null,null,"DAÑOS A BIENES POR ACTIVIDAD DEL SECTOR DE HIDROCARBUROS"]
[null,null,null,null,null,null,null,null,null,null,null,null,null,null,null,"25","CUNDINAMARCA","25718","SASAIMA",null,null,null,"MOÑITOS",null,null,"PERDIDA O DAÑOS A BIENES EMBARGADOS O SECUESTRADOS"]
[null,null,null,null,null,null,null,null,null,null,null,null,null,null,null,"25","CUNDINAMARCA","25736","SESQUILÉ",null,null,null,"MORALES",null,null,"MORA EN LA ENTREGA DE BIEN EMBARGADO O SECUESTRADO"]
[null,null,null,null,null,null,null,null,null,null,null,null,null,null,null,"25","CUNDINAMARCA","25740","SIBATÉ",null,null,null,"MORELIA",null,null,"DESPIDO INDIRECTO DE FUNCIONARIO PUBLICO"]
[null,null,null,null,null,null,null,null,null,null,null,null,null,null,null,"25","CUNDINAMARCA","25743","SILVANIA",null,null,null,"MORICHAL",null,null,"INDEBIDA LIQUIDACION DE PENSION DE VEJEZ"]
[null,null,null,null,null,null,null,null,null,null,null,null,null,null,null,"25","CUNDINAMARCA","25745","SIMIJACA",null,null,null,"MORROA",null,null,"INDEBIDA LIQUIDACION DE PENSION DE INVALIDEZ"]
[null,null,null,null,null,null,null,null,null,null,null,null,null,null,null,"25","CUNDINAMARCA","25754","SOACHA",null,null,null,"MOSQUERA",null,null,"INDEBIDA LIQUIDACION DE PENSION DE SOBREVIVIENTE"]
[null,null,null,null,null,null,null,null,null,null,null,null,null,null,null,"25","CUNDINAMARCA","25758","SOPÓ",null,null,null,"MOTAVITA",null,null,"INCUMPLIMIENTO EN EL PAGO DE PENSION DE VEJEZ"]
[null,null,null,null,null,null,null,null,null,null,null,null,null,null,null,"25","CUNDINAMARCA","25769","SUBACHOQUE",null,null,null,"MURILLO",null,null,"INCUMPLIMIENTO EN EL PAGO DE PENSION DE INVALIDEZ"]
[null,null,null,null,null,null,null,null,null,null,null,null,null,null,null,"25","CUNDINAMARCA","25772","SUESCA",null,null,null,"MURINDÓ",null,null,"INCUMPLIMIENTO EN EL PAGO DE PENSION DE SOBREVIVIENTE"]
[null,null,null,null,null,null,null,null,null,null,null,null,null,null,null,"25","CUNDINAMARCA","25777","SUPATÁ",null,null,null,"MUTATÁ",null,null,"INDEBIDA LIQUIDACION DEL AUXILIO FUNERARIO"]
[null,null,null,null,null,null,null,null,null,null,null,null,null,null,null,"25","CUNDINAMARCA","25779","SUSA",null,null,null,"MUTISCUA",null,null,"INCUMPLIMIENTO EN EL PAGO DEL AUXILIO FUNERARIO"]
[null,null,null,null,null,null,null,null,null,null,null,null,null,null,null,"25","CUNDINAMARCA","25781","SUTATAUSA",null,null,null,"MUZO",null,null,"NO RECONOCIMIENTO DE INCREMENTO DE PENSION DE VEJEZ"]
[null,null,null,null,null,null,null,null,null,null,null,null,null,null,null,"25","CUNDINAMARCA","25785","TABIO",null,null,null,"NARIÑO",null,null,"NO RECONOCIMIENTO DE INCREMENTO DE PENSION DE INVALIDEZ"]
[null,null,null,null,null,null,null,null,null,null,null,null,null,null,null,"25","CUNDINAMARCA","25793","TAUSA",null,null,null,"NÁTAGA",null,null,"INDEBIDA LIQUIDACION DE INCREMENTO DE PENSION DE VEJEZ"]
[null,null,null,null,null,null,null,null,null,null,null,null,null,null,null,"25","CUNDINAMARCA","25797","TENA",null,null,null,"NATAGAIMA",null,null,"INDEBIDA LIQUIDACION DE INCREMENTO DE PENSION DE INVALIDEZ"]
[null,null,null,null,null,null,null,null,null,null,null,null,null,null,null,"25","CUNDINAMARCA","25799","TENJO",null,null,null,"NECHÍ",null,null,"INCUMPLIMIENTO EN EL PAGO DE INCREMENTO DE PENSION DE VEJEZ"]
[null,null,null,null,null,null,null,null,null,null,null,null,null,null,null,"25","CUNDINAMARCA","25805","TIBACUY",null,null,null,"NECOCLÍ",null,null,"INCUMPLIMIENTO EN EL PAGO DE INCREMENTO DE PENSION DE INVALIDEZ"]
[null,null,null,null,null,null,null,null,null,null,null,null,null,null,null,"25","CUNDINAMARCA","25807","TIBIRITA",null,null,null,"NEIRA",null,null,"NO RECONOCIMIENTO DE RETROACTIVO DE PENSION DE VEJEZ"]
[null,null,null,null,null,null,null,null,null,null,null,null,null,null,null,"25","CUNDINAMARCA","25815","TOCAIMA",null,null,null,"NEIVA",null,null,"NO RECONOCIMIENTO DE RETROACTIVO DE PENSION DE INVALIDEZ"]
[null,null,null,null,null,null,null,null,null,null,null,null,null,null,null,"25","CUNDINAMARCA","25817","TOCANCIPÁ",null,null,null,"NEMOCÓN",null,null,"INDEBIDA LIQUIDACION DE RETROACTIVO DE PENSION DE VEJEZ"]
[null,null,null,null,null,null,null,null,null,null,null,null,null,null,null,"25","CUNDINAMARCA","25823","TOPAIPÍ",null,null,null,"NILO",null,null,"INDEBIDA LIQUIDACION DE RETROACTIVO DE PENSION DE INVALIDEZ"]
[null,null,null,null,null,null,null,null,null,null,null,null,null,null,null,"25","CUNDINAMARCA","25839","UBALÁ",null,null,null,"NIMAIMA",null,null,"INCUMPLIMIENTO EN EL PAGO DE RETROACTIVO DE PENSION DE VEJEZ"]
[null,null,null,null,null,null,null,null,null,null,null,null,null,null,null,"25","CUNDINAMARCA","25841","UBAQUE",null,null,null,"NOBSA",null,null,"INCUMPLIMIENTO EN EL PAGO DE RETROACTIVO DE PENSION DE INVALIDEZ"]
[null,null,null,null,null,null,null,null,null,null,null,null,null,null,null,"25","CUNDINAMARCA","25843","VILLA DE SAN DIEGO DE UBATÉ",null,null,null,"NOCAIMA",null,null,"NO RECONOCIMIENTO DE LA INDEXACION Y REAJUSTE DE LA PENSION DE VEJEZ"]
[null,null,null,null,null,null,null,null,null,null,null,null,null,null,null,"25","CUNDINAMARCA","25845","UNE",null,null,null,"NORCASIA",null,null,"NO RECONOCIMIENTO DE LA INDEXACION Y REAJUSTE DE LA PENSION DE INVALIDEZ"]
[null,null,null,null,null,null,null,null,null,null,null,null,null,null,null,"25","CUNDINAMARCA","25851","ÚTICA",null,null,null,"NOROSÍ",null,null,"NO RECONOCIMIENTO DE LA INDEXACION Y REAJUSTE DE LA PENSION DE SOBREVIVIENTE"]
[null,null,null,null,null,null,null,null,null,null,null,null,null,null,null,"25","CUNDINAMARCA","25862","VERGARA",null,null,null,"NÓVITA",null,null,"INCUMPLIMIENTO EN EL PAGO DE LA INDEXACION Y REAJUSTE DE LA PENSION DE VEJEZ"]
[null,null,null,null,null,null,null,null,null,null,null,null,null,null,null,"25","CUNDINAMARCA","25867","VIANÍ",null,null,null,"NUEVA GRANADA",null,null,"INCUMPLIMIENTO EN EL PAGO DE LA INDEXACION Y REAJUSTE DE LA PENSION DE INVALIDEZ"]
[null,null,null,null,null,null,null,null,null,null,null,null,null,null,null,"25","CUNDINAMARCA","25871","VILLAGÓMEZ",null,null,null,"NUEVO COLÓN",null,null,"INCUMPLIMIENTO EN EL PAGO DE LA INDEXACION Y REAJUSTE DE LA PENSION DE SOBREVIVIENTE"]
[null,null,null,null,null,null,null,null,null,null,null,null,null,null,null,"25","CUNDINAMARCA","25873","VILLAPINZÓN",null,null,null,"NUNCHÍA",null,null,"NO RECONOCIMIENTO DE REAJUSTE DE LA PENSION POR LEY 4 DE 1992"]
[null,null,null,null,null,null,null,null,null,null,null,null,null,null,null,"25","CUNDINAMARCA","25875","VILLETA",null,null,null,"NUQUÍ",null,null,"INDEBIDA LIQUIDACION DE REAJUSTE DE LA PENSION POR LEY 4 DE 1992"]
[null,null,null,null,null,null,null,null,null,null,null,null,null,null,null,"25","CUNDINAMARCA","25878","VIOTÁ",null,null,null,"OBANDO",null,null,"INCUMPLIMIENTO EN EL PAGO DE REAJUSTE DE LA PENSION POR LEY 4 DE 1992"]
[null,null,null,null,null,null,null,null,null,null,null,null,null,null,null,"25","CUNDINAMARCA","25885","YACOPÍ",null,null,null,"OCAMONTE",null,null,"INDEBIDA LIQUIDACION DE PENSION FAMILIAR"]
[null,null,null,null,null,null,null,null,null,null,null,null,null,null,null,"25","CUNDINAMARCA","25898","ZIPACÓN",null,null,null,"OCAÑA",null,null,"INCUMPLIMIENTO EN EL PAGO DE PENSION FAMILIAR"]
[null,null,null,null,null,null,null,null,null,null,null,null,null,null,null,"25","CUNDINAMARCA","25899","ZIPAQUIRÁ",null,null,null,"OIBA",null,null,"NO RECONOCIMIENTO DEL AUXILIO DE CESANTIAS"]
[null,null,null,null,null,null,null,null,null,null,null,null,null,null,null,"27","CHOCÓ","27001","QUIBDÓ",null,null,null,"OICATÁ",null,null,"INDEBIDA LIQUIDACION DEL AUXILIO DE CESANTIAS"]
[null,null,null,null,null,null,null,null,null,null,null,null,null,null,null,"27","CHOCÓ","27006","ACANDÍ",null,null,null,"OLAYA",null,null,"NO RECONOCIMIENTO DE INTERESES SOBRE AUXILIO DE CESANTIAS"]
[null,null,null,null,null,null,null,null,null,null,null,null,null,null,null,"27","CHOCÓ","27025","ALTO BAUDÓ",null,null,null,"OLAYA HERRERA",null,null,"INDEBIDA LIQUIDACION DE INTERESES SOBRE AUXILIO DE CESANTIAS"]
[null,null,null,null,null,null,null,null,null,null,null,null,null,null,null,"27","CHOCÓ","27050","ATRATO",null,null,null,"ONZAGA",null,null,"ILEGALIDAD DEL ACTO ADMINISTRATIVO QUE SANCIONA DISCIPLINARIAMENTE A FUNCIONARIO PUBLICO POR ABANDONO DEL CARGO"]
[null,null,null,null,null,null,null,null,null,null,null,null,null,null,null,"27","CHOCÓ","27073","BAGADÓ",null,null,null,"OPORAPA",null,null,"ILEGALIDAD DEL ACTO ADMINISTRATIVO QUE SANCIONA DISCIPLINARIAMENTE A TRABAJADOR OFICIAL POR ABANDONO DEL SERVICIO"]
[null,null,null,null,null,null,null,null,null,null,null,null,null,null,null,"27","CHOCÓ","27075","BAHÍA SOLANO",null,null,null,"ORITO",null,null,"INCUMPLIMIENTO EN EL PAGO DE ASIGNACION DE RETIRO"]
[null,null,null,null,null,null,null,null,null,null,null,null,null,null,null,"27","CHOCÓ","27077","BAJO BAUDÓ",null,null,null,"OROCUÉ",null,null,"INDEBIDA LIQUIDACION DE SUSTITUCION DE LA ASIGNACION DE RETIRO"]
[null,null,null,null,null,null,null,null,null,null,null,null,null,null,null,"27","CHOCÓ","27099","BOJAYÁ",null,null,null,"ORTEGA",null,null,"INCUMPLIMIENTO EN EL PAGO DE SUSTITUCION DE LA ASIGNACION DE RETIRO"]
[null,null,null,null,null,null,null,null,null,null,null,null,null,null,null,"27","CHOCÓ","27135","EL CANTÓN DEL SAN PABLO",null,null,null,"OSPINA",null,null,"NO RECONOCIMIENTO DE PRIMA DE SERVICIOS"]
[null,null,null,null,null,null,null,null,null,null,null,null,null,null,null,"27","CHOCÓ","27150","CARMEN DEL DARIÉN",null,null,null,"OTANCHE",null,null,"INDEBIDA LIQUIDACION DE PRIMA DE SERVICIOS"]
[null,null,null,null,null,null,null,null,null,null,null,null,null,null,null,"27","CHOCÓ","27160","CÉRTEGUI",null,null,null,"OVEJAS",null,null,"INCUMPLIMIENTO EN EL PAGO DE PRIMA DE SERVICIOS"]
[null,null,null,null,null,null,null,null,null,null,null,null,null,null,null,"27","CHOCÓ","27205","CONDOTO",null,null,null,"PACHAVITA",null,null,"INDEBIDA LIQUIDACION DE PRIMA DE ACTUALIZACION"]
[null,null,null,null,null,null,null,null,null,null,null,null,null,null,null,"27","CHOCÓ","27245","EL CARMEN DE ATRATO",null,null,null,"PACHO",null,null,"INCUMPLIMIENTO EN EL PAGO DE PRIMA DE ACTUALIZACION"]
[null,null,null,null,null,null,null,null,null,null,null,null,null,null,null,"27","CHOCÓ","27250","EL LITORAL DEL SAN JUAN",null,null,null,"PACOA",null,null,"INCUMPLIMIENTO EN EL PAGO DE PRIMA DE ACTIVIDAD"]
[null,null,null,null,null,null,null,null,null,null,null,null,null,null,null,"27","CHOCÓ","27361","ISTMINA",null,null,null,"PÁCORA",null,null,"INDEBIDA LIQUIDACION DE PRIMA DE ANTIGUEDAD"]
[null,null,null,null,null,null,null,null,null,null,null,null,null,null,null,"27","CHOCÓ","27372","JURADÓ",null,null,null,"PADILLA",null,null,"INCUMPLIMIENTO EN EL PAGO DE PRIMA DE ANTIGUEDAD"]
[null,null,null,null,null,null,null,null,null,null,null,null,null,null,null,"27","CHOCÓ","27413","LLORÓ",null,null,null,"PÁEZ",null,null,"INDEBIDA LIQUIDACION DE PRIMA TECNICA"]
[null,null,null,null,null,null,null,null,null,null,null,null,null,null,null,"27","CHOCÓ","27425","MEDIO ATRATO",null,null,null,"PAICOL",null,null,"INCUMPLIMIENTO EN EL PAGO DE PRIMA TECNICA"]
[null,null,null,null,null,null,null,null,null,null,null,null,null,null,null,"27","CHOCÓ","27430","MEDIO BAUDÓ",null,null,null,"PAILITAS",null,null,"INDEBIDA LIQUIDACION DE SUBSIDIO FAMILIAR"]
[null,null,null,null,null,null,null,null,null,null,null,null,null,null,null,"27","CHOCÓ","27450","MEDIO SAN JUAN",null,null,null,"PAIME",null,null,"INCUMPLIMIENTO EN EL PAGO DE SUBSIDIO FAMILIAR"]
[null,null,null,null,null,null,null,null,null,null,null,null,null,null,null,"27","CHOCÓ","27491","NÓVITA",null,null,null,"PAIPA",null,null,"NO RECONOCIMIENTO DE SUBSIDIO DE VIVIENDA"]
[null,null,null,null,null,null,null,null,null,null,null,null,null,null,null,"27","CHOCÓ","27495","NUQUÍ",null,null,null,"PAJARITO",null,null,"INDEBIDA LIQUIDACION DE SUBSIDIO DE VIVIENDA"]
[null,null,null,null,null,null,null,null,null,null,null,null,null,null,null,"27","CHOCÓ","27580","RÍO IRÓ",null,null,null,"PALERMO",null,null,"INCUMPLIMIENTO EN EL PAGO DE SUBSIDIO DE VIVIENDA"]
[null,null,null,null,null,null,null,null,null,null,null,null,null,null,null,"27","CHOCÓ","27600","RÍO QUITO",null,null,null,"PALESTINA",null,null,"NO RECONOCIMIENTO DE PRESTACIONES SOCIALES"]
[null,null,null,null,null,null,null,null,null,null,null,null,null,null,null,"27","CHOCÓ","27615","RIOSUCIO",null,null,null,"PALMAR",null,null,"INDEBIDA LIQUIDACION DE PRESTACIONES SOCIALES"]
[null,null,null,null,null,null,null,null,null,null,null,null,null,null,null,"27","CHOCÓ","27660","SAN JOSÉ DEL PALMAR",null,null,null,"PALMAR DE VARELA",null,null,"NO RECONOCIMIENTO DE HONORARIOS"]
[null,null,null,null,null,null,null,null,null,null,null,null,null,null,null,"27","CHOCÓ","27745","SIPÍ",null,null,null,"PALMAS DEL SOCORRO",null,null,"INDEBIDA LIQUIDACION DE HONORARIOS"]
[null,null,null,null,null,null,null,null,null,null,null,null,null,null,null,"27","CHOCÓ","27787","TADÓ",null,null,null,"PALMIRA",null,null,"INCUMPLIMIENTO EN EL PAGO DE HONORARIOS"]
[null,null,null,null,null,null,null,null,null,null,null,null,null,null,null,"27","CHOCÓ","27800","UNGUÍA",null,null,null,"PALMITO",null,null,"ILEGALIDAD DEL ACTO ADMINISTRATIVO QUE RETIRA DEL SERVICIO A MIEMBRO DE LA FUERZA PUBLICA POR PERDIDA DE LA CAPACIDAD LABORAL"]
[null,null,null,null,null,null,null,null,null,null,null,null,null,null,null,"27","CHOCÓ","27810","UNIÓN PANAMERICANA",null,null,null,"PALOCABILDO",null,null,"ILEGALIDAD DEL ACTO ADMINISTRATIVO DE DESVINCULACION DE LOS MIEMBROS DE LA FUERZA PUBLICA POR LLAMAMIENTO A CALIFICAR SERVICIOS"]
[null,null,null,null,null,null,null,null,null,null,null,null,null,null,null,"41","HUILA","41001","NEIVA",null,null,null,"PAMPLONA",null,null,"ILEGALIDAD DEL ACTO ADMINISTRATIVO DE DESVINCULACION DE LOS MIEMBROS DE LA FUERZA PUBLICA POR RETIRO DISCRECIONAL"]
[null,null,null,null,null,null,null,null,null,null,null,null,null,null,null,"41","HUILA","41006","ACEVEDO",null,null,null,"PAMPLONITA",null,null,"DESCONOCIMIENTO DEL FUERO SINDICAL"]
[null,null,null,null,null,null,null,null,null,null,null,null,null,null,null,"41","HUILA","41013","AGRADO",null,null,null,"PANA PANA",null,null,"DESCONOCIMIENTO DEL FUERO SINDICAL EN LOS PROCESOS DE REESTRUCTURACION Y LIQUIDACION DE ENTIDADES PUBLICAS"]
[null,null,null,null,null,null,null,null,null,null,null,null,null,null,null,"41","HUILA","41016","AIPE",null,null,null,"PANDI",null,null,"DAÑOS CAUSADOS A FUNCIONARIO DE CARRERA ADMINISTRATIVA DURANTE LOS PROCESOS DE REESTRUCTURACION Y LIQUIDACION DE ENTIDADES PUBLICAS"]
[null,null,null,null,null,null,null,null,null,null,null,null,null,null,null,"41","HUILA","41020","ALGECIRAS",null,null,null,"PANQUEBA",null,null,"DAÑOS CAUSADOS A FUNCIONARIO DE LIBRE NOMBRAMIENTO Y REMOCION DURANTE LOS PROCESOS DE REESTRUCTURACION Y LIQUIDACION DE ENTIDADES PUBLICAS"]
[null,null,null,null,null,null,null,null,null,null,null,null,null,null,null,"41","HUILA","41026","ALTAMIRA",null,null,null,"PAPUNAHUA",null,null,"DAÑOS CAUSADOS A FUNCIONARIO EN PROVISIONALIDAD DURANTE LOS PROCESOS DE REESTRUCTURACION Y LIQUIDACION DE ENTIDADES PUBLICAS"]
[null,null,null,null,null,null,null,null,null,null,null,null,null,null,null,"41","HUILA","41078","BARAYA",null,null,null,"PÁRAMO",null,null,"CUMPLIMIENTO DE REQUISITOS LEGALES PARA LEVANTAMIENTO DE FUERO SINDICAL EN PROCESOS DE REESTRUCTURACION Y LIQUIDACION DE ENTIDADES PUBLICAS"]
[null,null,null,null,null,null,null,null,null,null,null,null,null,null,null,"41","HUILA","41132","CAMPOALEGRE",null,null,null,"PARATEBUENO",null,null,"ILEGALIDAD DEL ACTO ADMINISTRATIVO QUE ORDENA EL RETIRO DE SERVIDOR PUBLICO POR CUMPLIMIENTO DE LA EDAD DE RETIRO FORZOSO"]
[null,null,null,null,null,null,null,null,null,null,null,null,null,null,null,"41","HUILA","41206","COLOMBIA",null,null,null,"PASCA",null,null,"NO RECONOCIMIENTO DE PAGO DE INCAPACIDAD MEDICA"]
[null,null,null,null,null,null,null,null,null,null,null,null,null,null,null,"41","HUILA","41244","ELÍAS",null,null,null,"PASTO",null,null,"INDEBIDA LIQUIDACION DE PAGO DE INCAPACIDAD MEDICA"]
[null,null,null,null,null,null,null,null,null,null,null,null,null,null,null,"41","HUILA","41298","GARZÓN",null,null,null,"PATÍA",null,null,"INCUMPLIMIENTO EN EL PAGO DE INCAPACIDAD MEDICA"]
[null,null,null,null,null,null,null,null,null,null,null,null,null,null,null,"41","HUILA","41306","GIGANTE",null,null,null,"PAUNA",null,null,"INDEBIDA LIQUIDACION DE INDEMNIZACION POR DISMINUCION DE CAPACIDAD LABORAL"]
[null,null,null,null,null,null,null,null,null,null,null,null,null,null,null,"41","HUILA","41319","GUADALUPE",null,null,null,"PAYA",null,null,"INCUMPLIMIENTO EN EL PAGO DE INDEMNIZACION POR DISMINUCION DE CAPACIDAD LABORAL"]
[null,null,null,null,null,null,null,null,null,null,null,null,null,null,null,"41","HUILA","41349","HOBO",null,null,null,"PAZ DE ARIPORO",null,null,"INDEBIDO TRASLADO DE FUNCIONARIO PUBLICO"]
[null,null,null,null,null,null,null,null,null,null,null,null,null,null,null,"41","HUILA","41357","ÍQUIRA",null,null,null,"PAZ DE RÍO",null,null,"INDEBIDO TRASLADO DE TRABAJADOR OFICIAL"]
[null,null,null,null,null,null,null,null,null,null,null,null,null,null,null,"41","HUILA","41359","ISNOS",null,null,null,"PEDRAZA",null,null,"INDEBIDA LIQUIDACION DE INDEMNIZACION POR MUERTE EN ACCIDENTE DE TRABAJO"]
[null,null,null,null,null,null,null,null,null,null,null,null,null,null,null,"41","HUILA","41378","LA ARGENTINA",null,null,null,"PELAYA",null,null,"INCUMPLIMIENTO EN EL PAGO DE INDEMNIZACION POR MUERTE EN ACCIDENTE DE TRABAJO"]
[null,null,null,null,null,null,null,null,null,null,null,null,null,null,null,"41","HUILA","41396","LA PLATA",null,null,null,"PENSILVANIA",null,null,"INDEBIDA LIQUIDACION DE LA BONIFICACION POR COMPENSACION"]
[null,null,null,null,null,null,null,null,null,null,null,null,null,null,null,"41","HUILA","41483","NÁTAGA",null,null,null,"PEÑOL",null,null,"INCUMPLIMIENTO EN EL PAGO DE LA BONIFICACION POR COMPENSACION"]
[null,null,null,null,null,null,null,null,null,null,null,null,null,null,null,"41","HUILA","41503","OPORAPA",null,null,null,"PEQUE",null,null,"INCUMPLIMIENTO EN EL PAGO DE REGALIAS"]
[null,null,null,null,null,null,null,null,null,null,null,null,null,null,null,"41","HUILA","41518","PAICOL",null,null,null,"PEREIRA",null,null,"NO OTORGAMIENTO DE LICENCIAS AMBIENTALES"]
[null,null,null,null,null,null,null,null,null,null,null,null,null,null,null,"41","HUILA","41524","PALERMO",null,null,null,"PESCA",null,null,"REVOCATORIA DE LICENCIAS AMBIENTALES"]
[null,null,null,null,null,null,null,null,null,null,null,null,null,null,null,"41","HUILA","41530","PALESTINA",null,null,null,"PIAMONTE",null,null,"SUSPENSION DE LICENCIAS AMBIENTALES"]
[null,null,null,null,null,null,null,null,null,null,null,null,null,null,null,"41","HUILA","41548","PITAL",null,null,null,"PIEDECUESTA",null,null,"SUSPENSION DE LICENCIA DE FUNCIONAMIENTO"]
[null,null,null,null,null,null,null,null,null,null,null,null,null,null,null,"41","HUILA","41551","PITALITO",null,null,null,"PIEDRAS",null,null,"ILEGALIDAD DEL ACTO ADMINISTRATIVO QUE NIEGA LICENCIA DE EXPLORACION MINERA"]
[null,null,null,null,null,null,null,null,null,null,null,null,null,null,null,"41","HUILA","41615","RIVERA",null,null,null,"PIENDAMÓ - TUNÍA",null,null,"ILEGALIDAD DEL ACTO ADMINISTRATIVO QUE NIEGA LICENCIA DE EXPLOTACION MINERA"]
[null,null,null,null,null,null,null,null,null,null,null,null,null,null,null,"41","HUILA","41660","SALADOBLANCO",null,null,null,"PIJAO",null,null,"ILEGALIDAD DEL ACTO ADMINISTRATIVO QUE NIEGA APORTES MINEROS"]
[null,null,null,null,null,null,null,null,null,null,null,null,null,null,null,"41","HUILA","41668","SAN AGUSTÍN",null,null,null,"PIJIÑO DEL CARMEN",null,null,"ILEGALIDAD DEL ACTO ADMINISTRATIVO QUE RECHAZA PROPUESTA DE CONTRATO DE CONCESION MINERA"]
[null,null,null,null,null,null,null,null,null,null,null,null,null,null,null,"41","HUILA","41676","SANTA MARÍA",null,null,null,"PINCHOTE",null,null,"ILEGALIDAD DEL ACTO ADMINISTRATIVO QUE RECHAZA PROPUESTA DE CONTRATO MINERO CON LAS ENTIDADES DESCENTRALIZADAS"]
[null,null,null,null,null,null,null,null,null,null,null,null,null,null,null,"41","HUILA","41770","SUAZA",null,null,null,"PINILLOS",null,null,"ILEGALIDAD DEL ACTO ADMINISTRATIVO QUE NIEGA INSCRIPCION DE TITULO MINERO EN EL REGISTRO MINERO"]
[null,null,null,null,null,null,null,null,null,null,null,null,null,null,null,"41","HUILA","41791","TARQUI",null,null,null,"PIOJÓ",null,null,"ILEGALIDAD DEL ACTO ADMINISTRATIVO QUE CREA UN IMPUESTO"]
[null,null,null,null,null,null,null,null,null,null,null,null,null,null,null,"41","HUILA","41797","TESALIA",null,null,null,"PISBA",null,null,"ILEGALIDAD DEL ACTO ADMINISTRATIVO QUE LIQUIDA UN IMPUESTO"]
[null,null,null,null,null,null,null,null,null,null,null,null,null,null,null,"41","HUILA","41799","TELLO",null,null,null,"PITAL",null,null,"ILEGALIDAD DEL ACTO ADMINISTRATIVO QUE CREA UNA TASA"]
[null,null,null,null,null,null,null,null,null,null,null,null,null,null,null,"41","HUILA","41801","TERUEL",null,null,null,"PITALITO",null,null,"ILEGALIDAD DEL ACTO ADMINISTRATIVO QUE LIQUIDA UNA TASA"]
[null,null,null,null,null,null,null,null,null,null,null,null,null,null,null,"41","HUILA","41807","TIMANÁ",null,null,null,"PIVIJAY",null,null,"ILEGALIDAD DEL ACTO ADMINISTRATIVO QUE CREA UNA CONTRIBUCION ESPECIAL"]
[null,null,null,null,null,null,null,null,null,null,null,null,null,null,null,"41","HUILA","41872","VILLAVIEJA",null,null,null,"PLANADAS",null,null,"ILEGALIDAD DEL ACTO ADMINISTRATIVO QUE LIQUIDA UNA CONTRIBUCION ESPECIAL"]
[null,null,null,null,null,null,null,null,null,null,null,null,null,null,null,"41","HUILA","41885","YAGUARÁ",null,null,null,"PLANETA RICA",null,null,"NO RECONOCIMIENTO DE COSTO ACUMULADO DE ASCENSOS EN EL ESCALAFON DOCENTE"]
[null,null,null,null,null,null,null,null,null,null,null,null,null,null,null,"44","LA GUAJIRA","44001","RIOHACHA",null,null,null,"PLATO",null,null,"INDEBIDA LIQUIDACION DE DE COSTO ACUMULADO DE ASCENSOS EN EL ESCALAFON DOCENTE"]
[null,null,null,null,null,null,null,null,null,null,null,null,null,null,null,"44","LA GUAJIRA","44035","ALBANIA",null,null,null,"POLICARPA",null,null,"INCUMPLIMIENTO EN EL PAGO DE COSTO ACUMULADO DE ASCENSOS EN EL ESCALAFON DOCENTE"]
[null,null,null,null,null,null,null,null,null,null,null,null,null,null,null,"44","LA GUAJIRA","44078","BARRANCAS",null,null,null,"POLONUEVO",null,null,"INCUMPLIMIENTO DE REQUISITOS PARA DESIGNACION DE LIQUIDADOR"]
[null,null,null,null,null,null,null,null,null,null,null,null,null,null,null,"44","LA GUAJIRA","44090","DIBULLA",null,null,null,"PONEDERA",null,null,"INCUMPLIMIENTO DEL DEBER DE SEGUIMIENTO A LOS PROCESOS DE LIQUIDACION DE ENTIDADES FINANCIERAS"]
[null,null,null,null,null,null,null,null,null,null,null,null,null,null,null,"44","LA GUAJIRA","44098","DISTRACCIÓN",null,null,null,"POPAYÁN",null,null,"INDEBIDA OFICIALIZACION DE ENTIDAD FINANCIERA"]
[null,null,null,null,null,null,null,null,null,null,null,null,null,null,null,"44","LA GUAJIRA","44110","EL MOLINO",null,null,null,"PORE",null,null,"INDEBIDA LIQUIDACION DE LA PRIMA DE SEGURO DE DEPOSITO"]
[null,null,null,null,null,null,null,null,null,null,null,null,null,null,null,"44","LA GUAJIRA","44279","FONSECA",null,null,null,"POTOSÍ",null,null,"ACCESION POR ALUVION"]
[null,null,null,null,null,null,null,null,null,null,null,null,null,null,null,"44","LA GUAJIRA","44378","HATONUEVO",null,null,null,"PRADERA",null,null,"ILEGALIDAD DEL ACTO ADMINISTRATIVO QUE APRUEBA CALCULO ACTUARIAL"]
[null,null,null,null,null,null,null,null,null,null,null,null,null,null,null,"44","LA GUAJIRA","44420","LA JAGUA DEL PILAR",null,null,null,"PRADO",null,null,"COBRO INDEBIDO DE OBLIGACION"]
[null,null,null,null,null,null,null,null,null,null,null,null,null,null,null,"44","LA GUAJIRA","44430","MAICAO",null,null,null,"PROVIDENCIA",null,null,"INDEBIDA LIQUIDACION DE PENSION SUSTITUTIVA"]
[null,null,null,null,null,null,null,null,null,null,null,null,null,null,null,"44","LA GUAJIRA","44560","MANAURE",null,null,null,"PUEBLO BELLO",null,null,"INCUMPLIMIENTO EN EL PAGO DE PENSION SUSTITUTIVA"]
[null,null,null,null,null,null,null,null,null,null,null,null,null,null,null,"44","LA GUAJIRA","44650","SAN JUAN DEL CESAR",null,null,null,"PUEBLO NUEVO",null,null,"INDEBIDO SUMINISTRO DE PROGRAMAS, MEDIDAS O ACCIONES AFIRMATIVAS QUE PERMITAN LA INCLUSION DE LAS PERSONAS CON ALGUNA DISCAPACIDAD"]
[null,null,null,null,null,null,null,null,null,null,null,null,null,null,null,"44","LA GUAJIRA","44847","URIBIA",null,null,null,"PUEBLO RICO",null,null,"NO RECONOCIMIENTO DE INDEMNIZACION POR DESPIDO SIN JUSTA CAUSA"]
[null,null,null,null,null,null,null,null,null,null,null,null,null,null,null,"44","LA GUAJIRA","44855","URUMITA",null,null,null,"PUEBLORRICO",null,null,"INCUMPLIMIENTO EN EL PAGO DE INDEMNIZACION POR DESPIDO SIN JUSTA CAUSA"]
[null,null,null,null,null,null,null,null,null,null,null,null,null,null,null,"44","LA GUAJIRA","44874","VILLANUEVA",null,null,null,"PUEBLOVIEJO",null,null,"INCUMPLIMIENTO DEL DEBER DE PROTECCION A LA HONRA Y BUEN NOMBRE"]
[null,null,null,null,null,null,null,null,null,null,null,null,null,null,null,"47","MAGDALENA","47001","SANTA MARTA",null,null,null,"PUENTE NACIONAL",null,null,"NO RECONOCIMIENTO DEL 20% DE INCREMENTO DE ASIGNACION SALARIAL MENSUAL PARA SOLDADOS PROFESIONALES SEGUN DECRETO 1794 DE 2000"]
[null,null,null,null,null,null,null,null,null,null,null,null,null,null,null,"47","MAGDALENA","47030","ALGARROBO",null,null,null,"PUERRES",null,null,"ILEGALIDAD DEL ACTO ADMINISTRATIVO QUE NIEGA INSCRIPCION EN EL REGISTRO UNICO DE VICTIMAS"]
[null,null,null,null,null,null,null,null,null,null,null,null,null,null,null,"47","MAGDALENA","47053","ARACATACA",null,null,null,"PUERTO ALEGRÍA",null,null,"ILEGALIDAD DEL ACTO ADMINISTRATIVO QUE IMPONE SANCION POR INDEBIDA CANALIZACION DE DIVISAS"]
[null,null,null,null,null,null,null,null,null,null,null,null,null,null,null,"47","MAGDALENA","47058","ARIGUANÍ",null,null,null,"PUERTO ARICA",null,null,"ILEGALIDAD DEL ACTO ADMINISTRATIVO QUE IMPONE SANCION POR NO CANALIZACION DE DIVISAS"]
[null,null,null,null,null,null,null,null,null,null,null,null,null,null,null,"47","MAGDALENA","47161","CERRO DE SAN ANTONIO",null,null,null,"PUERTO ASÍS",null,null,"ILEGALIDAD DEL ACTO ADMINISTRATIVO QUE IMPONE SANCION RELACIONADA CON CUENTAS DE COMPENSACION"]
[null,null,null,null,null,null,null,null,null,null,null,null,null,null,null,"47","MAGDALENA","47170","CHIVOLO",null,null,null,"PUERTO BERRÍO",null,null,"ILEGALIDAD DEL ACTO ADMINISTRATIVO QUE IMPONE SANCION POR OPERACIONES DE MERCADO LIBRE"]
[null,null,null,null,null,null,null,null,null,null,null,null,null,null,null,"47","MAGDALENA","47189","CIÉNAGA",null,null,null,"PUERTO BOYACÁ",null,null,"ILEGALIDAD DEL ACTO ADMINISTRATIVO QUE IMPONE SANCION POR INFRACCIONES CAMBIARIAS"]
[null,null,null,null,null,null,null,null,null,null,null,null,null,null,null,"47","MAGDALENA","47205","CONCORDIA",null,null,null,"PUERTO CAICEDO",null,null,"ILEGALIDAD DEL ACTO ADMINISTRATIVO QUE DECLARA EL INCUMPLIMIENTO DE UNA OBLIGACION ADUANERA Y ORDENA HACER EFECTIVA LA GARANTIA"]
[null,null,null,null,null,null,null,null,null,null,null,null,null,null,null,"47","MAGDALENA","47245","EL BANCO",null,null,null,"PUERTO CARREÑO",null,null,"ILEGALIDAD DEL ACTO ADMINISTRATIVO QUE DECLARA LA PERDIDA O NO ACCESO A BENEFICIOS TRIBUTARIOS"]
[null,null,null,null,null,null,null,null,null,null,null,null,null,null,null,"47","MAGDALENA","47258","EL PIÑÓN",null,null,null,"PUERTO COLOMBIA",null,null,"ILEGALIDAD DEL ACTO ADMINISTRATIVO QUE LIQUIDA IMPUESTO ARMAS, MUNICIONES Y EXPLOSIVOS"]
[null,null,null,null,null,null,null,null,null,null,null,null,null,null,null,"47","MAGDALENA","47268","EL RETÉN",null,null,null,"PUERTO CONCORDIA",null,null,"ILEGALIDAD DEL ACTO ADMINISTRATIVO QUE LIQUIDA UNA CONTRIBUCION DE OBRA PUBLICA"]
[null,null,null,null,null,null,null,null,null,null,null,null,null,null,null,"47","MAGDALENA","47288","FUNDACIÓN",null,null,null,"PUERTO ESCONDIDO",null,null,"ILEGALIDAD DEL ACTO ADMINISTRATIVO QUE DECIDE SOBRE TERMINACION POR MUTUO ACUERDO DE PROCESOS ADMINISTRATIVOS TRIBUTARIOS, ADUANEROS O CAMBIARIOS"]
[null,null,null,null,null,null,null,null,null,null,null,null,null,null,null,"47","MAGDALENA","47318","GUAMAL",null,null,null,"PUERTO GAITÁN",null,null,"ILEGALIDAD DEL ACTO ADMINISTRATIVO QUE RECHAZA SOLICITUD DEVOLUCION POR PAGO DE LO NO DEBIDO"]
[null,null,null,null,null,null,null,null,null,null,null,null,null,null,null,"47","MAGDALENA","47460","NUEVA GRANADA",null,null,null,"PUERTO GUZMÁN",null,null,"ILEGALIDAD DEL ACTO ADMINISTRATIVO QUE DA COMO NO PRESENTADA UNA DECLARACION TRIBUTARIA"]
[null,null,null,null,null,null,null,null,null,null,null,null,null,null,null,"47","MAGDALENA","47541","PEDRAZA",null,null,null,"PUERTO LEGUÍZAMO",null,null,"ILEGALIDAD DEL ACTO ADMINISTRATIVO QUE IMPONE SANCION POR NO PRESENTAR DECLARACION TRIBUTARIA"]
[null,null,null,null,null,null,null,null,null,null,null,null,null,null,null,"47","MAGDALENA","47545","PIJIÑO DEL CARMEN",null,null,null,"PUERTO LIBERTADOR",null,null,"INDEBIDA INSCRIPCION EN EL REGISTRO MERCANTIL"]
[null,null,null,null,null,null,null,null,null,null,null,null,null,null,null,"47","MAGDALENA","47551","PIVIJAY",null,null,null,"PUERTO LLERAS",null,null,"TRANSMISION FORZOSA DEL DERECHO REAL DE DOMINIO PRIVADO SOBRE UN BIEN A FAVOR DEL ESTADO - EXPROPIACION JUDICIAL"]
[null,null,null,null,null,null,null,null,null,null,null,null,null,null,null,"47","MAGDALENA","47555","PLATO",null,null,null,"PUERTO LÓPEZ",null,null,"ILEGALIDAD DEL ACTO ADMINISTRATIVO QUE RESUELVE RECURSOS CONTRA LAS DECISIONES DE LOS PRESTADORES DE SERVICIOS PUBLICOS DOMICILIARIOS"]
[null,null,null,null,null,null,null,null,null,null,null,null,null,null,null,"47","MAGDALENA","47570","PUEBLOVIEJO",null,null,null,"PUERTO NARE",null,null,"ILEGALIDAD DEL ACTO ADMINISTRATIVO QUE DISPONE LA TOMA DE POSESION DE UNA EMPRESA PRESTADORA DE SERVICIOS PUBLICOS DOMICILIARIOS"]
[null,null,null,null,null,null,null,null,null,null,null,null,null,null,null,"47","MAGDALENA","47605","REMOLINO",null,null,null,"PUERTO NARIÑO",null,null,"ILEGALIDAD DEL ACTO ADMINISTRATIVO QUE DETERMINA SI PROCEDE LA RECUPERACION DE CONSUMOS DE SERVICIOS PUBLICOS DOMICILIARIOS NO FACTURADOS"]
[null,null,null,null,null,null,null,null,null,null,null,null,null,null,null,"47","MAGDALENA","47660","SABANAS DE SAN ÁNGEL",null,null,null,"PUERTO PARRA",null,null,"ILEGALIDAD DEL ACTO ADMINISTRATIVO QUE RESUELVE SOBRE LA RELIQUIDACION DE VALORES CONTENIDOS EN UNA FACTURA DE SERVICIOS PUBLICOS DOMICILIARIOS"]
[null,null,null,null,null,null,null,null,null,null,null,null,null,null,null,"47","MAGDALENA","47675","SALAMINA",null,null,null,"PUERTO RICO",null,null,"ILEGALIDAD DEL ACTO ADMINISTRATIVO QUE DISPONE EL REINTEGRO DE RECURSOS A FAVOR DEL ESTADO"]
[null,null,null,null,null,null,null,null,null,null,null,null,null,null,null,"47","MAGDALENA","47692","SAN SEBASTIÁN DE BUENAVISTA",null,null,null,"PUERTO RONDÓN",null,null,"INCUMPLIMIENTO EN EL PAGO DE INDEMNIZACION SUSTITUTIVA DE PENSION DE VEJEZ"]
[null,null,null,null,null,null,null,null,null,null,null,null,null,null,null,"47","MAGDALENA","47703","SAN ZENÓN",null,null,null,"PUERTO SALGAR",null,null,"NO RECONOCIMIENTO DE INDEMNIZACION SUSTITUTIVA DE PENSION DE SOBREVIVIENTES"]
[null,null,null,null,null,null,null,null,null,null,null,null,null,null,null,"47","MAGDALENA","47707","SANTA ANA",null,null,null,"PUERTO SANTANDER",null,null,"INDEBIDA LIQUIDACION DE INDEMNIZACION SUSTITUTIVA DE PENSION DE SOBREVIVIENTES"]
[null,null,null,null,null,null,null,null,null,null,null,null,null,null,null,"47","MAGDALENA","47720","SANTA BÁRBARA DE PINTO",null,null,null,"PUERTO TEJADA",null,null,"INCUMPLIMIENTO EN EL PAGO DE INDEMNIZACION SUSTITUTIVA DE PENSION DE SOBREVIVIENTES"]
[null,null,null,null,null,null,null,null,null,null,null,null,null,null,null,"47","MAGDALENA","47745","SITIONUEVO",null,null,null,"PUERTO TRIUNFO",null,null,"NO RECONOCIMIENTO DE RETROACTIVO DE PENSION DE SOBREVIVIENTE"]
[null,null,null,null,null,null,null,null,null,null,null,null,null,null,null,"47","MAGDALENA","47798","TENERIFE",null,null,null,"PUERTO WILCHES",null,null,"INDEBIDA LIQUIDACION DE RETROACTIVO DE PENSION DE SOBREVIVIENTE"]
[null,null,null,null,null,null,null,null,null,null,null,null,null,null,null,"47","MAGDALENA","47960","ZAPAYÁN",null,null,null,"PULÍ",null,null,"INCUMPLIMIENTO EN EL PAGO DE RETROACTIVO DE PENSION DE SOBREVIVIENTE"]
[null,null,null,null,null,null,null,null,null,null,null,null,null,null,null,"47","MAGDALENA","47980","ZONA BANANERA",null,null,null,"PUPIALES",null,null,"NO RECONOCIMIENTO DE LA INDEXACION Y REAJUSTE DE PENSION SUSTITUTIVA"]
[null,null,null,null,null,null,null,null,null,null,null,null,null,null,null,"50","META","50001","VILLAVICENCIO",null,null,null,"PURACÉ",null,null,"INCUMPLIMIENTO EN EL PAGO DE LA INDEXACION Y REAJUSTE DE PENSION SUSTITUTIVA"]
[null,null,null,null,null,null,null,null,null,null,null,null,null,null,null,"50","META","50006","ACACÍAS",null,null,null,"PURIFICACIÓN",null,null,"NO RECONOCIMIENTO DE RETROACTIVO DE PENSION SUSTITUTIVA"]
[null,null,null,null,null,null,null,null,null,null,null,null,null,null,null,"50","META","50110","BARRANCA DE UPÍA",null,null,null,"PURÍSIMA DE LA CONCEPCIÓN",null,null,"INDEBIDA LIQUIDACION DE RETROACTIVO DE PENSION SUSTITUTIVA"]
[null,null,null,null,null,null,null,null,null,null,null,null,null,null,null,"50","META","50124","CABUYARO",null,null,null,"QUEBRADANEGRA",null,null,"INCUMPLIMIENTO EN EL PAGO DE RETROACTIVO DE PENSION SUSTITUTIVA"]
[null,null,null,null,null,null,null,null,null,null,null,null,null,null,null,"50","META","50150","CASTILLA LA NUEVA",null,null,null,"QUETAME",null,null,"ILEGALIDAD DEL ACTO ADMINISTRATIVO QUE NIEGA ACTUALIZACION O CANCELACION DE RUT"]
[null,null,null,null,null,null,null,null,null,null,null,null,null,null,null,"50","META","50223","CUBARRAL",null,null,null,"QUIBDÓ",null,null,"ILEGALIDAD DE ACTO ADMINISTRATIVO DURANTE EL CONCURSO DE MÉRITOS PARA PROVEER CARGOS PÚBLICOS"]
[null,null,null,null,null,null,null,null,null,null,null,null,null,null,null,"50","META","50226","CUMARAL",null,null,null,"QUIMBAYA",null,null,"DESPIDO SIN JUSTA CAUSA DE TRABAJADOR VINCULADO A ENTIDAD PUBLICA DE REGIMEN DE DERECHO PRIVADO"]
[null,null,null,null,null,null,null,null,null,null,null,null,null,null,null,"50","META","50245","EL CALVARIO",null,null,null,"QUINCHÍA",null,null,"ILEGALIDAD DEL ACTO ADMINISTRATIVO QUE PROFIERE LIQUIDACION OFICIAL DE CORRECCION EN ADUANAS"]
[null,null,null,null,null,null,null,null,null,null,null,null,null,null,null,"50","META","50251","EL CASTILLO",null,null,null,"QUÍPAMA"]
[null,null,null,null,null,null,null,null,null,null,null,null,null,null,null,"50","META","50270","EL DORADO",null,null,null,"QUIPILE"]
[null,null,null,null,null,null,null,null,null,null,null,null,null,null,null,"50","META","50287","FUENTE DE ORO",null,null,null,"RAGONVALIA"]
[null,null,null,null,null,null,null,null,null,null,null,null,null,null,null,"50","META","50313","GRANADA",null,null,null,"RAMIRIQUÍ"]
[null,null,null,null,null,null,null,null,null,null,null,null,null,null,null,"50","META","50318","GUAMAL",null,null,null,"RÁQUIRA"]
[null,null,null,null,null,null,null,null,null,null,null,null,null,null,null,"50","META","50325","MAPIRIPÁN",null,null,null,"RECETOR"]
[null,null,null,null,null,null,null,null,null,null,null,null,null,null,null,"50","META","50330","MESETAS",null,null,null,"REGIDOR"]
[null,null,null,null,null,null,null,null,null,null,null,null,null,null,null,"50","META","50350","LA MACARENA",null,null,null,"REMEDIOS"]
[null,null,null,null,null,null,null,null,null,null,null,null,null,null,null,"50","META","50370","URIBE",null,null,null,"REMOLINO"]
[null,null,null,null,null,null,null,null,null,null,null,null,null,null,null,"50","META","50400","LEJANÍAS",null,null,null,"REPELÓN"]
[null,null,null,null,null,null,null,null,null,null,null,null,null,null,null,"50","META","50450","PUERTO CONCORDIA",null,null,null,"RESTREPO"]
[null,null,null,null,null,null,null,null,null,null,null,null,null,null,null,"50","META","50568","PUERTO GAITÁN",null,null,null,"RETIRO"]
[null,null,null,null,null,null,null,null,null,null,null,null,null,null,null,"50","META","50573","PUERTO LÓPEZ",null,null,null,"RICAURTE"]
[null,null,null,null,null,null,null,null,null,null,null,null,null,null,null,"50","META","50577","PUERTO LLERAS",null,null,null,"RÍO DE ORO"]
[null,null,null,null,null,null,null,null,null,null,null,null,null,null,null,"50","META","50590","PUERTO RICO",null,null,null,"RÍO IRÓ"]
[null,null,null,null,null,null,null,null,null,null,null,null,null,null,null,"50","META","50606","RESTREPO",null,null,null,"RÍO QUITO"]
[null,null,null,null,null,null,null,null,null,null,null,null,null,null,null,"50","META","50680","SAN CARLOS DE GUAROA",null,null,null,"RÍO VIEJO"]
[null,null,null,null,null,null,null,null,null,null,null,null,null,null,null,"50","META","50683","SAN JUAN DE ARAMA",null,null,null,"RIOBLANCO"]
[null,null,null,null,null,null,null,null,null,null,null,null,null,null,null,"50","META","50686","SAN JUANITO",null,null,null,"RIOFRÍO"]
[null,null,null,null,null,null,null,null,null,null,null,null,null,null,null,"50","META","50689","SAN MARTÍN",null,null,null,"RIOHACHA"]
[null,null,null,null,null,null,null,null,null,null,null,null,null,null,null,"50","META","50711","VISTAHERMOSA",null,null,null,"RIONEGRO"]
[null,null,null,null,null,null,null,null,null,null,null,null,null,null,null,"52","NARIÑO","52001","PASTO",null,null,null,"RIOSUCIO"]
[null,null,null,null,null,null,null,null,null,null,null,null,null,null,null,"52","NARIÑO","52019","ALBÁN",null,null,null,"RISARALDA"]
[null,null,null,null,null,null,null,null,null,null,null,null,null,null,null,"52","NARIÑO","52022","ALDANA",null,null,null,"RIVERA"]
[null,null,null,null,null,null,null,null,null,null,null,null,null,null,null,"52","NARIÑO","52036","ANCUYA",null,null,null,"ROBERTO PAYÁN"]
[null,null,null,null,null,null,null,null,null,null,null,null,null,null,null,"52","NARIÑO","52051","ARBOLEDA",null,null,null,"ROLDANILLO"]
[null,null,null,null,null,null,null,null,null,null,null,null,null,null,null,"52","NARIÑO","52079","BARBACOAS",null,null,null,"RONCESVALLES"]
[null,null,null,null,null,null,null,null,null,null,null,null,null,null,null,"52","NARIÑO","52083","BELÉN",null,null,null,"RONDÓN"]
[null,null,null,null,null,null,null,null,null,null,null,null,null,null,null,"52","NARIÑO","52110","BUESACO",null,null,null,"ROSAS"]
[null,null,null,null,null,null,null,null,null,null,null,null,null,null,null,"52","NARIÑO","52203","COLÓN",null,null,null,"ROVIRA"]
[null,null,null,null,null,null,null,null,null,null,null,null,null,null,null,"52","NARIÑO","52207","CONSACÁ",null,null,null,"SABANA DE TORRES"]
[null,null,null,null,null,null,null,null,null,null,null,null,null,null,null,"52","NARIÑO","52210","CONTADERO",null,null,null,"SABANAGRANDE"]
[null,null,null,null,null,null,null,null,null,null,null,null,null,null,null,"52","NARIÑO","52215","CÓRDOBA",null,null,null,"SABANALARGA"]
[null,null,null,null,null,null,null,null,null,null,null,null,null,null,null,"52","NARIÑO","52224","CUASPUD CARLOSAMA",null,null,null,"SABANAS DE SAN ÁNGEL"]
[null,null,null,null,null,null,null,null,null,null,null,null,null,null,null,"52","NARIÑO","52227","CUMBAL",null,null,null,"SABANETA"]
[null,null,null,null,null,null,null,null,null,null,null,null,null,null,null,"52","NARIÑO","52233","CUMBITARA",null,null,null,"SABOYÁ"]
[null,null,null,null,null,null,null,null,null,null,null,null,null,null,null,"52","NARIÑO","52240","CHACHAGÜÍ",null,null,null,"SÁCAMA"]
[null,null,null,null,null,null,null,null,null,null,null,null,null,null,null,"52","NARIÑO","52250","EL CHARCO",null,null,null,"SÁCHICA"]
[null,null,null,null,null,null,null,null,null,null,null,null,null,null,null,"52","NARIÑO","52254","EL PEÑOL",null,null,null,"SAHAGÚN"]
[null,null,null,null,null,null,null,null,null,null,null,null,null,null,null,"52","NARIÑO","52256","EL ROSARIO",null,null,null,"SALADOBLANCO"]
[null,null,null,null,null,null,null,null,null,null,null,null,null,null,null,"52","NARIÑO","52258","EL TABLÓN DE GÓMEZ",null,null,null,"SALAMINA"]
[null,null,null,null,null,null,null,null,null,null,null,null,null,null,null,"52","NARIÑO","52260","EL TAMBO",null,null,null,"SALAZAR"]
[null,null,null,null,null,null,null,null,null,null,null,null,null,null,null,"52","NARIÑO","52287","FUNES",null,null,null,"SALDAÑA"]
[null,null,null,null,null,null,null,null,null,null,null,null,null,null,null,"52","NARIÑO","52317","GUACHUCAL",null,null,null,"SALENTO"]
[null,null,null,null,null,null,null,null,null,null,null,null,null,null,null,"52","NARIÑO","52320","GUAITARILLA",null,null,null,"SALGAR"]
[null,null,null,null,null,null,null,null,null,null,null,null,null,null,null,"52","NARIÑO","52323","GUALMATÁN",null,null,null,"SAMACÁ"]
[null,null,null,null,null,null,null,null,null,null,null,null,null,null,null,"52","NARIÑO","52352","ILES",null,null,null,"SAMANÁ"]
[null,null,null,null,null,null,null,null,null,null,null,null,null,null,null,"52","NARIÑO","52354","IMUÉS",null,null,null,"SAMANIEGO"]
[null,null,null,null,null,null,null,null,null,null,null,null,null,null,null,"52","NARIÑO","52356","IPIALES",null,null,null,"SAMPUÉS"]
[null,null,null,null,null,null,null,null,null,null,null,null,null,null,null,"52","NARIÑO","52378","LA CRUZ",null,null,null,"SAN AGUSTÍN"]
[null,null,null,null,null,null,null,null,null,null,null,null,null,null,null,"52","NARIÑO","52381","LA FLORIDA",null,null,null,"SAN ALBERTO"]
[null,null,null,null,null,null,null,null,null,null,null,null,null,null,null,"52","NARIÑO","52385","LA LLANADA",null,null,null,"SAN ANDRÉS"]
[null,null,null,null,null,null,null,null,null,null,null,null,null,null,null,"52","NARIÑO","52390","LA TOLA",null,null,null,"SAN ANDRÉS DE CUERQUÍA"]
[null,null,null,null,null,null,null,null,null,null,null,null,null,null,null,"52","NARIÑO","52399","LA UNIÓN",null,null,null,"SAN ANDRÉS DE SOTAVENTO"]
[null,null,null,null,null,null,null,null,null,null,null,null,null,null,null,"52","NARIÑO","52405","LEIVA",null,null,null,"SAN ANDRÉS DE TUMACO"]
[null,null,null,null,null,null,null,null,null,null,null,null,null,null,null,"52","NARIÑO","52411","LINARES",null,null,null,"SAN ANTERO"]
[null,null,null,null,null,null,null,null,null,null,null,null,null,null,null,"52","NARIÑO","52418","LOS ANDES",null,null,null,"SAN ANTONIO"]
[null,null,null,null,null,null,null,null,null,null,null,null,null,null,null,"52","NARIÑO","52427","MAGÜÍ",null,null,null,"SAN ANTONIO DEL TEQUENDAMA"]
[null,null,null,null,null,null,null,null,null,null,null,null,null,null,null,"52","NARIÑO","52435","MALLAMA",null,null,null,"SAN BENITO"]
[null,null,null,null,null,null,null,null,null,null,null,null,null,null,null,"52","NARIÑO","52473","MOSQUERA",null,null,null,"SAN BENITO ABAD"]
[null,null,null,null,null,null,null,null,null,null,null,null,null,null,null,"52","NARIÑO","52480","NARIÑO",null,null,null,"SAN BERNARDO"]
[null,null,null,null,null,null,null,null,null,null,null,null,null,null,null,"52","NARIÑO","52490","OLAYA HERRERA",null,null,null,"SAN BERNARDO DEL VIENTO"]
[null,null,null,null,null,null,null,null,null,null,null,null,null,null,null,"52","NARIÑO","52506","OSPINA",null,null,null,"SAN CALIXTO"]
[null,null,null,null,null,null,null,null,null,null,null,null,null,null,null,"52","NARIÑO","52520","FRANCISCO PIZARRO",null,null,null,"SAN CARLOS"]
[null,null,null,null,null,null,null,null,null,null,null,null,null,null,null,"52","NARIÑO","52540","POLICARPA",null,null,null,"SAN CARLOS DE GUAROA"]
[null,null,null,null,null,null,null,null,null,null,null,null,null,null,null,"52","NARIÑO","52560","POTOSÍ",null,null,null,"SAN CAYETANO"]
[null,null,null,null,null,null,null,null,null,null,null,null,null,null,null,"52","NARIÑO","52565","PROVIDENCIA",null,null,null,"SAN CRISTÓBAL"]
[null,null,null,null,null,null,null,null,null,null,null,null,null,null,null,"52","NARIÑO","52573","PUERRES",null,null,null,"SAN DIEGO"]
[null,null,null,null,null,null,null,null,null,null,null,null,null,null,null,"52","NARIÑO","52585","PUPIALES",null,null,null,"SAN EDUARDO"]
[null,null,null,null,null,null,null,null,null,null,null,null,null,null,null,"52","NARIÑO","52612","RICAURTE",null,null,null,"SAN ESTANISLAO"]
[null,null,null,null,null,null,null,null,null,null,null,null,null,null,null,"52","NARIÑO","52621","ROBERTO PAYÁN",null,null,null,"SAN FELIPE"]
[null,null,null,null,null,null,null,null,null,null,null,null,null,null,null,"52","NARIÑO","52678","SAMANIEGO",null,null,null,"SAN FERNANDO"]
[null,null,null,null,null,null,null,null,null,null,null,null,null,null,null,"52","NARIÑO","52683","SANDONÁ",null,null,null,"SAN FRANCISCO"]
[null,null,null,null,null,null,null,null,null,null,null,null,null,null,null,"52","NARIÑO","52685","SAN BERNARDO",null,null,null,"SAN GIL"]
[null,null,null,null,null,null,null,null,null,null,null,null,null,null,null,"52","NARIÑO","52687","SAN LORENZO",null,null,null,"SAN JACINTO"]
[null,null,null,null,null,null,null,null,null,null,null,null,null,null,null,"52","NARIÑO","52693","SAN PABLO",null,null,null,"SAN JACINTO DEL CAUCA"]
[null,null,null,null,null,null,null,null,null,null,null,null,null,null,null,"52","NARIÑO","52694","SAN PEDRO DE CARTAGO",null,null,null,"SAN JERÓNIMO"]
[null,null,null,null,null,null,null,null,null,null,null,null,null,null,null,"52","NARIÑO","52696","SANTA BÁRBARA",null,null,null,"SAN JOAQUÍN"]
[null,null,null,null,null,null,null,null,null,null,null,null,null,null,null,"52","NARIÑO","52699","SANTACRUZ",null,null,null,"SAN JOSÉ"]
[null,null,null,null,null,null,null,null,null,null,null,null,null,null,null,"52","NARIÑO","52720","SAPUYES",null,null,null,"SAN JOSÉ DE CÚCUTA"]
[null,null,null,null,null,null,null,null,null,null,null,null,null,null,null,"52","NARIÑO","52786","TAMINANGO",null,null,null,"SAN JOSÉ DE LA MONTAÑA"]
[null,null,null,null,null,null,null,null,null,null,null,null,null,null,null,"52","NARIÑO","52788","TANGUA",null,null,null,"SAN JOSÉ DE MIRANDA"]
[null,null,null,null,null,null,null,null,null,null,null,null,null,null,null,"52","NARIÑO","52835","SAN ANDRÉS DE TUMACO",null,null,null,"SAN JOSÉ DE PARE"]
[null,null,null,null,null,null,null,null,null,null,null,null,null,null,null,"52","NARIÑO","52838","TÚQUERRES",null,null,null,"SAN JOSÉ DE TOLUVIEJO"]
[null,null,null,null,null,null,null,null,null,null,null,null,null,null,null,"52","NARIÑO","52885","YACUANQUER",null,null,null,"SAN JOSÉ DE URÉ"]
[null,null,null,null,null,null,null,null,null,null,null,null,null,null,null,"54","NORTE DE SANTANDER","54001","SAN JOSÉ DE CÚCUTA",null,null,null,"SAN JOSÉ DEL FRAGUA"]
[null,null,null,null,null,null,null,null,null,null,null,null,null,null,null,"54","NORTE DE SANTANDER","54003","ÁBREGO",null,null,null,"SAN JOSÉ DEL GUAVIARE"]
[null,null,null,null,null,null,null,null,null,null,null,null,null,null,null,"54","NORTE DE SANTANDER","54051","ARBOLEDAS",null,null,null,"SAN JOSÉ DEL PALMAR"]
[null,null,null,null,null,null,null,null,null,null,null,null,null,null,null,"54","NORTE DE SANTANDER","54099","BOCHALEMA",null,null,null,"SAN JUAN DE ARAMA"]
[null,null,null,null,null,null,null,null,null,null,null,null,null,null,null,"54","NORTE DE SANTANDER","54109","BUCARASICA",null,null,null,"SAN JUAN DE BETULIA"]
[null,null,null,null,null,null,null,null,null,null,null,null,null,null,null,"54","NORTE DE SANTANDER","54125","CÁCOTA",null,null,null,"SAN JUAN DE RIOSECO"]
[null,null,null,null,null,null,null,null,null,null,null,null,null,null,null,"54","NORTE DE SANTANDER","54128","CÁCHIRA",null,null,null,"SAN JUAN DE URABÁ"]
[null,null,null,null,null,null,null,null,null,null,null,null,null,null,null,"54","NORTE DE SANTANDER","54172","CHINÁCOTA",null,null,null,"SAN JUAN DEL CESAR"]
[null,null,null,null,null,null,null,null,null,null,null,null,null,null,null,"54","NORTE DE SANTANDER","54174","CHITAGÁ",null,null,null,"SAN JUAN NEPOMUCENO"]
[null,null,null,null,null,null,null,null,null,null,null,null,null,null,null,"54","NORTE DE SANTANDER","54206","CONVENCIÓN",null,null,null,"SAN JUANITO"]
[null,null,null,null,null,null,null,null,null,null,null,null,null,null,null,"54","NORTE DE SANTANDER","54223","CUCUTILLA",null,null,null,"SAN LORENZO"]
[null,null,null,null,null,null,null,null,null,null,null,null,null,null,null,"54","NORTE DE SANTANDER","54239","DURANIA",null,null,null,"SAN LUIS"]
[null,null,null,null,null,null,null,null,null,null,null,null,null,null,null,"54","NORTE DE SANTANDER","54245","EL CARMEN",null,null,null,"SAN LUIS DE GACENO"]
[null,null,null,null,null,null,null,null,null,null,null,null,null,null,null,"54","NORTE DE SANTANDER","54250","EL TARRA",null,null,null,"SAN LUIS DE PALENQUE"]
[null,null,null,null,null,null,null,null,null,null,null,null,null,null,null,"54","NORTE DE SANTANDER","54261","EL ZULIA",null,null,null,"SAN LUIS DE SINCÉ"]
[null,null,null,null,null,null,null,null,null,null,null,null,null,null,null,"54","NORTE DE SANTANDER","54313","GRAMALOTE",null,null,null,"SAN MARCOS"]
[null,null,null,null,null,null,null,null,null,null,null,null,null,null,null,"54","NORTE DE SANTANDER","54344","HACARÍ",null,null,null,"SAN MARTÍN"]
[null,null,null,null,null,null,null,null,null,null,null,null,null,null,null,"54","NORTE DE SANTANDER","54347","HERRÁN",null,null,null,"SAN MARTÍN DE LOBA"]
[null,null,null,null,null,null,null,null,null,null,null,null,null,null,null,"54","NORTE DE SANTANDER","54377","LABATECA",null,null,null,"SAN MATEO"]
[null,null,null,null,null,null,null,null,null,null,null,null,null,null,null,"54","NORTE DE SANTANDER","54385","LA ESPERANZA",null,null,null,"SAN MIGUEL"]
[null,null,null,null,null,null,null,null,null,null,null,null,null,null,null,"54","NORTE DE SANTANDER","54398","LA PLAYA",null,null,null,"SAN MIGUEL DE SEMA"]
[null,null,null,null,null,null,null,null,null,null,null,null,null,null,null,"54","NORTE DE SANTANDER","54405","LOS PATIOS",null,null,null,"SAN ONOFRE"]
[null,null,null,null,null,null,null,null,null,null,null,null,null,null,null,"54","NORTE DE SANTANDER","54418","LOURDES",null,null,null,"SAN PABLO"]
[null,null,null,null,null,null,null,null,null,null,null,null,null,null,null,"54","NORTE DE SANTANDER","54480","MUTISCUA",null,null,null,"SAN PABLO DE BORBUR"]
[null,null,null,null,null,null,null,null,null,null,null,null,null,null,null,"54","NORTE DE SANTANDER","54498","OCAÑA",null,null,null,"SAN PEDRO"]
[null,null,null,null,null,null,null,null,null,null,null,null,null,null,null,"54","NORTE DE SANTANDER","54518","PAMPLONA",null,null,null,"SAN PEDRO DE CARTAGO"]
[null,null,null,null,null,null,null,null,null,null,null,null,null,null,null,"54","NORTE DE SANTANDER","54520","PAMPLONITA",null,null,null,"SAN PEDRO DE LOS MILAGROS"]
[null,null,null,null,null,null,null,null,null,null,null,null,null,null,null,"54","NORTE DE SANTANDER","54553","PUERTO SANTANDER",null,null,null,"SAN PEDRO DE URABÁ"]
[null,null,null,null,null,null,null,null,null,null,null,null,null,null,null,"54","NORTE DE SANTANDER","54599","RAGONVALIA",null,null,null,"SAN PELAYO"]
[null,null,null,null,null,null,null,null,null,null,null,null,null,null,null,"54","NORTE DE SANTANDER","54660","SALAZAR",null,null,null,"SAN RAFAEL"]
[null,null,null,null,null,null,null,null,null,null,null,null,null,null,null,"54","NORTE DE SANTANDER","54670","SAN CALIXTO",null,null,null,"SAN ROQUE"]
[null,null,null,null,null,null,null,null,null,null,null,null,null,null,null,"54","NORTE DE SANTANDER","54673","SAN CAYETANO",null,null,null,"SAN SEBASTIÁN"]
[null,null,null,null,null,null,null,null,null,null,null,null,null,null,null,"54","NORTE DE SANTANDER","54680","SANTIAGO",null,null,null,"SAN SEBASTIÁN DE BUENAVISTA"]
[null,null,null,null,null,null,null,null,null,null,null,null,null,null,null,"54","NORTE DE SANTANDER","54720","SARDINATA",null,null,null,"SAN SEBASTIÁN DE MARIQUITA"]
[null,null,null,null,null,null,null,null,null,null,null,null,null,null,null,"54","NORTE DE SANTANDER","54743","SILOS",null,null,null,"SAN VICENTE DE CHUCURÍ"]
[null,null,null,null,null,null,null,null,null,null,null,null,null,null,null,"54","NORTE DE SANTANDER","54800","TEORAMA",null,null,null,"SAN VICENTE DEL CAGUÁN"]
[null,null,null,null,null,null,null,null,null,null,null,null,null,null,null,"54","NORTE DE SANTANDER","54810","TIBÚ",null,null,null,"SAN VICENTE FERRER"]
[null,null,null,null,null,null,null,null,null,null,null,null,null,null,null,"54","NORTE DE SANTANDER","54820","TOLEDO",null,null,null,"SAN ZENÓN"]
[null,null,null,null,null,null,null,null,null,null,null,null,null,null,null,"54","NORTE DE SANTANDER","54871","VILLA CARO",null,null,null,"SANDONÁ"]
[null,null,null,null,null,null,null,null,null,null,null,null,null,null,null,"54","NORTE DE SANTANDER","54874","VILLA DEL ROSARIO",null,null,null,"SANTA ANA"]
[null,null,null,null,null,null,null,null,null,null,null,null,null,null,null,"63","QUINDÍO","63001","ARMENIA",null,null,null,"SANTA BÁRBARA"]
[null,null,null,null,null,null,null,null,null,null,null,null,null,null,null,"63","QUINDÍO","63111","BUENAVISTA",null,null,null,"SANTA BÁRBARA DE PINTO"]
[null,null,null,null,null,null,null,null,null,null,null,null,null,null,null,"63","QUINDÍO","63130","CALARCÁ",null,null,null,"SANTA CATALINA"]
[null,null,null,null,null,null,null,null,null,null,null,null,null,null,null,"63","QUINDÍO","63190","CIRCASIA",null,null,null,"SANTA CRUZ DE MOMPOX"]
[null,null,null,null,null,null,null,null,null,null,null,null,null,null,null,"63","QUINDÍO","63212","CÓRDOBA",null,null,null,"SANTA FÉ DE ANTIOQUIA"]
[null,null,null,null,null,null,null,null,null,null,null,null,null,null,null,"63","QUINDÍO","63272","FILANDIA",null,null,null,"SANTA HELENA DEL OPÓN"]
[null,null,null,null,null,null,null,null,null,null,null,null,null,null,null,"63","QUINDÍO","63302","GÉNOVA",null,null,null,"SANTA ISABEL"]
[null,null,null,null,null,null,null,null,null,null,null,null,null,null,null,"63","QUINDÍO","63401","LA TEBAIDA",null,null,null,"SANTA LUCÍA"]
[null,null,null,null,null,null,null,null,null,null,null,null,null,null,null,"63","QUINDÍO","63470","MONTENEGRO",null,null,null,"SANTA MARÍA"]
[null,null,null,null,null,null,null,null,null,null,null,null,null,null,null,"63","QUINDÍO","63548","PIJAO",null,null,null,"SANTA MARTA"]
[null,null,null,null,null,null,null,null,null,null,null,null,null,null,null,"63","QUINDÍO","63594","QUIMBAYA",null,null,null,"SANTA ROSA"]
[null,null,null,null,null,null,null,null,null,null,null,null,null,null,null,"63","QUINDÍO","63690","SALENTO",null,null,null,"SANTA ROSA DE CABAL"]
[null,null,null,null,null,null,null,null,null,null,null,null,null,null,null,"66","RISARALDA","66001","PEREIRA",null,null,null,"SANTA ROSA DE OSOS"]
[null,null,null,null,null,null,null,null,null,null,null,null,null,null,null,"66","RISARALDA","66045","APÍA",null,null,null,"SANTA ROSA DE VITERBO"]
[null,null,null,null,null,null,null,null,null,null,null,null,null,null,null,"66","RISARALDA","66075","BALBOA",null,null,null,"SANTA ROSA DEL SUR"]
[null,null,null,null,null,null,null,null,null,null,null,null,null,null,null,"66","RISARALDA","66088","BELÉN DE UMBRÍA",null,null,null,"SANTA ROSALÍA"]
[null,null,null,null,null,null,null,null,null,null,null,null,null,null,null,"66","RISARALDA","66170","DOSQUEBRADAS",null,null,null,"SANTA SOFÍA"]
[null,null,null,null,null,null,null,null,null,null,null,null,null,null,null,"66","RISARALDA","66318","GUÁTICA",null,null,null,"SANTACRUZ"]
[null,null,null,null,null,null,null,null,null,null,null,null,null,null,null,"66","RISARALDA","66383","LA CELIA",null,null,null,"SANTANA"]
[null,null,null,null,null,null,null,null,null,null,null,null,null,null,null,"66","RISARALDA","66400","LA VIRGINIA",null,null,null,"SANTANDER DE QUILICHAO"]
[null,null,null,null,null,null,null,null,null,null,null,null,null,null,null,"66","RISARALDA","66440","MARSELLA",null,null,null,"SANTIAGO"]
[null,null,null,null,null,null,null,null,null,null,null,null,null,null,null,"66","RISARALDA","66456","MISTRATÓ",null,null,null,"SANTIAGO DE TOLÚ"]
[null,null,null,null,null,null,null,null,null,null,null,null,null,null,null,"66","RISARALDA","66572","PUEBLO RICO",null,null,null,"SANTO DOMINGO"]
[null,null,null,null,null,null,null,null,null,null,null,null,null,null,null,"66","RISARALDA","66594","QUINCHÍA",null,null,null,"SANTO TOMÁS"]
[null,null,null,null,null,null,null,null,null,null,null,null,null,null,null,"66","RISARALDA","66682","SANTA ROSA DE CABAL",null,null,null,"SANTUARIO"]
[null,null,null,null,null,null,null,null,null,null,null,null,null,null,null,"66","RISARALDA","66687","SANTUARIO",null,null,null,"SAPUYES"]
[null,null,null,null,null,null,null,null,null,null,null,null,null,null,null,"68","SANTANDER","68001","BUCARAMANGA",null,null,null,"SARAVENA"]
[null,null,null,null,null,null,null,null,null,null,null,null,null,null,null,"68","SANTANDER","68013","AGUADA",null,null,null,"SARDINATA"]
[null,null,null,null,null,null,null,null,null,null,null,null,null,null,null,"68","SANTANDER","68020","ALBANIA",null,null,null,"SASAIMA"]
[null,null,null,null,null,null,null,null,null,null,null,null,null,null,null,"68","SANTANDER","68051","ARATOCA",null,null,null,"SATIVANORTE"]
[null,null,null,null,null,null,null,null,null,null,null,null,null,null,null,"68","SANTANDER","68077","BARBOSA",null,null,null,"SATIVASUR"]
[null,null,null,null,null,null,null,null,null,null,null,null,null,null,null,"68","SANTANDER","68079","BARICHARA",null,null,null,"SEGOVIA"]
[null,null,null,null,null,null,null,null,null,null,null,null,null,null,null,"68","SANTANDER","68081","BARRANCABERMEJA",null,null,null,"SESQUILÉ"]
[null,null,null,null,null,null,null,null,null,null,null,null,null,null,null,"68","SANTANDER","68092","BETULIA",null,null,null,"SEVILLA"]
[null,null,null,null,null,null,null,null,null,null,null,null,null,null,null,"68","SANTANDER","68101","BOLÍVAR",null,null,null,"SIACHOQUE"]
[null,null,null,null,null,null,null,null,null,null,null,null,null,null,null,"68","SANTANDER","68121","CABRERA",null,null,null,"SIBATÉ"]
[null,null,null,null,null,null,null,null,null,null,null,null,null,null,null,"68","SANTANDER","68132","CALIFORNIA",null,null,null,"SIBUNDOY"]
[null,null,null,null,null,null,null,null,null,null,null,null,null,null,null,"68","SANTANDER","68147","CAPITANEJO",null,null,null,"SILOS"]
[null,null,null,null,null,null,null,null,null,null,null,null,null,null,null,"68","SANTANDER","68152","CARCASÍ",null,null,null,"SILVANIA"]
[null,null,null,null,null,null,null,null,null,null,null,null,null,null,null,"68","SANTANDER","68160","CEPITÁ",null,null,null,"SILVIA"]
[null,null,null,null,null,null,null,null,null,null,null,null,null,null,null,"68","SANTANDER","68162","CERRITO",null,null,null,"SIMACOTA"]
[null,null,null,null,null,null,null,null,null,null,null,null,null,null,null,"68","SANTANDER","68167","CHARALÁ",null,null,null,"SIMIJACA"]
[null,null,null,null,null,null,null,null,null,null,null,null,null,null,null,"68","SANTANDER","68169","CHARTA",null,null,null,"SIMITÍ"]
[null,null,null,null,null,null,null,null,null,null,null,null,null,null,null,"68","SANTANDER","68176","CHIMA",null,null,null,"SINCELEJO"]
[null,null,null,null,null,null,null,null,null,null,null,null,null,null,null,"68","SANTANDER","68179","CHIPATÁ",null,null,null,"SIPÍ"]
[null,null,null,null,null,null,null,null,null,null,null,null,null,null,null,"68","SANTANDER","68190","CIMITARRA",null,null,null,"SITIONUEVO"]
[null,null,null,null,null,null,null,null,null,null,null,null,null,null,null,"68","SANTANDER","68207","CONCEPCIÓN",null,null,null,"SOACHA"]
[null,null,null,null,null,null,null,null,null,null,null,null,null,null,null,"68","SANTANDER","68209","CONFINES",null,null,null,"SOATÁ"]
[null,null,null,null,null,null,null,null,null,null,null,null,null,null,null,"68","SANTANDER","68211","CONTRATACIÓN",null,null,null,"SOCHA"]
[null,null,null,null,null,null,null,null,null,null,null,null,null,null,null,"68","SANTANDER","68217","COROMORO",null,null,null,"SOCORRO"]
[null,null,null,null,null,null,null,null,null,null,null,null,null,null,null,"68","SANTANDER","68229","CURITÍ",null,null,null,"SOCOTÁ"]
[null,null,null,null,null,null,null,null,null,null,null,null,null,null,null,"68","SANTANDER","68235","EL CARMEN DE CHUCURÍ",null,null,null,"SOGAMOSO"]
[null,null,null,null,null,null,null,null,null,null,null,null,null,null,null,"68","SANTANDER","68245","EL GUACAMAYO",null,null,null,"SOLANO"]
[null,null,null,null,null,null,null,null,null,null,null,null,null,null,null,"68","SANTANDER","68250","EL PEÑÓN",null,null,null,"SOLEDAD"]
[null,null,null,null,null,null,null,null,null,null,null,null,null,null,null,"68","SANTANDER","68255","EL PLAYÓN",null,null,null,"SOLITA"]
[null,null,null,null,null,null,null,null,null,null,null,null,null,null,null,"68","SANTANDER","68264","ENCINO",null,null,null,"SOMONDOCO"]
[null,null,null,null,null,null,null,null,null,null,null,null,null,null,null,"68","SANTANDER","68266","ENCISO",null,null,null,"SONSÓN"]
[null,null,null,null,null,null,null,null,null,null,null,null,null,null,null,"68","SANTANDER","68271","FLORIÁN",null,null,null,"SOPETRÁN"]
[null,null,null,null,null,null,null,null,null,null,null,null,null,null,null,"68","SANTANDER","68276","FLORIDABLANCA",null,null,null,"SOPLAVIENTO"]
[null,null,null,null,null,null,null,null,null,null,null,null,null,null,null,"68","SANTANDER","68296","GALÁN",null,null,null,"SOPÓ"]
[null,null,null,null,null,null,null,null,null,null,null,null,null,null,null,"68","SANTANDER","68298","GÁMBITA",null,null,null,"SORA"]
[null,null,null,null,null,null,null,null,null,null,null,null,null,null,null,"68","SANTANDER","68307","GIRÓN",null,null,null,"SORACÁ"]
[null,null,null,null,null,null,null,null,null,null,null,null,null,null,null,"68","SANTANDER","68318","GUACA",null,null,null,"SOTAQUIRÁ"]
[null,null,null,null,null,null,null,null,null,null,null,null,null,null,null,"68","SANTANDER","68320","GUADALUPE",null,null,null,"SOTARÁ PAISPAMBA"]
[null,null,null,null,null,null,null,null,null,null,null,null,null,null,null,"68","SANTANDER","68322","GUAPOTÁ",null,null,null,"SUAITA"]
[null,null,null,null,null,null,null,null,null,null,null,null,null,null,null,"68","SANTANDER","68324","GUAVATÁ",null,null,null,"SUAN"]
[null,null,null,null,null,null,null,null,null,null,null,null,null,null,null,"68","SANTANDER","68327","GÜEPSA",null,null,null,"SUÁREZ"]
[null,null,null,null,null,null,null,null,null,null,null,null,null,null,null,"68","SANTANDER","68344","HATO",null,null,null,"SUAZA"]
[null,null,null,null,null,null,null,null,null,null,null,null,null,null,null,"68","SANTANDER","68368","JESÚS MARÍA",null,null,null,"SUBACHOQUE"]
[null,null,null,null,null,null,null,null,null,null,null,null,null,null,null,"68","SANTANDER","68370","JORDÁN",null,null,null,"SUCRE"]
[null,null,null,null,null,null,null,null,null,null,null,null,null,null,null,"68","SANTANDER","68377","LA BELLEZA",null,null,null,"SUESCA"]
[null,null,null,null,null,null,null,null,null,null,null,null,null,null,null,"68","SANTANDER","68385","LANDÁZURI",null,null,null,"SUPATÁ"]
[null,null,null,null,null,null,null,null,null,null,null,null,null,null,null,"68","SANTANDER","68397","LA PAZ",null,null,null,"SUPÍA"]
[null,null,null,null,null,null,null,null,null,null,null,null,null,null,null,"68","SANTANDER","68406","LEBRIJA",null,null,null,"SURATÁ"]
[null,null,null,null,null,null,null,null,null,null,null,null,null,null,null,"68","SANTANDER","68418","LOS SANTOS",null,null,null,"SUSA"]
[null,null,null,null,null,null,null,null,null,null,null,null,null,null,null,"68","SANTANDER","68425","MACARAVITA",null,null,null,"SUSACÓN"]
[null,null,null,null,null,null,null,null,null,null,null,null,null,null,null,"68","SANTANDER","68432","MÁLAGA",null,null,null,"SUTAMARCHÁN"]
[null,null,null,null,null,null,null,null,null,null,null,null,null,null,null,"68","SANTANDER","68444","MATANZA",null,null,null,"SUTATAUSA"]
[null,null,null,null,null,null,null,null,null,null,null,null,null,null,null,"68","SANTANDER","68464","MOGOTES",null,null,null,"SUTATENZA"]
[null,null,null,null,null,null,null,null,null,null,null,null,null,null,null,"68","SANTANDER","68468","MOLAGAVITA",null,null,null,"TABIO"]
[null,null,null,null,null,null,null,null,null,null,null,null,null,null,null,"68","SANTANDER","68498","OCAMONTE",null,null,null,"TADÓ"]
[null,null,null,null,null,null,null,null,null,null,null,null,null,null,null,"68","SANTANDER","68500","OIBA",null,null,null,"TALAIGUA NUEVO"]
[null,null,null,null,null,null,null,null,null,null,null,null,null,null,null,"68","SANTANDER","68502","ONZAGA",null,null,null,"TAMALAMEQUE"]
[null,null,null,null,null,null,null,null,null,null,null,null,null,null,null,"68","SANTANDER","68522","PALMAR",null,null,null,"TÁMARA"]
[null,null,null,null,null,null,null,null,null,null,null,null,null,null,null,"68","SANTANDER","68524","PALMAS DEL SOCORRO",null,null,null,"TAME"]
[null,null,null,null,null,null,null,null,null,null,null,null,null,null,null,"68","SANTANDER","68533","PÁRAMO",null,null,null,"TÁMESIS"]
[null,null,null,null,null,null,null,null,null,null,null,null,null,null,null,"68","SANTANDER","68547","PIEDECUESTA",null,null,null,"TAMINANGO"]
[null,null,null,null,null,null,null,null,null,null,null,null,null,null,null,"68","SANTANDER","68549","PINCHOTE",null,null,null,"TANGUA"]
[null,null,null,null,null,null,null,null,null,null,null,null,null,null,null,"68","SANTANDER","68572","PUENTE NACIONAL",null,null,null,"TARAIRA"]
[null,null,null,null,null,null,null,null,null,null,null,null,null,null,null,"68","SANTANDER","68573","PUERTO PARRA",null,null,null,"TARAPACÁ"]
[null,null,null,null,null,null,null,null,null,null,null,null,null,null,null,"68","SANTANDER","68575","PUERTO WILCHES",null,null,null,"TARAZÁ"]
[null,null,null,null,null,null,null,null,null,null,null,null,null,null,null,"68","SANTANDER","68615","RIONEGRO",null,null,null,"TARQUI"]
[null,null,null,null,null,null,null,null,null,null,null,null,null,null,null,"68","SANTANDER","68655","SABANA DE TORRES",null,null,null,"TARSO"]
[null,null,null,null,null,null,null,null,null,null,null,null,null,null,null,"68","SANTANDER","68669","SAN ANDRÉS",null,null,null,"TASCO"]
[null,null,null,null,null,null,null,null,null,null,null,null,null,null,null,"68","SANTANDER","68673","SAN BENITO",null,null,null,"TAURAMENA"]
[null,null,null,null,null,null,null,null,null,null,null,null,null,null,null,"68","SANTANDER","68679","SAN GIL",null,null,null,"TAUSA"]
[null,null,null,null,null,null,null,null,null,null,null,null,null,null,null,"68","SANTANDER","68682","SAN JOAQUÍN",null,null,null,"TELLO"]
[null,null,null,null,null,null,null,null,null,null,null,null,null,null,null,"68","SANTANDER","68684","SAN JOSÉ DE MIRANDA",null,null,null,"TENA"]
[null,null,null,null,null,null,null,null,null,null,null,null,null,null,null,"68","SANTANDER","68686","SAN MIGUEL",null,null,null,"TENERIFE"]
[null,null,null,null,null,null,null,null,null,null,null,null,null,null,null,"68","SANTANDER","68689","SAN VICENTE DE CHUCURÍ",null,null,null,"TENJO"]
[null,null,null,null,null,null,null,null,null,null,null,null,null,null,null,"68","SANTANDER","68705","SANTA BÁRBARA",null,null,null,"TENZA"]
[null,null,null,null,null,null,null,null,null,null,null,null,null,null,null,"68","SANTANDER","68720","SANTA HELENA DEL OPÓN",null,null,null,"TEORAMA"]
[null,null,null,null,null,null,null,null,null,null,null,null,null,null,null,"68","SANTANDER","68745","SIMACOTA",null,null,null,"TERUEL"]
[null,null,null,null,null,null,null,null,null,null,null,null,null,null,null,"68","SANTANDER","68755","SOCORRO",null,null,null,"TESALIA"]
[null,null,null,null,null,null,null,null,null,null,null,null,null,null,null,"68","SANTANDER","68770","SUAITA",null,null,null,"TIBACUY"]
[null,null,null,null,null,null,null,null,null,null,null,null,null,null,null,"68","SANTANDER","68773","SUCRE",null,null,null,"TIBANÁ"]
[null,null,null,null,null,null,null,null,null,null,null,null,null,null,null,"68","SANTANDER","68780","SURATÁ",null,null,null,"TIBASOSA"]
[null,null,null,null,null,null,null,null,null,null,null,null,null,null,null,"68","SANTANDER","68820","TONA",null,null,null,"TIBIRITA"]
[null,null,null,null,null,null,null,null,null,null,null,null,null,null,null,"68","SANTANDER","68855","VALLE DE SAN JOSÉ",null,null,null,"TIBÚ"]
[null,null,null,null,null,null,null,null,null,null,null,null,null,null,null,"68","SANTANDER","68861","VÉLEZ",null,null,null,"TIERRALTA"]
[null,null,null,null,null,null,null,null,null,null,null,null,null,null,null,"68","SANTANDER","68867","VETAS",null,null,null,"TIMANÁ"]
[null,null,null,null,null,null,null,null,null,null,null,null,null,null,null,"68","SANTANDER","68872","VILLANUEVA",null,null,null,"TIMBÍO"]
[null,null,null,null,null,null,null,null,null,null,null,null,null,null,null,"68","SANTANDER","68895","ZAPATOCA",null,null,null,"TIMBIQUÍ"]
[null,null,null,null,null,null,null,null,null,null,null,null,null,null,null,"70","SUCRE","70001","SINCELEJO",null,null,null,"TINJACÁ"]
[null,null,null,null,null,null,null,null,null,null,null,null,null,null,null,"70","SUCRE","70110","BUENAVISTA",null,null,null,"TIPACOQUE"]
[null,null,null,null,null,null,null,null,null,null,null,null,null,null,null,"70","SUCRE","70124","CAIMITO",null,null,null,"TIQUISIO"]
[null,null,null,null,null,null,null,null,null,null,null,null,null,null,null,"70","SUCRE","70204","COLOSÓ",null,null,null,"TITIRIBÍ"]
[null,null,null,null,null,null,null,null,null,null,null,null,null,null,null,"70","SUCRE","70215","COROZAL",null,null,null,"TOCA"]
[null,null,null,null,null,null,null,null,null,null,null,null,null,null,null,"70","SUCRE","70221","COVEÑAS",null,null,null,"TOCAIMA"]
[null,null,null,null,null,null,null,null,null,null,null,null,null,null,null,"70","SUCRE","70230","CHALÁN",null,null,null,"TOCANCIPÁ"]
[null,null,null,null,null,null,null,null,null,null,null,null,null,null,null,"70","SUCRE","70233","EL ROBLE",null,null,null,"TOGÜÍ"]
[null,null,null,null,null,null,null,null,null,null,null,null,null,null,null,"70","SUCRE","70235","GALERAS",null,null,null,"TOLEDO"]
[null,null,null,null,null,null,null,null,null,null,null,null,null,null,null,"70","SUCRE","70265","GUARANDA",null,null,null,"TONA"]
[null,null,null,null,null,null,null,null,null,null,null,null,null,null,null,"70","SUCRE","70400","LA UNIÓN",null,null,null,"TÓPAGA"]
[null,null,null,null,null,null,null,null,null,null,null,null,null,null,null,"70","SUCRE","70418","LOS PALMITOS",null,null,null,"TOPAIPÍ"]
[null,null,null,null,null,null,null,null,null,null,null,null,null,null,null,"70","SUCRE","70429","MAJAGUAL",null,null,null,"TORIBÍO"]
[null,null,null,null,null,null,null,null,null,null,null,null,null,null,null,"70","SUCRE","70473","MORROA",null,null,null,"TORO"]
[null,null,null,null,null,null,null,null,null,null,null,null,null,null,null,"70","SUCRE","70508","OVEJAS",null,null,null,"TOTA"]
[null,null,null,null,null,null,null,null,null,null,null,null,null,null,null,"70","SUCRE","70523","PALMITO",null,null,null,"TOTORÓ"]
[null,null,null,null,null,null,null,null,null,null,null,null,null,null,null,"70","SUCRE","70670","SAMPUÉS",null,null,null,"TRINIDAD"]
[null,null,null,null,null,null,null,null,null,null,null,null,null,null,null,"70","SUCRE","70678","SAN BENITO ABAD",null,null,null,"TRUJILLO"]
[null,null,null,null,null,null,null,null,null,null,null,null,null,null,null,"70","SUCRE","70702","SAN JUAN DE BETULIA",null,null,null,"TUBARÁ"]
[null,null,null,null,null,null,null,null,null,null,null,null,null,null,null,"70","SUCRE","70708","SAN MARCOS",null,null,null,"TUCHÍN"]
[null,null,null,null,null,null,null,null,null,null,null,null,null,null,null,"70","SUCRE","70713","SAN ONOFRE",null,null,null,"TULUÁ"]
[null,null,null,null,null,null,null,null,null,null,null,null,null,null,null,"70","SUCRE","70717","SAN PEDRO",null,null,null,"TUNJA"]
[null,null,null,null,null,null,null,null,null,null,null,null,null,null,null,"70","SUCRE","70742","SAN LUIS DE SINCÉ",null,null,null,"TUNUNGUÁ"]
[null,null,null,null,null,null,null,null,null,null,null,null,null,null,null,"70","SUCRE","70771","SUCRE",null,null,null,"TÚQUERRES"]
[null,null,null,null,null,null,null,null,null,null,null,null,null,null,null,"70","SUCRE","70820","SANTIAGO DE TOLÚ",null,null,null,"TURBACO"]
[null,null,null,null,null,null,null,null,null,null,null,null,null,null,null,"70","SUCRE","70823","SAN JOSÉ DE TOLUVIEJO",null,null,null,"TURBANÁ"]
[null,null,null,null,null,null,null,null,null,null,null,null,null,null,null,"73","TOLIMA","73001","IBAGUÉ",null,null,null,"TURBO"]
[null,null,null,null,null,null,null,null,null,null,null,null,null,null,null,"73","TOLIMA","73024","ALPUJARRA",null,null,null,"TURMEQUÉ"]
[null,null,null,null,null,null,null,null,null,null,null,null,null,null,null,"73","TOLIMA","73026","ALVARADO",null,null,null,"TUTA"]
[null,null,null,null,null,null,null,null,null,null,null,null,null,null,null,"73","TOLIMA","73030","AMBALEMA",null,null,null,"TUTAZÁ"]
[null,null,null,null,null,null,null,null,null,null,null,null,null,null,null,"73","TOLIMA","73043","ANZOÁTEGUI",null,null,null,"UBALÁ"]
[null,null,null,null,null,null,null,null,null,null,null,null,null,null,null,"73","TOLIMA","73055","ARMERO",null,null,null,"UBAQUE"]
[null,null,null,null,null,null,null,null,null,null,null,null,null,null,null,"73","TOLIMA","73067","ATACO",null,null,null,"ULLOA"]
[null,null,null,null,null,null,null,null,null,null,null,null,null,null,null,"73","TOLIMA","73124","CAJAMARCA",null,null,null,"ÚMBITA"]
[null,null,null,null,null,null,null,null,null,null,null,null,null,null,null,"73","TOLIMA","73148","CARMEN DE APICALÁ",null,null,null,"UNE"]
[null,null,null,null,null,null,null,null,null,null,null,null,null,null,null,"73","TOLIMA","73152","CASABIANCA",null,null,null,"UNGUÍA"]
[null,null,null,null,null,null,null,null,null,null,null,null,null,null,null,"73","TOLIMA","73168","CHAPARRAL",null,null,null,"UNIÓN PANAMERICANA"]
[null,null,null,null,null,null,null,null,null,null,null,null,null,null,null,"73","TOLIMA","73200","COELLO",null,null,null,"URAMITA"]
[null,null,null,null,null,null,null,null,null,null,null,null,null,null,null,"73","TOLIMA","73217","COYAIMA",null,null,null,"URIBE"]
[null,null,null,null,null,null,null,null,null,null,null,null,null,null,null,"73","TOLIMA","73226","CUNDAY",null,null,null,"URIBIA"]
[null,null,null,null,null,null,null,null,null,null,null,null,null,null,null,"73","TOLIMA","73236","DOLORES",null,null,null,"URRAO"]
[null,null,null,null,null,null,null,null,null,null,null,null,null,null,null,"73","TOLIMA","73268","ESPINAL",null,null,null,"URUMITA"]
[null,null,null,null,null,null,null,null,null,null,null,null,null,null,null,"73","TOLIMA","73270","FALAN",null,null,null,"USIACURÍ"]
[null,null,null,null,null,null,null,null,null,null,null,null,null,null,null,"73","TOLIMA","73275","FLANDES",null,null,null,"ÚTICA"]
[null,null,null,null,null,null,null,null,null,null,null,null,null,null,null,"73","TOLIMA","73283","FRESNO",null,null,null,"VALDIVIA"]
[null,null,null,null,null,null,null,null,null,null,null,null,null,null,null,"73","TOLIMA","73319","GUAMO",null,null,null,"VALENCIA"]
[null,null,null,null,null,null,null,null,null,null,null,null,null,null,null,"73","TOLIMA","73347","HERVEO",null,null,null,"VALLE DE SAN JOSÉ"]
[null,null,null,null,null,null,null,null,null,null,null,null,null,null,null,"73","TOLIMA","73349","HONDA",null,null,null,"VALLE DE SAN JUAN"]
[null,null,null,null,null,null,null,null,null,null,null,null,null,null,null,"73","TOLIMA","73352","ICONONZO",null,null,null,"VALLE DEL GUAMUEZ"]
[null,null,null,null,null,null,null,null,null,null,null,null,null,null,null,"73","TOLIMA","73408","LÉRIDA",null,null,null,"VALLEDUPAR"]
[null,null,null,null,null,null,null,null,null,null,null,null,null,null,null,"73","TOLIMA","73411","LÍBANO",null,null,null,"VALPARAÍSO"]
[null,null,null,null,null,null,null,null,null,null,null,null,null,null,null,"73","TOLIMA","73443","SAN SEBASTIÁN DE MARIQUITA",null,null,null,"VEGACHÍ"]
[null,null,null,null,null,null,null,null,null,null,null,null,null,null,null,"73","TOLIMA","73449","MELGAR",null,null,null,"VÉLEZ"]
[null,null,null,null,null,null,null,null,null,null,null,null,null,null,null,"73","TOLIMA","73461","MURILLO",null,null,null,"VENADILLO"]
[null,null,null,null,null,null,null,null,null,null,null,null,null,null,null,"73","TOLIMA","73483","NATAGAIMA",null,null,null,"VENECIA"]
[null,null,null,null,null,null,null,null,null,null,null,null,null,null,null,"73","TOLIMA","73504","ORTEGA",null,null,null,"VENTAQUEMADA"]
[null,null,null,null,null,null,null,null,null,null,null,null,null,null,null,"73","TOLIMA","73520","PALOCABILDO",null,null,null,"VERGARA"]
[null,null,null,null,null,null,null,null,null,null,null,null,null,null,null,"73","TOLIMA","73547","PIEDRAS",null,null,null,"VERSALLES"]
[null,null,null,null,null,null,null,null,null,null,null,null,null,null,null,"73","TOLIMA","73555","PLANADAS",null,null,null,"VETAS"]
[null,null,null,null,null,null,null,null,null,null,null,null,null,null,null,"73","TOLIMA","73563","PRADO",null,null,null,"VIANÍ"]
[null,null,null,null,null,null,null,null,null,null,null,null,null,null,null,"73","TOLIMA","73585","PURIFICACIÓN",null,null,null,"VICTORIA"]
[null,null,null,null,null,null,null,null,null,null,null,null,null,null,null,"73","TOLIMA","73616","RIOBLANCO",null,null,null,"VIGÍA DEL FUERTE"]
[null,null,null,null,null,null,null,null,null,null,null,null,null,null,null,"73","TOLIMA","73622","RONCESVALLES",null,null,null,"VIJES"]
[null,null,null,null,null,null,null,null,null,null,null,null,null,null,null,"73","TOLIMA","73624","ROVIRA",null,null,null,"VILLA CARO"]
[null,null,null,null,null,null,null,null,null,null,null,null,null,null,null,"73","TOLIMA","73671","SALDAÑA",null,null,null,"VILLA DE LEYVA"]
[null,null,null,null,null,null,null,null,null,null,null,null,null,null,null,"73","TOLIMA","73675","SAN ANTONIO",null,null,null,"VILLA DE SAN DIEGO DE UBATÉ"]
[null,null,null,null,null,null,null,null,null,null,null,null,null,null,null,"73","TOLIMA","73678","SAN LUIS",null,null,null,"VILLA DEL ROSARIO"]
[null,null,null,null,null,null,null,null,null,null,null,null,null,null,null,"73","TOLIMA","73686","SANTA ISABEL",null,null,null,"VILLA RICA"]
[null,null,null,null,null,null,null,null,null,null,null,null,null,null,null,"73","TOLIMA","73770","SUÁREZ",null,null,null,"VILLAGARZÓN"]
[null,null,null,null,null,null,null,null,null,null,null,null,null,null,null,"73","TOLIMA","73854","VALLE DE SAN JUAN",null,null,null,"VILLAGÓMEZ"]
[null,null,null,null,null,null,null,null,null,null,null,null,null,null,null,"73","TOLIMA","73861","VENADILLO",null,null,null,"VILLAHERMOSA"]
[null,null,null,null,null,null,null,null,null,null,null,null,null,null,null,"73","TOLIMA","73870","VILLAHERMOSA",null,null,null,"VILLAMARÍA"]
[null,null,null,null,null,null,null,null,null,null,null,null,null,null,null,"73","TOLIMA","73873","VILLARRICA",null,null,null,"VILLANUEVA"]
[null,null,null,null,null,null,null,null,null,null,null,null,null,null,null,"76","VALLE DEL CAUCA","76001","CALI",null,null,null,"VILLAPINZÓN"]
[null,null,null,null,null,null,null,null,null,null,null,null,null,null,null,"76","VALLE DEL CAUCA","76020","ALCALÁ",null,null,null,"VILLARRICA"]
[null,null,null,null,null,null,null,null,null,null,null,null,null,null,null,"76","VALLE DEL CAUCA","76036","ANDALUCÍA",null,null,null,"VILLAVICENCIO"]
[null,null,null,null,null,null,null,null,null,null,null,null,null,null,null,"76","VALLE DEL CAUCA","76041","ANSERMANUEVO",null,null,null,"VILLAVIEJA"]
[null,null,null,null,null,null,null,null,null,null,null,null,null,null,null,"76","VALLE DEL CAUCA","76054","ARGELIA",null,null,null,"VILLETA"]
[null,null,null,null,null,null,null,null,null,null,null,null,null,null,null,"76","VALLE DEL CAUCA","76100","BOLÍVAR",null,null,null,"VIOTÁ"]
[null,null,null,null,null,null,null,null,null,null,null,null,null,null,null,"76","VALLE DEL CAUCA","76109","BUENAVENTURA",null,null,null,"VIRACACHÁ"]
[null,null,null,null,null,null,null,null,null,null,null,null,null,null,null,"76","VALLE DEL CAUCA","76111","GUADALAJARA DE BUGA",null,null,null,"VISTAHERMOSA"]
[null,null,null,null,null,null,null,null,null,null,null,null,null,null,null,"76","VALLE DEL CAUCA","76113","BUGALAGRANDE",null,null,null,"VITERBO"]
[null,null,null,null,null,null,null,null,null,null,null,null,null,null,null,"76","VALLE DEL CAUCA","76122","CAICEDONIA",null,null,null,"YACOPÍ"]
[null,null,null,null,null,null,null,null,null,null,null,null,null,null,null,"76","VALLE DEL CAUCA","76126","CALIMA",null,null,null,"YACUANQUER"]
[null,null,null,null,null,null,null,null,null,null,null,null,null,null,null,"76","VALLE DEL CAUCA","76130","CANDELARIA",null,null,null,"YAGUARÁ"]
[null,null,null,null,null,null,null,null,null,null,null,null,null,null,null,"76","VALLE DEL CAUCA","76147","CARTAGO",null,null,null,"YALÍ"]
[null,null,null,null,null,null,null,null,null,null,null,null,null,null,null,"76","VALLE DEL CAUCA","76233","DAGUA",null,null,null,"YARUMAL"]
[null,null,null,null,null,null,null,null,null,null,null,null,null,null,null,"76","VALLE DEL CAUCA","76243","EL ÁGUILA",null,null,null,"YAVARATÉ"]
[null,null,null,null,null,null,null,null,null,null,null,null,null,null,null,"76","VALLE DEL CAUCA","76246","EL CAIRO",null,null,null,"YOLOMBÓ"]
[null,null,null,null,null,null,null,null,null,null,null,null,null,null,null,"76","VALLE DEL CAUCA","76248","EL CERRITO",null,null,null,"YONDÓ"]
[null,null,null,null,null,null,null,null,null,null,null,null,null,null,null,"76","VALLE DEL CAUCA","76250","EL DOVIO",null,null,null,"YOPAL"]
[null,null,null,null,null,null,null,null,null,null,null,null,null,null,null,"76","VALLE DEL CAUCA","76275","FLORIDA",null,null,null,"YOTOCO"]
[null,null,null,null,null,null,null,null,null,null,null,null,null,null,null,"76","VALLE DEL CAUCA","76306","GINEBRA",null,null,null,"YUMBO"]
[null,null,null,null,null,null,null,null,null,null,null,null,null,null,null,"76","VALLE DEL CAUCA","76318","GUACARÍ",null,null,null,"ZAMBRANO"]
[null,null,null,null,null,null,null,null,null,null,null,null,null,null,null,"76","VALLE DEL CAUCA","76364","JAMUNDÍ",null,null,null,"ZAPATOCA"]
[null,null,null,null,null,null,null,null,null,null,null,null,null,null,null,"76","VALLE DEL CAUCA","76377","LA CUMBRE",null,null,null,"ZAPAYÁN"]
[null,null,null,null,null,null,null,null,null,null,null,null,null,null,null,"76","VALLE DEL CAUCA","76400","LA UNIÓN",null,null,null,"ZARAGOZA"]
[null,null,null,null,null,null,null,null,null,null,null,null,null,null,null,"76","VALLE DEL CAUCA","76403","LA VICTORIA",null,null,null,"ZARZAL"]
[null,null,null,null,null,null,null,null,null,null,null,null,null,null,null,"76","VALLE DEL CAUCA","76497","OBANDO",null,null,null,"ZETAQUIRA"]
[null,null,null,null,null,null,null,null,null,null,null,null,null,null,null,"76","VALLE DEL CAUCA","76520","PALMIRA",null,null,null,"ZIPACÓN"]
[null,null,null,null,null,null,null,null,null,null,null,null,null,null,null,"76","VALLE DEL CAUCA","76563","PRADERA",null,null,null,"ZIPAQUIRÁ"]
[null,null,null,null,null,null,null,null,null,null,null,null,null,null,null,"76","VALLE DEL CAUCA","76606","RESTREPO",null,null,null,"ZONA BANANERA"]
[null,null,null,null,null,null,null,null,null,null,null,null,null,null,null,"76","VALLE DEL CAUCA","76616","RIOFRÍO",null,null,null,"Elija una opción de esta lista desplegable"]
[null,null,null,null,null,null,null,null,null,null,null,null,null,null,null,"76","VALLE DEL CAUCA","76622","ROLDANILLO"]
[null,null,null,null,null,null,null,null,null,null,null,null,null,null,null,"76","VALLE DEL CAUCA","76670","SAN PEDRO"]
[null,null,null,null,null,null,null,null,null,null,null,null,null,null,null,"76","VALLE DEL CAUCA","76736","SEVILLA"]
[null,null,null,null,null,null,null,null,null,null,null,null,null,null,null,"76","VALLE DEL CAUCA","76823","TORO"]
[null,null,null,null,null,null,null,null,null,null,null,null,null,null,null,"76","VALLE DEL CAUCA","76828","TRUJILLO"]
[null,null,null,null,null,null,null,null,null,null,null,null,null,null,null,"76","VALLE DEL CAUCA","76834","TULUÁ"]
[null,null,null,null,null,null,null,null,null,null,null,null,null,null,null,"76","VALLE DEL CAUCA","76845","ULLOA"]
[null,null,null,null,null,null,null,null,null,null,null,null,null,null,null,"76","VALLE DEL CAUCA","76863","VERSALLES"]
[null,null,null,null,null,null,null,null,null,null,null,null,null,null,null,"76","VALLE DEL CAUCA","76869","VIJES"]
[null,null,null,null,null,null,null,null,null,null,null,null,null,null,null,"76","VALLE DEL CAUCA","76890","YOTOCO"]
[null,null,null,null,null,null,null,null,null,null,null,null,null,null,null,"76","VALLE DEL CAUCA","76892","YUMBO"]
[null,null,null,null,null,null,null,null,null,null,null,null,null,null,null,"76","VALLE DEL CAUCA","76895","ZARZAL"]
[null,null,null,null,null,null,null,null,null,null,null,null,null,null,null,"81","ARAUCA","81001","ARAUCA"]
[null,null,null,null,null,null,null,null,null,null,null,null,null,null,null,"81","ARAUCA","81065","ARAUQUITA"]
[null,null,null,null,null,null,null,null,null,null,null,null,null,null,null,"81","ARAUCA","81220","CRAVO NORTE"]
[null,null,null,null,null,null,null,null,null,null,null,null,null,null,null,"81","ARAUCA","81300","FORTUL"]
[null,null,null,null,null,null,null,null,null,null,null,null,null,null,null,"81","ARAUCA","81591","PUERTO RONDÓN"]
[null,null,null,null,null,null,null,null,null,null,null,null,null,null,null,"81","ARAUCA","81736","SARAVENA"]
[null,null,null,null,null,null,null,null,null,null,null,null,null,null,null,"81","ARAUCA","81794","TAME"]
[null,null,null,null,null,null,null,null,null,null,null,null,null,null,null,"85","CASANARE","85001","YOPAL"]
[null,null,null,null,null,null,null,null,null,null,null,null,null,null,null,"85","CASANARE","85010","AGUAZUL"]
[null,null,null,null,null,null,null,null,null,null,null,null,null,null,null,"85","CASANARE","85015","CHÁMEZA"]
[null,null,null,null,null,null,null,null,null,null,null,null,null,null,null,"85","CASANARE","85125","HATO COROZAL"]
[null,null,null,null,null,null,null,null,null,null,null,null,null,null,null,"85","CASANARE","85136","LA SALINA"]
[null,null,null,null,null,null,null,null,null,null,null,null,null,null,null,"85","CASANARE","85139","MANÍ"]
[null,null,null,null,null,null,null,null,null,null,null,null,null,null,null,"85","CASANARE","85162","MONTERREY"]
[null,null,null,null,null,null,null,null,null,null,null,null,null,null,null,"85","CASANARE","85225","NUNCHÍA"]
[null,null,null,null,null,null,null,null,null,null,null,null,null,null,null,"85","CASANARE","85230","OROCUÉ"]
[null,null,null,null,null,null,null,null,null,null,null,null,null,null,null,"85","CASANARE","85250","PAZ DE ARIPORO"]
[null,null,null,null,null,null,null,null,null,null,null,null,null,null,null,"85","CASANARE","85263","PORE"]
[null,null,null,null,null,null,null,null,null,null,null,null,null,null,null,"85","CASANARE","85279","RECETOR"]
[null,null,null,null,null,null,null,null,null,null,null,null,null,null,null,"85","CASANARE","85300","SABANALARGA"]
[null,null,null,null,null,null,null,null,null,null,null,null,null,null,null,"85","CASANARE","85315","SÁCAMA"]
[null,null,null,null,null,null,null,null,null,null,null,null,null,null,null,"85","CASANARE","85325","SAN LUIS DE PALENQUE"]
[null,null,null,null,null,null,null,null,null,null,null,null,null,null,null,"85","CASANARE","85400","TÁMARA"]
[null,null,null,null,null,null,null,null,null,null,null,null,null,null,null,"85","CASANARE","85410","TAURAMENA"]
[null,null,null,null,null,null,null,null,null,null,null,null,null,null,null,"85","CASANARE","85430","TRINIDAD"]
[null,null,null,null,null,null,null,null,null,null,null,null,null,null,null,"85","CASANARE","85440","VILLANUEVA"]
[null,null,null,null,null,null,null,null,null,null,null,null,null,null,null,"86","PUTUMAYO","86001","MOCOA"]
[null,null,null,null,null,null,null,null,null,null,null,null,null,null,null,"86","PUTUMAYO","86219","COLÓN"]
[null,null,null,null,null,null,null,null,null,null,null,null,null,null,null,"86","PUTUMAYO","86320","ORITO"]
[null,null,null,null,null,null,null,null,null,null,null,null,null,null,null,"86","PUTUMAYO","86568","PUERTO ASÍS"]
[null,null,null,null,null,null,null,null,null,null,null,null,null,null,null,"86","PUTUMAYO","86569","PUERTO CAICEDO"]
[null,null,null,null,null,null,null,null,null,null,null,null,null,null,null,"86","PUTUMAYO","86571","PUERTO GUZMÁN"]
[null,null,null,null,null,null,null,null,null,null,null,null,null,null,null,"86","PUTUMAYO","86573","PUERTO LEGUÍZAMO"]
[null,null,null,null,null,null,null,null,null,null,null,null,null,null,null,"86","PUTUMAYO","86749","SIBUNDOY"]
[null,null,null,null,null,null,null,null,null,null,null,null,null,null,null,"86","PUTUMAYO","86755","SAN FRANCISCO"]
[null,null,null,null,null,null,null,null,null,null,null,null,null,null,null,"86","PUTUMAYO","86757","SAN MIGUEL"]
[null,null,null,null,null,null,null,null,null,null,null,null,null,null,null,"86","PUTUMAYO","86760","SANTIAGO"]
[null,null,null,null,null,null,null,null,null,null,null,null,null,null,null,"86","PUTUMAYO","86865","VALLE DEL GUAMUEZ"]
[null,null,null,null,null,null,null,null,null,null,null,null,null,null,null,"86","PUTUMAYO","86885","VILLAGARZÓN"]
[null,null,null,null,null,null,null,null,null,null,null,null,null,null,null,"88","ARCHIPIÉLAGO DE SAN ANDRÉS, PROVIDENCIA Y SANTA CATALINA","88001","SAN ANDRÉS"]
[null,null,null,null,null,null,null,null,null,null,null,null,null,null,null,"88","ARCHIPIÉLAGO DE SAN ANDRÉS, PROVIDENCIA Y SANTA CATALINA","88564","PROVIDENCIA"]
[null,null,null,null,null,null,null,null,null,null,null,null,null,null,null,"91","AMAZONAS","91001","LETICIA"]
[null,null,null,null,null,null,null,null,null,null,null,null,null,null,null,"91","AMAZONAS","91263","EL ENCANTO"]
[null,null,null,null,null,null,null,null,null,null,null,null,null,null,null,"91","AMAZONAS","91405","LA CHORRERA"]
[null,null,null,null,null,null,null,null,null,null,null,null,null,null,null,"91","AMAZONAS","91407","LA PEDRERA"]
[null,null,null,null,null,null,null,null,null,null,null,null,null,null,null,"91","AMAZONAS","91430","LA VICTORIA"]
[null,null,null,null,null,null,null,null,null,null,null,null,null,null,null,"91","AMAZONAS","91460","MIRITÍ - PARANÁ"]
[null,null,null,null,null,null,null,null,null,null,null,null,null,null,null,"91","AMAZONAS","91530","PUERTO ALEGRÍA"]
[null,null,null,null,null,null,null,null,null,null,null,null,null,null,null,"91","AMAZONAS","91536","PUERTO ARICA"]
[null,null,null,null,null,null,null,null,null,null,null,null,null,null,null,"91","AMAZONAS","91540","PUERTO NARIÑO"]
[null,null,null,null,null,null,null,null,null,null,null,null,null,null,null,"91","AMAZONAS","91669","PUERTO SANTANDER"]
[null,null,null,null,null,null,null,null,null,null,null,null,null,null,null,"91","AMAZONAS","91798","TARAPACÁ"]
[null,null,null,null,null,null,null,null,null,null,null,null,null,null,null,"94","GUAINÍA","94001","INÍRIDA"]
[null,null,null,null,null,null,null,null,null,null,null,null,null,null,null,"94","GUAINÍA","94343","BARRANCOMINAS"]
[null,null,null,null,null,null,null,null,null,null,null,null,null,null,null,"94","GUAINÍA","94883","SAN FELIPE"]
[null,null,null,null,null,null,null,null,null,null,null,null,null,null,null,"94","GUAINÍA","94884","PUERTO COLOMBIA"]
[null,null,null,null,null,null,null,null,null,null,null,null,null,null,null,"94","GUAINÍA","94885","LA GUADALUPE"]
[null,null,null,null,null,null,null,null,null,null,null,null,null,null,null,"94","GUAINÍA","94886","CACAHUAL"]
[null,null,null,null,null,null,null,null,null,null,null,null,null,null,null,"94","GUAINÍA","94887","PANA PANA"]
[null,null,null,null,null,null,null,null,null,null,null,null,null,null,null,"94","GUAINÍA","94888","MORICHAL"]
[null,null,null,null,null,null,null,null,null,null,null,null,null,null,null,"95","GUAVIARE","95001","SAN JOSÉ DEL GUAVIARE"]
[null,null,null,null,null,null,null,null,null,null,null,null,null,null,null,"95","GUAVIARE","95015","CALAMAR"]
[null,null,null,null,null,null,null,null,null,null,null,null,null,null,null,"95","GUAVIARE","95025","EL RETORNO"]
[null,null,null,null,null,null,null,null,null,null,null,null,null,null,null,"95","GUAVIARE","95200","MIRAFLORES"]
[null,null,null,null,null,null,null,null,null,null,null,null,null,null,null,"97","VAUPÉS","97001","MITÚ"]
[null,null,null,null,null,null,null,null,null,null,null,null,null,null,null,"97","VAUPÉS","97161","CARURÚ"]
[null,null,null,null,null,null,null,null,null,null,null,null,null,null,null,"97","VAUPÉS","97511","PACOA"]
[null,null,null,null,null,null,null,null,null,null,null,null,null,null,null,"97","VAUPÉS","97666","TARAIRA"]
[null,null,null,null,null,null,null,null,null,null,null,null,null,null,null,"97","VAUPÉS","97777","PAPUNAHUA"]
[null,null,null,null,null,null,null,null,null,null,null,null,null,null,null,"97","VAUPÉS","97889","YAVARATÉ"]
[null,null,null,null,null,null,null,null,null,null,null,null,null,null,null,"99","VICHADA","99001","PUERTO CARREÑO"]
[null,null,null,null,null,null,null,null,null,null,null,null,null,null,null,"99","VICHADA","99524","LA PRIMAVERA"]
[null,null,null,null,null,null,null,null,null,null,null,null,null,null,null,"99","VICHADA","99624","SANTA ROSALÍA"]
[null,null,null,null,null,null,null,null,null,null,null,null,null,null,null,"99","VICHADA","99773","CUMARIBO"]

{"sheet":"Hoja de respuestas","index":3,"n_rows":2,"n_cols":8,"rows_kept":2,"cut":false,"hidden":true,"merged":[]}
[{"$f":"+'Formulario Gral'!D11","v":"ENTIDAD TERRITORIAL:"},{"$f":"+'Formulario Gral'!D13","v":" Tipo de entidad"},{"$f":"+'Formulario Gral'!D15","v":"Departamento"},{"$f":"+'Formulario Gral'!D17","v":"Nombre de la entidad"},{"$f":"+'Formulario Gral'!D26","v":"INFORMACIÓN GENERAL"},{"$f":"+'Formulario Gral'!D28","v":"Nombre de Funcionario que diligencia el formulario"},{"$f":"+'Formulario Gral'!D30","v":"Cargo del funcionario que diligencia el formulario"},{"$f":"+'Formulario Gral'!D32","v":"Correo de contacto del funcionario que diligencia"}]
[null,{"$f":"+'Formulario Gral'!F13","v":0},{"$f":"+'Formulario Gral'!F15","v":0},{"$f":"+'Formulario Gral'!F17","v":0},null,{"$f":"+'Formulario Gral'!H28","v":0},{"$f":"+'Formulario Gral'!H30","v":0},{"$f":"+'Formulario Gral'!H32","v":0}]